Over 500 Report Ref,Payment Date,Supplier Name*******,Vendor Type, Amount ,Cost Centre Code,Cost Centre Description,Directorate,Division,Service Group,Service,Subjective Description,Invoice Creation Date,Accounting Date,Proclass Category
OFH1819Q1.A000001,02/04/2018,Longreach,COMMERCIAL SUPPLIER,695,D12301,SUBSTANCE MISUSE,ADULTS & PUBLIC HEALTH,ADULT SOCIAL CARE,OTHER - ADULTS,SUBSTANCE MISUSE,RESIDENTIAL PLACEMENTS - PRIVA,,02/04/2018,
OFH1819Q1.A000002,02/04/2018,Longreach,COMMERCIAL SUPPLIER,"2,780.00",D12301,SUBSTANCE MISUSE,ADULTS & PUBLIC HEALTH,ADULT SOCIAL CARE,OTHER - ADULTS,SUBSTANCE MISUSE,RESIDENTIAL PLACEMENTS - PRIVA,,02/04/2018,
OFH1819Q1.A000003,02/04/2018,Sundry CTAX,,"1,827.44",D10000,BALANCE SHEET COST CENTRE,BALANCE SHEET,BALANCE SHEET,BALANCE SHEET,BALANCE SHEET,COUNCIL TAX DEBTOR,,02/04/2018,
OFH1819Q1.A000004,03/04/2018,London Councils��,Central/Government Departments,"25,176.00",D14262,PARKING - PARKING OPERATIONS,NEIGHBOURHOODS & GROWTH,ENVIRONMENT,NEIGHBOURHOODS,PARKING,CONSULTANCY FEES,09/03/2018,,
OFH1819Q1.A000005,03/04/2018,Airey Miller Ltd��,Commercial Supplier,"95,799.10",D19998,CAPITAL COST CENTRE,,,,0,CONSULTANCY FEES,14/03/2018,,
OFH1819Q1.A000006,03/04/2018,*******,Commercial Supplier,"3,300.00",D14551,ADULT LEARNING TEAM,CHILDREN'S SERVICES,EDUCATION & LEARNING,EMPLOYMENT & ENTERPRISE - E&L,EMPLOYMENT AND ENTERPRISE - E&L,PROFESSIONAL SERVICES - GENERAL,21/03/2018,,
OFH1819Q1.A000007,03/04/2018,All England Netball Association Ltd��,Commercial Supplier,"1,541.67",D14782,COMMUNITY SPORTS,NEIGHBOURHOODS & GROWTH,ENVIRONMENT,ENVIRONMENT,CULTURE AND COMMUNITIES,CONSULTANCY FEES,16/03/2018,,
OFH1819Q1.A000008,03/04/2018,Alpha Nano Developments Ltd��,Commercial Supplier,"46,490.00",D19998,CAPITAL COST CENTRE,,,,0,BUILDING ALTERATIONS AND MATERIALS,22/02/2018,,
OFH1819Q1.A000009,03/04/2018,Alpha Nano Developments Ltd��,Commercial Supplier,"28,181.00",D18081,AREA RESPONSIVE REPAIRS MANAGER (NORTH),NEIGHBOURHOODS & GROWTH (HRA),HOUSING SERVICES (HRA),HOUSING MANAGEMENT - REPAIRS & MAINTENAN,HOUSING MANAGEMENT - REPAIRS AND MAINTEN,BUILDING ALTERATIONS AND MATERIALS,09/03/2018,,
OFH1819Q1.A000010,03/04/2018,Askews and Holts Library Services Ltd��,Commercial Supplier,"14,680.92",D19998,CAPITAL COST CENTRE,,,,0,"BOOKS, PUBLICATIONS AND RESOURCES",18/03/2018,,
OFH1819Q1.A000011,03/04/2018,Askews and Holts Library Services Ltd��,Commercial Supplier,"1,081.83",D14711,HEADQUARTERS,CHILDREN'S SERVICES,EDUCATION & LEARNING,LIBRARIES & ARCHIVE,LIBRARIES & ARCHIVES,"BOOKS, PUBLICATIONS AND RESOURCES",18/03/2018,,
OFH1819Q1.A000012,03/04/2018,Askews and Holts Library Services Ltd��,Commercial Supplier,"57,083.71",D19998,CAPITAL COST CENTRE,,,,0,"BOOKS, PUBLICATIONS AND RESOURCES",15/03/2018,,
OFH1819Q1.A000013,03/04/2018,Automotive Leasing Ltd��,Commercial Supplier,"4,834.39",D10106,VEHICLE HIRE CONTRACT MANAGEMENT,CORPORATE RESOURCES,FINANCE,PROCUREMENT,CONTRACT SERVICES,VEHICLE LEASES,21/03/2018,,
OFH1819Q1.A000014,03/04/2018,Bolt & Heeks Ltd��,Commercial Supplier,"21,702.00",D19998,CAPITAL COST CENTRE,,,,0,"MAINTENANCE - EQUIPMENT, FURNITURE AND MATERIALS",27/02/2018,,
OFH1819Q1.A000015,03/04/2018,Bolt & Heeks Ltd��,Commercial Supplier,"33,230.00",D19998,CAPITAL COST CENTRE,,,,0,"MAINTENANCE - EQUIPMENT, FURNITURE AND MATERIALS",27/02/2018,,
OFH1819Q1.A000016,03/04/2018,Bolt & Heeks Ltd��,Commercial Supplier,"30,930.00",D18102,AREA RESPONSIVE REPAIRS MANAGER (CENTRAL,NEIGHBOURHOODS & GROWTH (HRA),HOUSING SERVICES (HRA),HOUSING MANAGEMENT - REPAIRS & MAINTENAN,HOUSING MANAGEMENT - REPAIRS AND MAINTEN,"MAINTENANCE - EQUIPMENT, FURNITURE AND MATERIALS",27/02/2018,,
OFH1819Q1.A000017,03/04/2018,Bolt & Heeks Ltd��,Commercial Supplier,"1,910.00",D19998,CAPITAL COST CENTRE,,,,0,"MAINTENANCE - EQUIPMENT, FURNITURE AND MATERIALS",14/03/2018,,
OFH1819Q1.A000018,03/04/2018,Bolt & Heeks Ltd��,Commercial Supplier,"3,095.00",D18102,AREA RESPONSIVE REPAIRS MANAGER (CENTRAL,NEIGHBOURHOODS & GROWTH (HRA),HOUSING SERVICES (HRA),HOUSING MANAGEMENT - REPAIRS & MAINTENAN,HOUSING MANAGEMENT - REPAIRS AND MAINTEN,"MAINTENANCE - EQUIPMENT, FURNITURE AND MATERIALS",14/03/2018,,
OFH1819Q1.A000019,03/04/2018,British Telecommunications plc��,Commercial Supplier,"1,931.98",D12801,ADULT SUPPORT - TELEPHONE RENTAL,ADULTS & PUBLIC HEALTH,ADULT SOCIAL CARE,OTHER - ADULTS,CARELINE24 & ASSISTIVE TECHNOLOGY,LAND LINE TELEPHONE COSTS,20/03/2018,,
OFH1819Q1.A000020,03/04/2018,British Telecommunications plc��,Commercial Supplier,"1,177.45",D12801,ADULT SUPPORT - TELEPHONE RENTAL,ADULTS & PUBLIC HEALTH,ADULT SOCIAL CARE,OTHER - ADULTS,CARELINE24 & ASSISTIVE TECHNOLOGY,LAND LINE TELEPHONE COSTS,20/03/2018,,
OFH1819Q1.A000021,03/04/2018,Castle Water Ltd��,Commercial Supplier,817.53,D10602,SPRINGFIELD COMMUNITY & HEALTH CENTRE GF,CORPORATE RESOURCES,FINANCE,PROPERTY & FINANCIAL TRANSACTION SERVICE,FACILITIES MANAGEMENT,WATER AND SEWERAGE,16/03/2018,,
OFH1819Q1.A000022,03/04/2018,*******,Commercial Supplier,"2,100.00",D14539,VAUXHALL/NORWOOD/STOCKWELL,NEIGHBOURHOODS & GROWTH,"GROWTH, PLANNING & EMPLOYMENT",INVESTMENT & GROWTH,NEIGHBOURHOOD REGENERATION,EVENTS,12/03/2018,,
OFH1819Q1.A000023,03/04/2018,City Suburban Tree Surgeons Ltd��,Commercial Supplier,"68,616.40",D18061,ESTATE PRIDE,NEIGHBOURHOODS & GROWTH (HRA),HOUSING SERVICES (HRA),HOUSING MANAGEMENT - REPAIRS & MAINTENAN,HOUSING MANAGEMENT - REPAIRS AND MAINTEN,OPEN SPACES WORKS,07/03/2018,,
OFH1819Q1.A000024,03/04/2018,City Suburban Tree Surgeons Ltd��,Commercial Supplier,"4,258.97",D18053,ESTATE SERVICES MANAGER (SOUTH),NEIGHBOURHOODS & GROWTH (HRA),HOUSING SERVICES (HRA),HOUSING MANAGEMENT - REPAIRS & MAINTENAN,HOUSING MANAGEMENT - REPAIRS AND MAINTEN,OPEN SPACES WORKS,07/03/2018,,
OFH1819Q1.A000025,03/04/2018,CJ Swinky Consulting Ltd��,Commercial Supplier,"4,020.00",D14557,NHB - SKILLS FOR JOBS,NEIGHBOURHOODS & GROWTH,"GROWTH, PLANNING & EMPLOYMENT","WELFARE, EMPLOYMENT & SKILLS",NEW HOMES BONUS,CONSULTANCY FEES,13/03/2018,,
OFH1819Q1.A000026,03/04/2018,CT Plus (hackney)��,Commercial Supplier,"3,427.92",D12207,OP DAY CENTRE - CLARENCE AVENUE,ADULTS & PUBLIC HEALTH,ADULT SOCIAL CARE,DAY CENTRES,DAY SERVICES,DIRECT TRANSPORT,23/01/2018,,
OFH1819Q1.A000027,03/04/2018,DSI Billing Services Ltd��,Commercial Supplier,"5,485.80",D18365,GENERAL STRATEGIC & CAPITALISATION,NEIGHBOURHOODS & GROWTH (HRA),CENTRAL HRA BUDGETS,CENTRAL HRA BUDGETS,CENTRAL HRA BUDGETS,PHOTOCOPYING,22/03/2018,,
OFH1819Q1.A000028,03/04/2018,DSI Billing Services Ltd��,Commercial Supplier,"10,947.71",D18365,GENERAL STRATEGIC & CAPITALISATION,NEIGHBOURHOODS & GROWTH (HRA),CENTRAL HRA BUDGETS,CENTRAL HRA BUDGETS,CENTRAL HRA BUDGETS,PHOTOCOPYING,22/03/2018,,
OFH1819Q1.A000029,03/04/2018,Engie Regeneration Ltd��,Commercial Supplier,"12,798.11",D19998,CAPITAL COST CENTRE,,,,0,"MAINTENANCE - EQUIPMENT, FURNITURE AND MATERIALS",15/03/2018,,
OFH1819Q1.A000030,03/04/2018,Engie Regeneration Ltd��,Commercial Supplier,"90,638.40",D19998,CAPITAL COST CENTRE,,,,0,"MAINTENANCE - EQUIPMENT, FURNITURE AND MATERIALS",15/03/2018,,
OFH1819Q1.A000031,03/04/2018,Engie Regeneration Ltd��,Commercial Supplier,"192,050.49",D18053,ESTATE SERVICES MANAGER (SOUTH),NEIGHBOURHOODS & GROWTH (HRA),HOUSING SERVICES (HRA),HOUSING MANAGEMENT - REPAIRS & MAINTENAN,HOUSING MANAGEMENT - REPAIRS AND MAINTEN,CLEANING SERVICES,09/03/2018,,
OFH1819Q1.A000032,03/04/2018,Engie Regeneration Ltd��,Commercial Supplier,"82,593.30",D18053,ESTATE SERVICES MANAGER (SOUTH),NEIGHBOURHOODS & GROWTH (HRA),HOUSING SERVICES (HRA),HOUSING MANAGEMENT - REPAIRS & MAINTENAN,HOUSING MANAGEMENT - REPAIRS AND MAINTEN,"MAINTENANCE - EQUIPMENT, FURNITURE AND MATERIALS",09/03/2018,,
OFH1819Q1.A000033,03/04/2018,Engineer HRW��,Commercial Supplier,"3,000.00",D19998,CAPITAL COST CENTRE,,,,0,"MAINTENANCE - EQUIPMENT, FURNITURE AND MATERIALS",25/05/2017,,
OFH1819Q1.A000034,03/04/2018,Engineer HRW��,Commercial Supplier,"6,700.00",D19998,CAPITAL COST CENTRE,,,,0,"MAINTENANCE - EQUIPMENT, FURNITURE AND MATERIALS",16/06/2017,,
OFH1819Q1.A000035,03/04/2018,ERND Building Services (UK) Ltd��,Commercial Supplier,"31,937.81",D18122,AREA RESPONSIVE REPAIRS MANAGER (SOUTH),NEIGHBOURHOODS & GROWTH (HRA),HOUSING SERVICES (HRA),HOUSING MANAGEMENT - REPAIRS & MAINTENAN,HOUSING MANAGEMENT - REPAIRS AND MAINTEN,BUILDING ALTERATIONS AND MATERIALS,06/03/2018,,
OFH1819Q1.A000036,03/04/2018,George Browns Implements Ltd��,Commercial Supplier,640,D14841,CEMS & CREMS,NEIGHBOURHOODS & GROWTH,ENVIRONMENT,NEIGHBOURHOODS,"CEMETERIES, CREMATORIA & CORONERS SERVIC",VEHICLE LEASES,20/01/2018,,
OFH1819Q1.A000037,03/04/2018,George Browns Implements Ltd��,Commercial Supplier,640,D14841,CEMS & CREMS,NEIGHBOURHOODS & GROWTH,ENVIRONMENT,NEIGHBOURHOODS,"CEMETERIES, CREMATORIA & CORONERS SERVIC",VEHICLE LEASES,08/02/2018,,
OFH1819Q1.A000038,03/04/2018,George Browns Implements Ltd��,Commercial Supplier,640,D14841,CEMS & CREMS,NEIGHBOURHOODS & GROWTH,ENVIRONMENT,NEIGHBOURHOODS,"CEMETERIES, CREMATORIA & CORONERS SERVIC",VEHICLE LEASES,20/03/2018,,
OFH1819Q1.A000039,03/04/2018,Grant Thornton��,Commercial Supplier,"16,266.75",D19998,CAPITAL COST CENTRE,,,,0,PROFESSIONAL SERVICES - GENERAL,11/08/2017,,
OFH1819Q1.A000040,03/04/2018,Grant Thornton��,Commercial Supplier,"1,961.60",D19998,CAPITAL COST CENTRE,,,,0,PROFESSIONAL SERVICES - GENERAL,29/12/2017,,
OFH1819Q1.A000041,03/04/2018,Hanlon Computer Systems Ltd��,Commercial Supplier,"8,250.00",D14502,ECONOMIC DEVELOPMENT - S106 EMPLOYMENT AND JCU PROJECTS,NEIGHBOURHOODS & GROWTH,"GROWTH, PLANNING & EMPLOYMENT","WELFARE, EMPLOYMENT & SKILLS",S106 EMPLOYMENT,CONSULTANCY FEES,13/03/2018,,
OFH1819Q1.A000042,03/04/2018,Holistic Community Care Ltd��,Commercial Supplier,918,D12279,MH - DOMICILIARY CARE,ADULTS & PUBLIC HEALTH,ADULT SOCIAL CARE,MENTAL HEALTH,ADULTS WITH MENTAL HEALTH NEEDS,DOMICILIARY CARE - THIRD PARTY,22/03/2018,,
OFH1819Q1.A000043,03/04/2018,Imosphere Ltd��,Commercial Supplier,"20,434.06",D12861,ADMINISTRATION IN BUSINESS UNIT SSR (261,ADULTS & PUBLIC HEALTH,ADULT SOCIAL CARE,OTHER - ADULTS,BUSINESS INFORMATION AND SUPPORT SERVICE,"PURCHASE - EQUIPMENT, FURNITURE AND MATERIALS",20/03/2018,,
OFH1819Q1.A000044,03/04/2018,Jenx Ltd��,Commercial Supplier,"1,548.50",D13159,SPECIALIST EQUIPMENT,CHILDREN'S SERVICES,EDUCATION & LEARNING,SPECIAL EDUCATIONAL NEEDS,"SPECIAL EDUCATION NEEDS [IBS, TRANSPORT",SPECIALIST EQUIPMENT FOR SERVICE PROVISION,08/03/2018,,
OFH1819Q1.A000045,03/04/2018,Kaamil Education Ltd��,Commercial Supplier,689.08,D12532,OP - DOMICILIARY CARE,ADULTS & PUBLIC HEALTH,ADULT SOCIAL CARE,OLDER PEOPLE,OP - OLDER PEOPLE'S SERVICES,DOMICILIARY CARE - THIRD PARTY,21/03/2018,,
OFH1819Q1.A000046,03/04/2018,Kaamil Education Ltd��,Commercial Supplier,561.75,D12532,OP - DOMICILIARY CARE,ADULTS & PUBLIC HEALTH,ADULT SOCIAL CARE,OLDER PEOPLE,OP - OLDER PEOPLE'S SERVICES,DOMICILIARY CARE - THIRD PARTY,21/03/2018,,
OFH1819Q1.A000047,03/04/2018,Kaamil Education Ltd��,Commercial Supplier,"2,307.20",D12532,OP - DOMICILIARY CARE,ADULTS & PUBLIC HEALTH,ADULT SOCIAL CARE,OLDER PEOPLE,OP - OLDER PEOPLE'S SERVICES,DOMICILIARY CARE - THIRD PARTY,21/03/2018,,
OFH1819Q1.A000048,03/04/2018,Kaamil Education Ltd��,Commercial Supplier,838.88,D12532,OP - DOMICILIARY CARE,ADULTS & PUBLIC HEALTH,ADULT SOCIAL CARE,OLDER PEOPLE,OP - OLDER PEOPLE'S SERVICES,DOMICILIARY CARE - THIRD PARTY,21/03/2018,,
OFH1819Q1.A000049,03/04/2018,Kaamil Education Ltd��,Commercial Supplier,771.47,D12532,OP - DOMICILIARY CARE,ADULTS & PUBLIC HEALTH,ADULT SOCIAL CARE,OLDER PEOPLE,OP - OLDER PEOPLE'S SERVICES,DOMICILIARY CARE - THIRD PARTY,21/03/2018,,
OFH1819Q1.A000050,03/04/2018,Kaamil Education Ltd��,Commercial Supplier,797.8,D12532,OP - DOMICILIARY CARE,ADULTS & PUBLIC HEALTH,ADULT SOCIAL CARE,OLDER PEOPLE,OP - OLDER PEOPLE'S SERVICES,DOMICILIARY CARE - THIRD PARTY,21/03/2018,,
OFH1819Q1.A000051,03/04/2018,Know Wonder Ltd��,Commercial Supplier,"13,500.00",D13253,FAMILY INFORMATION SERVICES,CHILDREN'S SERVICES,STRATEGY & COMMISSIONING - CHILDREN,EARLY YEARS AND PARENTING,EARLY YEARS SERVICES,CONSULTANCY FEES,06/03/2018,,
OFH1819Q1.A000052,03/04/2018,Lambeth College��,Commercial Supplier,"30,999.60",D13405,COLLEGE PLACEMENTS,CHILDREN'S SERVICES,EDUCATION & LEARNING,SCHOOL & EDUCATION IMPROVEMENT SERVICE,EDUCATION STRATEGY,PROFESSIONAL SERVICES - GENERAL,14/02/2018,,
OFH1819Q1.A000053,03/04/2018,Libra Construction Services Ltd��,Commercial Supplier,"4,934.00",D18122,AREA RESPONSIVE REPAIRS MANAGER (SOUTH),NEIGHBOURHOODS & GROWTH (HRA),HOUSING SERVICES (HRA),HOUSING MANAGEMENT - REPAIRS & MAINTENAN,HOUSING MANAGEMENT - REPAIRS AND MAINTEN,FACILITIES MANAGEMENT,21/03/2018,,
OFH1819Q1.A000054,03/04/2018,Lumesse Ltd��,Commercial Supplier,"18,514.08",D10053,ORGANISATIONAL DEVELOPMENT,CORPORATE RESOURCES,HUMAN RESOURCES & ORGANISATIONAL DEVELOP,HUMAN RESOURCES & ORGANISATIONAL DEVELOP,ORGANISATIONAL DEVELOPMENT,ICT SOFTWARE,21/03/2018,,
OFH1819Q1.A000055,03/04/2018,Meanwhile Space CIC��,Commercial Supplier,"-1,080.00",D14560,WATERLOO/STREATHAM,NEIGHBOURHOODS & GROWTH,"GROWTH, PLANNING & EMPLOYMENT",INVESTMENT & GROWTH,NEIGHBOURHOOD REGENERATION,CONSULTANCY FEES,07/02/2018,,
OFH1819Q1.A000056,03/04/2018,Meanwhile Space CIC��,Commercial Supplier,"5,000.00",D14505,ECONOMIC DEVELOPMENT - S106 ENTERPRISE PROJECTS,NEIGHBOURHOODS & GROWTH,"GROWTH, PLANNING & EMPLOYMENT",INVESTMENT & GROWTH,EMPLOYMENT,CONSULTANCY FEES,13/03/2018,,
OFH1819Q1.A000057,03/04/2018,Meanwhile Space CIC��,Commercial Supplier,"-1,080.00",D14560,WATERLOO/STREATHAM,NEIGHBOURHOODS & GROWTH,"GROWTH, PLANNING & EMPLOYMENT",INVESTMENT & GROWTH,NEIGHBOURHOOD REGENERATION,CONSULTANCY FEES,08/02/2018,,
OFH1819Q1.A000058,03/04/2018,Mears Care Ltd��,Commercial Supplier,929.74,D12332,PD - DOMICILIARY CARE,ADULTS & PUBLIC HEALTH,ADULT SOCIAL CARE,INTEGRATED DISABILITY,INTEGRATED DISABILITY - PD,DOMICILIARY CARE - THIRD PARTY,22/03/2018,,
OFH1819Q1.A000059,03/04/2018,Mears Care Ltd��,Commercial Supplier,"1,546.86",D12532,OP - DOMICILIARY CARE,ADULTS & PUBLIC HEALTH,ADULT SOCIAL CARE,OLDER PEOPLE,OP - OLDER PEOPLE'S SERVICES,DOMICILIARY CARE - THIRD PARTY,22/03/2018,,
OFH1819Q1.A000060,03/04/2018,Mears Care Ltd��,Commercial Supplier,"1,015.00",D12532,OP - DOMICILIARY CARE,ADULTS & PUBLIC HEALTH,ADULT SOCIAL CARE,OLDER PEOPLE,OP - OLDER PEOPLE'S SERVICES,DOMICILIARY CARE - THIRD PARTY,22/03/2018,,
OFH1819Q1.A000061,03/04/2018,Mears Care Ltd��,Commercial Supplier,799.82,D12332,PD - DOMICILIARY CARE,ADULTS & PUBLIC HEALTH,ADULT SOCIAL CARE,INTEGRATED DISABILITY,INTEGRATED DISABILITY - PD,DOMICILIARY CARE - THIRD PARTY,24/03/2018,,
OFH1819Q1.A000062,03/04/2018,Mears Care Ltd��,Commercial Supplier,552.16,D12332,PD - DOMICILIARY CARE,ADULTS & PUBLIC HEALTH,ADULT SOCIAL CARE,INTEGRATED DISABILITY,INTEGRATED DISABILITY - PD,DOMICILIARY CARE - THIRD PARTY,24/03/2018,,
OFH1819Q1.A000063,03/04/2018,Mears Care Ltd��,Commercial Supplier,"2,030.00",D12332,PD - DOMICILIARY CARE,ADULTS & PUBLIC HEALTH,ADULT SOCIAL CARE,INTEGRATED DISABILITY,INTEGRATED DISABILITY - PD,DOMICILIARY CARE - THIRD PARTY,24/03/2018,,
OFH1819Q1.A000064,03/04/2018,Mears Care Ltd��,Commercial Supplier,568.4,D12332,PD - DOMICILIARY CARE,ADULTS & PUBLIC HEALTH,ADULT SOCIAL CARE,INTEGRATED DISABILITY,INTEGRATED DISABILITY - PD,DOMICILIARY CARE - THIRD PARTY,24/03/2018,,
OFH1819Q1.A000065,03/04/2018,Mears Care Ltd��,Commercial Supplier,714.56,D12332,PD - DOMICILIARY CARE,ADULTS & PUBLIC HEALTH,ADULT SOCIAL CARE,INTEGRATED DISABILITY,INTEGRATED DISABILITY - PD,DOMICILIARY CARE - THIRD PARTY,22/03/2018,,
OFH1819Q1.A000066,03/04/2018,Mears Care Ltd��,Commercial Supplier,876.96,D12532,OP - DOMICILIARY CARE,ADULTS & PUBLIC HEALTH,ADULT SOCIAL CARE,OLDER PEOPLE,OP - OLDER PEOPLE'S SERVICES,DOMICILIARY CARE - THIRD PARTY,22/03/2018,,
OFH1819Q1.A000067,03/04/2018,Mears Care Ltd��,Commercial Supplier,"1,088.08",D12532,OP - DOMICILIARY CARE,ADULTS & PUBLIC HEALTH,ADULT SOCIAL CARE,OLDER PEOPLE,OP - OLDER PEOPLE'S SERVICES,DOMICILIARY CARE - THIRD PARTY,22/03/2018,,
OFH1819Q1.A000068,03/04/2018,Mears Care Ltd��,Commercial Supplier,"1,023.12",D12532,OP - DOMICILIARY CARE,ADULTS & PUBLIC HEALTH,ADULT SOCIAL CARE,OLDER PEOPLE,OP - OLDER PEOPLE'S SERVICES,DOMICILIARY CARE - THIRD PARTY,22/03/2018,,
OFH1819Q1.A000069,03/04/2018,Mears Care Ltd��,Commercial Supplier,"1,088.08",D12532,OP - DOMICILIARY CARE,ADULTS & PUBLIC HEALTH,ADULT SOCIAL CARE,OLDER PEOPLE,OP - OLDER PEOPLE'S SERVICES,DOMICILIARY CARE - THIRD PARTY,22/03/2018,,
OFH1819Q1.A000070,03/04/2018,Mears Ltd��,Commercial Supplier,"25,421.39",D18133,ESTATE SERVICES MANAGER (NORTH),NEIGHBOURHOODS & GROWTH (HRA),HOUSING SERVICES (HRA),HOUSING MANAGEMENT - REPAIRS & MAINTENAN,HOUSING MANAGEMENT - REPAIRS AND MAINTEN,FACILITIES MANAGEMENT,09/03/2018,,
OFH1819Q1.A000071,03/04/2018,Mears Ltd��,Commercial Supplier,"251,883.25",D18133,ESTATE SERVICES MANAGER (NORTH),NEIGHBOURHOODS & GROWTH (HRA),HOUSING SERVICES (HRA),HOUSING MANAGEMENT - REPAIRS & MAINTENAN,HOUSING MANAGEMENT - REPAIRS AND MAINTEN,CLEANING SERVICES,09/03/2018,,
OFH1819Q1.A000072,03/04/2018,Mears Ltd��,Commercial Supplier,"40,001.02",D18102,AREA RESPONSIVE REPAIRS MANAGER (CENTRAL,NEIGHBOURHOODS & GROWTH (HRA),HOUSING SERVICES (HRA),HOUSING MANAGEMENT - REPAIRS & MAINTENAN,HOUSING MANAGEMENT - REPAIRS AND MAINTEN,FACILITIES MANAGEMENT,06/03/2018,,
OFH1819Q1.A000073,03/04/2018,Mears Ltd��,Commercial Supplier,"13,693.42",D19998,CAPITAL COST CENTRE,,,,0,FACILITIES MANAGEMENT,15/03/2018,,
OFH1819Q1.A000074,03/04/2018,Metric Group Ltd��,Commercial Supplier,"6,014.12",D14262,PARKING - PARKING OPERATIONS,NEIGHBOURHOODS & GROWTH,ENVIRONMENT,NEIGHBOURHOODS,PARKING,"PURCHASE - EQUIPMENT, FURNITURE AND MATERIALS",06/03/2018,,
OFH1819Q1.A000075,03/04/2018,Morrison Facilities Services Ltd��,Commercial Supplier,"227,076.95",D18093,ESTATE SERVICES MANAGER (CENTRAL),NEIGHBOURHOODS & GROWTH (HRA),HOUSING SERVICES (HRA),HOUSING MANAGEMENT - REPAIRS & MAINTENAN,HOUSING MANAGEMENT - REPAIRS AND MAINTEN,CLEANING SERVICES,10/03/2018,,
OFH1819Q1.A000076,03/04/2018,Morrison Facilities Services Ltd��,Commercial Supplier,"37,203.74",D18093,ESTATE SERVICES MANAGER (CENTRAL),NEIGHBOURHOODS & GROWTH (HRA),HOUSING SERVICES (HRA),HOUSING MANAGEMENT - REPAIRS & MAINTENAN,HOUSING MANAGEMENT - REPAIRS AND MAINTEN,FACILITIES MANAGEMENT,10/03/2018,,
OFH1819Q1.A000077,03/04/2018,Moving Matters London Ltd��,Commercial Supplier,775.6,D14785,LONDON YOUTH GAMES,NEIGHBOURHOODS & GROWTH,ENVIRONMENT,ENVIRONMENT,CULTURE AND COMMUNITIES,ARTS AND LEISURE COSTS,13/03/2018,,
OFH1819Q1.A000078,03/04/2018,Moving Matters London Ltd��,Commercial Supplier,675.85,D14785,LONDON YOUTH GAMES,NEIGHBOURHOODS & GROWTH,ENVIRONMENT,ENVIRONMENT,CULTURE AND COMMUNITIES,ARTS AND LEISURE COSTS,13/03/2018,,
OFH1819Q1.A000079,03/04/2018,NLS FM Services Ltd��,Commercial Supplier,"2,300.00",D14752,PARKS,NEIGHBOURHOODS & GROWTH,ENVIRONMENT,NEIGHBOURHOODS,PARKS,ICT SOFTWARE,15/03/2018,,
OFH1819Q1.A000080,03/04/2018,NLS FM Services Ltd��,Commercial Supplier,"2,300.00",D14752,PARKS,NEIGHBOURHOODS & GROWTH,ENVIRONMENT,NEIGHBOURHOODS,PARKS,ICT SOFTWARE,15/03/2018,,
OFH1819Q1.A000081,03/04/2018,NLS FM Services Ltd��,Commercial Supplier,"2,300.00",D14752,PARKS,NEIGHBOURHOODS & GROWTH,ENVIRONMENT,NEIGHBOURHOODS,PARKS,ICT SOFTWARE,15/03/2018,,
OFH1819Q1.A000082,03/04/2018,NSL Services Group Ltd��,Commercial Supplier,"2,272.21",D14262,PARKING - PARKING OPERATIONS,NEIGHBOURHOODS & GROWTH,ENVIRONMENT,NEIGHBOURHOODS,PARKING,CONSULTANCY FEES,09/03/2018,,
OFH1819Q1.A000083,03/04/2018,Pellings LLP��,Commercial Supplier,"3,068.71",D19998,CAPITAL COST CENTRE,,,,0,CONSULTANCY FEES,14/03/2018,,
OFH1819Q1.A000084,03/04/2018,Pellings LLP��,Commercial Supplier,"1,506.89",D19998,CAPITAL COST CENTRE,,,,0,CONSULTANCY FEES,14/03/2018,,
OFH1819Q1.A000085,03/04/2018,Project Centre Ltd��,Commercial Supplier,"7,300.00",D19998,CAPITAL COST CENTRE,,,,0,"MAINTENANCE - EQUIPMENT, FURNITURE AND MATERIALS",07/03/2018,,
OFH1819Q1.A000086,03/04/2018,Pythagoras Communications Ltd��,Commercial Supplier,879,D10254,TELEPHONY IMPLEMENTATION,CORPORATE RESOURCES,BUSINESS TRANSFORMATION,BUSINESS TRANSFORMATION,ICT,ICT MAINTENANCE AND SUPPORT,24/07/2017,,
OFH1819Q1.A000087,03/04/2018,Reveal Theatre Company��,Commercial Supplier,"6,500.00",D14812,ABG - PREVENTING VIOLENT EXTREMISM,NEIGHBOURHOODS & GROWTH,ENVIRONMENT,COMMUNITY SAFETY,PUBLIC PROTECTION,ARTS AND LEISURE COSTS,06/03/2018,,
OFH1819Q1.A000088,03/04/2018,Roots & Shoots��,Commercial Supplier,"2,062.99",D13157,STATEMENTING COSTS/EHCP,CHILDREN'S SERVICES,EDUCATION & LEARNING,SPECIAL EDUCATIONAL NEEDS,"SPECIAL EDUCATION NEEDS [IBS, TRANSPORT",PRIVATE CONTRACTORS PAYMENT - OTHER,21/03/2018,,
OFH1819Q1.A000089,03/04/2018,Roots & Shoots��,Commercial Supplier,"2,062.99",D13157,STATEMENTING COSTS/EHCP,CHILDREN'S SERVICES,EDUCATION & LEARNING,SPECIAL EDUCATIONAL NEEDS,"SPECIAL EDUCATION NEEDS [IBS, TRANSPORT",PRIVATE CONTRACTORS PAYMENT - OTHER,21/03/2018,,
OFH1819Q1.A000090,03/04/2018,Southern Mobility Centres Ltd��,Commercial Supplier,"2,588.85",D19998,CAPITAL COST CENTRE,,,,0,GRANTS AND CONTRIBUTIONS,10/03/2018,,
OFH1819Q1.A000091,03/04/2018,The Portal Partnership Ltd��,Commercial Supplier,"8,950.00",D19998,CAPITAL COST CENTRE,,,,0,ICT SOFTWARE,15/03/2018,,
OFH1819Q1.A000092,03/04/2018,Thedesignconcept Ltd��,Commercial Supplier,"73,083.00",D19998,CAPITAL COST CENTRE,,,,0,"PURCHASE - EQUIPMENT, FURNITURE AND MATERIALS",13/02/2018,,
OFH1819Q1.A000093,03/04/2018,Thedesignconcept Ltd��,Commercial Supplier,"20,200.00",D19998,CAPITAL COST CENTRE,,,,0,"PURCHASE - EQUIPMENT, FURNITURE AND MATERIALS",13/02/2018,,
OFH1819Q1.A000094,03/04/2018,Tunstall Group Ltd��,Commercial Supplier,"8,263.50",D12547,ASSISTIVE TECHNOLOGY,ADULTS & PUBLIC HEALTH,ADULT SOCIAL CARE,OTHER - ADULTS,CARELINE24 & ASSISTIVE TECHNOLOGY,PRIVATE CONTRACTORS PAYMENT - OTHER,06/03/2018,,
OFH1819Q1.A000095,03/04/2018,Vauxhall One��,Commercial Supplier,"85,383.51",D10741,REVENUES,CORPORATE RESOURCES,BUSINESS & CUSTOMER SERVICES,REVENUE & BENEFITS,REVENUES,GENERAL OFFICE EXPENSES,26/03/2018,,
OFH1819Q1.A000096,03/04/2018,Youth Graces (UK) Ltd��,Commercial Supplier,"1,227.15",D12532,OP - DOMICILIARY CARE,ADULTS & PUBLIC HEALTH,ADULT SOCIAL CARE,OLDER PEOPLE,OP - OLDER PEOPLE'S SERVICES,DOMICILIARY CARE - THIRD PARTY,14/03/2018,,
OFH1819Q1.A000097,03/04/2018,Youth Graces (UK) Ltd��,Commercial Supplier,546.75,D12532,OP - DOMICILIARY CARE,ADULTS & PUBLIC HEALTH,ADULT SOCIAL CARE,OLDER PEOPLE,OP - OLDER PEOPLE'S SERVICES,DOMICILIARY CARE - THIRD PARTY,13/03/2018,,
OFH1819Q1.A000098,03/04/2018,Youth Graces (UK) Ltd��,Commercial Supplier,631.8,D13027,CHILDREN WITH DISABILITIES FWi,CHILDREN'S SERVICES,CHILDREN'S SERVICES,CHILDREN SAFEGUARDING & ASSESSMENTS,CHILDREN WITH DISABILITIES,DOMICILIARY CARE - THIRD PARTY,13/03/2018,,
OFH1819Q1.A000099,03/04/2018,Youth Graces (UK) Ltd��,Commercial Supplier,765.45,D12532,OP - DOMICILIARY CARE,ADULTS & PUBLIC HEALTH,ADULT SOCIAL CARE,OLDER PEOPLE,OP - OLDER PEOPLE'S SERVICES,DOMICILIARY CARE - THIRD PARTY,13/03/2018,,
OFH1819Q1.A000100,03/04/2018,Youth Graces (UK) Ltd��,Commercial Supplier,546.75,D12532,OP - DOMICILIARY CARE,ADULTS & PUBLIC HEALTH,ADULT SOCIAL CARE,OLDER PEOPLE,OP - OLDER PEOPLE'S SERVICES,DOMICILIARY CARE - THIRD PARTY,13/03/2018,,
OFH1819Q1.A000101,03/04/2018,Youth Graces (UK) Ltd��,Commercial Supplier,"1,158.30",D13027,CHILDREN WITH DISABILITIES FWi,CHILDREN'S SERVICES,CHILDREN'S SERVICES,CHILDREN SAFEGUARDING & ASSESSMENTS,CHILDREN WITH DISABILITIES,DOMICILIARY CARE - THIRD PARTY,13/03/2018,,
OFH1819Q1.A000102,03/04/2018,Youth Graces (UK) Ltd��,Commercial Supplier,"1,530.90",D12532,OP - DOMICILIARY CARE,ADULTS & PUBLIC HEALTH,ADULT SOCIAL CARE,OLDER PEOPLE,OP - OLDER PEOPLE'S SERVICES,DOMICILIARY CARE - THIRD PARTY,13/03/2018,,
OFH1819Q1.A000103,03/04/2018,Youth Graces (UK) Ltd��,Commercial Supplier,765.45,D12532,OP - DOMICILIARY CARE,ADULTS & PUBLIC HEALTH,ADULT SOCIAL CARE,OLDER PEOPLE,OP - OLDER PEOPLE'S SERVICES,DOMICILIARY CARE - THIRD PARTY,14/03/2018,,
OFH1819Q1.A000104,03/04/2018,Youth Graces (UK) Ltd��,Commercial Supplier,919.35,D12532,OP - DOMICILIARY CARE,ADULTS & PUBLIC HEALTH,ADULT SOCIAL CARE,OLDER PEOPLE,OP - OLDER PEOPLE'S SERVICES,DOMICILIARY CARE - THIRD PARTY,14/03/2018,,
OFH1819Q1.A000105,03/04/2018,Youth Graces (UK) Ltd��,Commercial Supplier,595.35,D12532,OP - DOMICILIARY CARE,ADULTS & PUBLIC HEALTH,ADULT SOCIAL CARE,OLDER PEOPLE,OP - OLDER PEOPLE'S SERVICES,DOMICILIARY CARE - THIRD PARTY,13/03/2018,,
OFH1819Q1.A000106,03/04/2018,Youth Graces (UK) Ltd��,Commercial Supplier,627.75,D12532,OP - DOMICILIARY CARE,ADULTS & PUBLIC HEALTH,ADULT SOCIAL CARE,OLDER PEOPLE,OP - OLDER PEOPLE'S SERVICES,DOMICILIARY CARE - THIRD PARTY,14/03/2018,,
OFH1819Q1.A000107,03/04/2018,Youth Graces (UK) Ltd��,Commercial Supplier,510.3,D12532,OP - DOMICILIARY CARE,ADULTS & PUBLIC HEALTH,ADULT SOCIAL CARE,OLDER PEOPLE,OP - OLDER PEOPLE'S SERVICES,DOMICILIARY CARE - THIRD PARTY,13/03/2018,,
OFH1819Q1.A000108,03/04/2018,Youth Graces (UK) Ltd��,Commercial Supplier,"1,360.80",D12532,OP - DOMICILIARY CARE,ADULTS & PUBLIC HEALTH,ADULT SOCIAL CARE,OLDER PEOPLE,OP - OLDER PEOPLE'S SERVICES,DOMICILIARY CARE - THIRD PARTY,13/03/2018,,
OFH1819Q1.A000109,03/04/2018,Youth Graces (UK) Ltd��,Commercial Supplier,680.4,D12332,PD - DOMICILIARY CARE,ADULTS & PUBLIC HEALTH,ADULT SOCIAL CARE,INTEGRATED DISABILITY,INTEGRATED DISABILITY - PD,DOMICILIARY CARE - THIRD PARTY,13/03/2018,,
OFH1819Q1.A000110,03/04/2018,Youth Graces (UK) Ltd��,Commercial Supplier,680.4,D13027,CHILDREN WITH DISABILITIES FWi,CHILDREN'S SERVICES,CHILDREN'S SERVICES,CHILDREN SAFEGUARDING & ASSESSMENTS,CHILDREN WITH DISABILITIES,DOMICILIARY CARE - THIRD PARTY,13/03/2018,,
OFH1819Q1.A000111,03/04/2018,Youth Graces (UK) Ltd��,Commercial Supplier,785.7,D12532,OP - DOMICILIARY CARE,ADULTS & PUBLIC HEALTH,ADULT SOCIAL CARE,OLDER PEOPLE,OP - OLDER PEOPLE'S SERVICES,DOMICILIARY CARE - THIRD PARTY,14/03/2018,,
OFH1819Q1.A000112,03/04/2018,Youth Graces (UK) Ltd��,Commercial Supplier,631.8,D12532,OP - DOMICILIARY CARE,ADULTS & PUBLIC HEALTH,ADULT SOCIAL CARE,OLDER PEOPLE,OP - OLDER PEOPLE'S SERVICES,DOMICILIARY CARE - THIRD PARTY,13/03/2018,,
OFH1819Q1.A000113,03/04/2018,Youth Graces (UK) Ltd��,Commercial Supplier,696.6,D12532,OP - DOMICILIARY CARE,ADULTS & PUBLIC HEALTH,ADULT SOCIAL CARE,OLDER PEOPLE,OP - OLDER PEOPLE'S SERVICES,DOMICILIARY CARE - THIRD PARTY,14/03/2018,,
OFH1819Q1.A000114,03/04/2018,Youth Graces (UK) Ltd��,Commercial Supplier,"1,530.90",D12532,OP - DOMICILIARY CARE,ADULTS & PUBLIC HEALTH,ADULT SOCIAL CARE,OLDER PEOPLE,OP - OLDER PEOPLE'S SERVICES,DOMICILIARY CARE - THIRD PARTY,13/03/2018,,
OFH1819Q1.A000115,03/04/2018,Youth Graces (UK) Ltd��,Commercial Supplier,631.8,D12532,OP - DOMICILIARY CARE,ADULTS & PUBLIC HEALTH,ADULT SOCIAL CARE,OLDER PEOPLE,OP - OLDER PEOPLE'S SERVICES,DOMICILIARY CARE - THIRD PARTY,13/03/2018,,
OFH1819Q1.A000116,03/04/2018,Youth Graces (UK) Ltd��,Commercial Supplier,814.05,D12532,OP - DOMICILIARY CARE,ADULTS & PUBLIC HEALTH,ADULT SOCIAL CARE,OLDER PEOPLE,OP - OLDER PEOPLE'S SERVICES,DOMICILIARY CARE - THIRD PARTY,13/03/2018,,
OFH1819Q1.A000117,03/04/2018,Youth Graces (UK) Ltd��,Commercial Supplier,643.95,D12532,OP - DOMICILIARY CARE,ADULTS & PUBLIC HEALTH,ADULT SOCIAL CARE,OLDER PEOPLE,OP - OLDER PEOPLE'S SERVICES,DOMICILIARY CARE - THIRD PARTY,13/03/2018,,
OFH1819Q1.A000118,03/04/2018,Youth Graces (UK) Ltd��,Commercial Supplier,680.4,D12532,OP - DOMICILIARY CARE,ADULTS & PUBLIC HEALTH,ADULT SOCIAL CARE,OLDER PEOPLE,OP - OLDER PEOPLE'S SERVICES,DOMICILIARY CARE - THIRD PARTY,13/03/2018,,
OFH1819Q1.A000119,03/04/2018,Youth Graces (UK) Ltd��,Commercial Supplier,530.55,D12532,OP - DOMICILIARY CARE,ADULTS & PUBLIC HEALTH,ADULT SOCIAL CARE,OLDER PEOPLE,OP - OLDER PEOPLE'S SERVICES,DOMICILIARY CARE - THIRD PARTY,14/03/2018,,
OFH1819Q1.A000120,03/04/2018,Youth Graces (UK) Ltd��,Commercial Supplier,587.25,D12532,OP - DOMICILIARY CARE,ADULTS & PUBLIC HEALTH,ADULT SOCIAL CARE,OLDER PEOPLE,OP - OLDER PEOPLE'S SERVICES,DOMICILIARY CARE - THIRD PARTY,14/03/2018,,
OFH1819Q1.A000121,03/04/2018,Youth Graces (UK) Ltd��,Commercial Supplier,522.45,D12532,OP - DOMICILIARY CARE,ADULTS & PUBLIC HEALTH,ADULT SOCIAL CARE,OLDER PEOPLE,OP - OLDER PEOPLE'S SERVICES,DOMICILIARY CARE - THIRD PARTY,13/03/2018,,
OFH1819Q1.A000122,03/04/2018,Youth Graces (UK) Ltd��,Commercial Supplier,"1,530.90",D12532,OP - DOMICILIARY CARE,ADULTS & PUBLIC HEALTH,ADULT SOCIAL CARE,OLDER PEOPLE,OP - OLDER PEOPLE'S SERVICES,DOMICILIARY CARE - THIRD PARTY,13/03/2018,,
OFH1819Q1.A000123,03/04/2018,Youth Graces (UK) Ltd��,Commercial Supplier,522.45,D12532,OP - DOMICILIARY CARE,ADULTS & PUBLIC HEALTH,ADULT SOCIAL CARE,OLDER PEOPLE,OP - OLDER PEOPLE'S SERVICES,DOMICILIARY CARE - THIRD PARTY,13/03/2018,,
OFH1819Q1.A000124,03/04/2018,Youth Graces (UK) Ltd��,Commercial Supplier,"1,409.40",D12332,PD - DOMICILIARY CARE,ADULTS & PUBLIC HEALTH,ADULT SOCIAL CARE,INTEGRATED DISABILITY,INTEGRATED DISABILITY - PD,DOMICILIARY CARE - THIRD PARTY,13/03/2018,,
OFH1819Q1.A000125,03/04/2018,Youth Graces (UK) Ltd��,Commercial Supplier,615.6,D12532,OP - DOMICILIARY CARE,ADULTS & PUBLIC HEALTH,ADULT SOCIAL CARE,OLDER PEOPLE,OP - OLDER PEOPLE'S SERVICES,DOMICILIARY CARE - THIRD PARTY,13/03/2018,,
OFH1819Q1.A000126,03/04/2018,Youth Graces (UK) Ltd��,Commercial Supplier,595.35,D12532,OP - DOMICILIARY CARE,ADULTS & PUBLIC HEALTH,ADULT SOCIAL CARE,OLDER PEOPLE,OP - OLDER PEOPLE'S SERVICES,DOMICILIARY CARE - THIRD PARTY,13/03/2018,,
OFH1819Q1.A000127,03/04/2018,Youth Graces (UK) Ltd��,Commercial Supplier,680.4,D12532,OP - DOMICILIARY CARE,ADULTS & PUBLIC HEALTH,ADULT SOCIAL CARE,OLDER PEOPLE,OP - OLDER PEOPLE'S SERVICES,DOMICILIARY CARE - THIRD PARTY,13/03/2018,,
OFH1819Q1.A000128,03/04/2018,Greenvale School��,Grants,"34,600.00",D13157,STATEMENTING COSTS/EHCP,CHILDREN'S SERVICES,EDUCATION & LEARNING,SPECIAL EDUCATIONAL NEEDS,"SPECIAL EDUCATION NEEDS [IBS, TRANSPORT",PAYMENT TO OTHER LOCAL AUTHORITIES,21/03/2018,,
OFH1819Q1.A000129,03/04/2018,Newlands Academy��,Grants,"1,687.25",D13157,STATEMENTING COSTS/EHCP,CHILDREN'S SERVICES,EDUCATION & LEARNING,SPECIAL EDUCATIONAL NEEDS,"SPECIAL EDUCATION NEEDS [IBS, TRANSPORT",PAYMENT TO OTHER LOCAL AUTHORITIES,21/03/2018,,
OFH1819Q1.A000130,03/04/2018,Newlands Academy��,Grants,"57,366.50",D13157,STATEMENTING COSTS/EHCP,CHILDREN'S SERVICES,EDUCATION & LEARNING,SPECIAL EDUCATIONAL NEEDS,"SPECIAL EDUCATION NEEDS [IBS, TRANSPORT",PAYMENT TO OTHER LOCAL AUTHORITIES,21/03/2018,,
OFH1819Q1.A000131,03/04/2018,SV Law��,Legal Services,"2,416.67",D13153,SEN LEGAL,CHILDREN'S SERVICES,EDUCATION & LEARNING,SPECIAL EDUCATIONAL NEEDS,"SPECIAL EDUCATION NEEDS [IBS, TRANSPORT",LEGAL FEES,21/03/2018,,
OFH1819Q1.A000132,03/04/2018,Croydon Council��,Local Authority Services,"16,484.00",D13157,STATEMENTING COSTS/EHCP,CHILDREN'S SERVICES,EDUCATION & LEARNING,SPECIAL EDUCATIONAL NEEDS,"SPECIAL EDUCATION NEEDS [IBS, TRANSPORT",PAYMENT TO OTHER LOCAL AUTHORITIES,21/03/2018,,
OFH1819Q1.A000133,03/04/2018,London Borough of Wandsworth��,Local Authority Services,"324,290.55",D13157,STATEMENTING COSTS/EHCP,CHILDREN'S SERVICES,EDUCATION & LEARNING,SPECIAL EDUCATIONAL NEEDS,"SPECIAL EDUCATION NEEDS [IBS, TRANSPORT",PAYMENT TO OTHER LOCAL AUTHORITIES,21/03/2018,,
OFH1819Q1.A000134,03/04/2018,Westminster City Council��,Local Authority Services,"15,500.00",D14218,ENVIRONMENTAL SUSTAINABILITY,NEIGHBOURHOODS & GROWTH,ENVIRONMENT,NEIGHBOURHOODS,SUSTAINABILITY,CONSULTANCY FEES,09/03/2018,,
OFH1819Q1.A000135,03/04/2018,South London & Maudsley (nhs) Trust��,NHS Bodies,"102,000.00",D12056,PUBLIC HEALTH CHILDRENS,ADULTS & PUBLIC HEALTH,PUBLIC HEALTH,PUBLIC HEALTH- CHILDREN,PUBLIC HEALTH - CHILDREN,PAYMENT TO HEALTH AUTHORITIES,14/03/2018,,
OFH1819Q1.A000136,03/04/2018,Src Transatlantic Limited��,NNDR,"3,878.89",D10000,BALANCE SHEET COST CENTRE,BALANCE SHEET,BALANCE SHEET,BALANCE SHEET,BALANCE SHEET,NNDR/BRS DEBTOR,20/03/2018,,
OFH1819Q1.A000137,03/04/2018,Yashmin Properties Ltd��,NNDR,"4,204.12",D10000,BALANCE SHEET COST CENTRE,BALANCE SHEET,BALANCE SHEET,BALANCE SHEET,BALANCE SHEET,NNDR/BRS DEBTOR,20/03/2018,,
OFH1819Q1.A000138,03/04/2018,Dulwich College��,Non Commercial Supplier,"3,018.60",D13155,INDEPENDENT SCHOOLS,CHILDREN'S SERVICES,EDUCATION & LEARNING,SPECIAL EDUCATIONAL NEEDS,"SPECIAL EDUCATION NEEDS [IBS, TRANSPORT",PRIVATE CONTRACTORS PAYMENT - OTHER,21/03/2018,,
OFH1819Q1.A000139,03/04/2018,Gas Contract Services Ltd��,Non Commercial Supplier,"7,082.00",D18074,PLANNED MAINTENANCE (CENTRAL),NEIGHBOURHOODS & GROWTH (HRA),STRATEGIC PROGRAMMES (HRA),HOUSING CAPITAL & ASSET MANAGEMENT,TECHNICAL SERVICES,PRIVATE CONTRACTORS PAYMENT - OTHER,16/03/2018,,
OFH1819Q1.A000140,03/04/2018,Infinity Print & Embroidery Ltd��,Non Commercial Supplier,"1,189.50",D14785,LONDON YOUTH GAMES,NEIGHBOURHOODS & GROWTH,ENVIRONMENT,ENVIRONMENT,CULTURE AND COMMUNITIES,PHOTOCOPYING,13/03/2018,,
OFH1819Q1.A000141,03/04/2018,Sandwell Metropolitan Borough Council��,Non Commercial Supplier,"14,429.92",D10000,BALANCE SHEET COST CENTRE,BALANCE SHEET,BALANCE SHEET,BALANCE SHEET,BALANCE SHEET,VAT DEBTOR (INPUT TAX),15/03/2018,,
OFH1819Q1.A000142,03/04/2018,St John's & St Clement's C of E Primary School��,Non Commercial Supplier,"4,171.98",D13157,STATEMENTING COSTS/EHCP,CHILDREN'S SERVICES,EDUCATION & LEARNING,SPECIAL EDUCATIONAL NEEDS,"SPECIAL EDUCATION NEEDS [IBS, TRANSPORT",PAYMENT TO OTHER LOCAL AUTHORITIES,24/03/2018,,
OFH1819Q1.A000143,03/04/2018,St John's & St Clement's C of E Primary School��,Non Commercial Supplier,"4,171.98",D13157,STATEMENTING COSTS/EHCP,CHILDREN'S SERVICES,EDUCATION & LEARNING,SPECIAL EDUCATIONAL NEEDS,"SPECIAL EDUCATION NEEDS [IBS, TRANSPORT",PAYMENT TO OTHER LOCAL AUTHORITIES,24/03/2018,,
OFH1819Q1.A000144,03/04/2018,St Nicholas School��,Non Commercial Supplier,"4,381.67",D13157,STATEMENTING COSTS/EHCP,CHILDREN'S SERVICES,EDUCATION & LEARNING,SPECIAL EDUCATIONAL NEEDS,"SPECIAL EDUCATION NEEDS [IBS, TRANSPORT",PAYMENT TO OTHER LOCAL AUTHORITIES,24/03/2018,,
OFH1819Q1.A000145,03/04/2018,Valuation Office Agency��,Non Commercial Supplier,650,D19998,CAPITAL COST CENTRE,,,,0,PROFESSIONAL SERVICES - GENERAL,20/03/2018,,
OFH1819Q1.A000147,03/04/2018,HM Revenue & Customs��,Tax Authority,818.18,D10000,BALANCE SHEET COST CENTRE,BALANCE SHEET,BALANCE SHEET,BALANCE SHEET,BALANCE SHEET,CONSTRUCTION INDUSTRY TAX (CIS),26/03/2018,,
OFH1819Q1.A000148,03/04/2018,Drive Forward Foundation��,Voluntary Organisation,"30,000.00",D14557,NHB - SKILLS FOR JOBS,NEIGHBOURHOODS & GROWTH,"GROWTH, PLANNING & EMPLOYMENT","WELFARE, EMPLOYMENT & SKILLS",NEW HOMES BONUS,PRIVATE CONTRACTORS PAYMENT - OTHER,04/03/2018,,
OFH1819Q1.A000149,04/04/2018,Pilgrims Friend Society��,Carers,"7,435.61",D12528,OP-RESIDENTIAL CARE,ADULTS & PUBLIC HEALTH,ADULT SOCIAL CARE,OLDER PEOPLE,OP - OLDER PEOPLE'S SERVICES,RESIDENTIAL CARE INCOME,19/03/2018,,
OFH1819Q1.A000150,04/04/2018,229 Mitcham Lane Ltd��,Commercial Supplier,"8,184.72",D12274,MH - RESIDENTIAL,ADULTS & PUBLIC HEALTH,ADULT SOCIAL CARE,MENTAL HEALTH,ADULTS WITH MENTAL HEALTH NEEDS,RESIDENTIAL PLACEMENTS - PRIVATE CONTRACTORS PAYMENT,19/03/2018,,
OFH1819Q1.A000151,04/04/2018,Age UK Lambeth��,Commercial Supplier,"1,073.00",D10524,Emergency Support Scheme,CORPORATE RESOURCES,BUSINESS & CUSTOMER SERVICES,REVENUE & BENEFITS,HOUSING BENEFIT,PRIVATE CONTRACTORS PAYMENT - OTHER,08/03/2018,,
OFH1819Q1.A000152,04/04/2018,Assisi Community Care��,Commercial Supplier,590.14,D12274,MH - RESIDENTIAL,ADULTS & PUBLIC HEALTH,ADULT SOCIAL CARE,MENTAL HEALTH,ADULTS WITH MENTAL HEALTH NEEDS,RESIDENTIAL CARE INCOME,19/03/2018,,
OFH1819Q1.A000153,04/04/2018,Canon (UK) Ltd��,Commercial Supplier,"1,650.00",D10226,CONTRACTS,CORPORATE RESOURCES,BUSINESS TRANSFORMATION,BUSINESS TRANSFORMATION,CLIENT,PHOTOCOPYING,10/03/2018,,
OFH1819Q1.A000154,04/04/2018,Cognithan Ltd��,Commercial Supplier,"-3,400.00",D12276,MH - SUPPORTED HOUSING,ADULTS & PUBLIC HEALTH,ADULT SOCIAL CARE,MENTAL HEALTH,ADULTS WITH MENTAL HEALTH NEEDS,SUPPORTED OTHER ACCOMMODATION - PRIVATE CONTRACTORS PAYMENT,19/03/2018,,
OFH1819Q1.A000155,04/04/2018,Cognithan Ltd��,Commercial Supplier,"3,400.00",D12276,MH - SUPPORTED HOUSING,ADULTS & PUBLIC HEALTH,ADULT SOCIAL CARE,MENTAL HEALTH,ADULTS WITH MENTAL HEALTH NEEDS,SUPPORTED OTHER ACCOMMODATION - PRIVATE CONTRACTORS PAYMENT,19/03/2018,,
OFH1819Q1.A000156,04/04/2018,Eb7 Sustainability Ltd��,Commercial Supplier,"7,750.00",D14560,WATERLOO/STREATHAM,NEIGHBOURHOODS & GROWTH,"GROWTH, PLANNING & EMPLOYMENT",INVESTMENT & GROWTH,NEIGHBOURHOOD REGENERATION,CONSULTANCY FEES,25/01/2018,,
OFH1819Q1.A000157,04/04/2018,Essence2care��,Commercial Supplier,"1,155.32",D12279,MH - DOMICILIARY CARE,ADULTS & PUBLIC HEALTH,ADULT SOCIAL CARE,MENTAL HEALTH,ADULTS WITH MENTAL HEALTH NEEDS,DOMICILIARY CARE - THIRD PARTY,19/03/2018,,
OFH1819Q1.A000158,04/04/2018,Gillingham Football Club Community Trust School��,Commercial Supplier,"1,169.22",D13412,VIRTUAL SCHOOLS - PUPIL PREMIUM,CHILDREN'S SERVICES,EDUCATION & LEARNING,SCHOOL & EDUCATION IMPROVEMENT SERVICE,EDUCATION STRATEGY,PROFESSIONAL SERVICES - GENERAL,10/03/2018,,
OFH1819Q1.A000159,04/04/2018,HC One of a Kind��,Commercial Supplier,"18,750.99",D12529,OP-NURSING CARE,ADULTS & PUBLIC HEALTH,ADULT SOCIAL CARE,OLDER PEOPLE,OP - OLDER PEOPLE'S SERVICES,NURSING HOMES - PRIVATE CONTRACTORS PAYMENT,19/03/2018,,
OFH1819Q1.A000160,04/04/2018,inStreatham Ltd��,Commercial Supplier,"1,146.59",D10000,BALANCE SHEET COST CENTRE,BALANCE SHEET,BALANCE SHEET,BALANCE SHEET,BALANCE SHEET,VAT DEBTOR (INPUT TAX),13/03/2018,,
OFH1819Q1.A000161,04/04/2018,JCA Global Ltd��,Commercial Supplier,"2,050.00",D14557,NHB - SKILLS FOR JOBS,NEIGHBOURHOODS & GROWTH,"GROWTH, PLANNING & EMPLOYMENT","WELFARE, EMPLOYMENT & SKILLS",NEW HOMES BONUS,PRIVATE CONTRACTORS PAYMENT - OTHER,15/03/2018,,
OFH1819Q1.A000162,04/04/2018,Jenx Ltd��,Commercial Supplier,885.5,D13159,SPECIALIST EQUIPMENT,CHILDREN'S SERVICES,EDUCATION & LEARNING,SPECIAL EDUCATIONAL NEEDS,"SPECIAL EDUCATION NEEDS [IBS, TRANSPORT",SPECIALIST EQUIPMENT FOR SERVICE PROVISION,04/04/2018,,
OFH1819Q1.A000163,04/04/2018,Koru Medical Ltd��,Commercial Supplier,"1,914.89",D12366,DOLS ASSESSMENTS,ADULTS & PUBLIC HEALTH,ADULT SOCIAL CARE,OTHER - ADULTS,QUALITY & SAFEGUARDING ADULTS,PAYMENT TO HEALTH AUTHORITIES,08/03/2018,,
OFH1819Q1.A000164,04/04/2018,Maccreanor Lavington Ltd��,Commercial Supplier,"20,000.00",D14584,NORWOOD KIBA STRATEGY,NEIGHBOURHOODS & GROWTH,"GROWTH, PLANNING & EMPLOYMENT",INVESTMENT & GROWTH,VAUXHALL NORWOOD STOCKWELL PROJECTS,"MAINTENANCE - EQUIPMENT, FURNITURE AND MATERIALS",07/03/2018,,
OFH1819Q1.A000165,04/04/2018,Mears Ltd��,Commercial Supplier,"674,196.10",D19998,CAPITAL COST CENTRE,,,,0,FACILITIES MANAGEMENT,13/03/2018,,
OFH1819Q1.A000166,04/04/2018,Mears Ltd��,Commercial Supplier,"48,842.47",D18113,VOIDS - SHORT CYCLE - REVENUE (SOUTH),NEIGHBOURHOODS & GROWTH (HRA),HOUSING SERVICES (HRA),HOUSING MANAGEMENT - REPAIRS & MAINTENAN,HOUSING MANAGEMENT - REPAIRS AND MAINTEN,RESPONSIVE REPAIRS - BUILDING,12/03/2018,,
OFH1819Q1.A000167,04/04/2018,Mercer Ltd��,Commercial Supplier,"11,500.00",D02500,COMMON FUND OPERATIONS,Pensions All CCs,Pensions All CCs,Pensions All CCs,Pensions All CCs,PROFESSIONAL SERVICES - GENERAL,22/03/2018,,
OFH1819Q1.A000168,04/04/2018,Morrison Facilities Services Ltd��,Commercial Supplier,"400,516.88",D18102,AREA RESPONSIVE REPAIRS MANAGER (CENTRAL,NEIGHBOURHOODS & GROWTH (HRA),HOUSING SERVICES (HRA),HOUSING MANAGEMENT - REPAIRS & MAINTENAN,HOUSING MANAGEMENT - REPAIRS AND MAINTEN,RESPONSIVE REPAIRS - MECHANICAL AND ELECTRICAL,14/03/2018,,
OFH1819Q1.A000169,04/04/2018,Newham House Supporting People Ltd��,Commercial Supplier,"11,081.58",D12276,MH - SUPPORTED HOUSING,ADULTS & PUBLIC HEALTH,ADULT SOCIAL CARE,MENTAL HEALTH,ADULTS WITH MENTAL HEALTH NEEDS,SUPPORTED OTHER ACCOMMODATION - PRIVATE CONTRACTORS PAYMENT,19/03/2018,,
OFH1819Q1.A000170,04/04/2018,Rotamol Ltd��,Commercial Supplier,"11,047.04",D12054,PUBLIC HEALTH - HEALTH IMPROVEMENT,ADULTS & PUBLIC HEALTH,PUBLIC HEALTH,PUBLIC HEALTH - ADULTS,PUBLIC HEALTH - ADULTS,PAYMENT TO HEALTH AUTHORITIES,09/03/2018,,
OFH1819Q1.A000171,04/04/2018,RSM UK Tax and Accounting Ltd��,Commercial Supplier,"1,650.00",D10123,STRATEGIC FINANCE,CORPORATE RESOURCES,FINANCE,FINANCIAL PLANNING AND MANAGEMENT,FINANCIAL PLANNING AND MANAGEMENT,PROFESSIONAL SERVICES - GENERAL,15/03/2018,,
OFH1819Q1.A000172,04/04/2018,RSM UK Tax and Accounting Ltd��,Commercial Supplier,"-1,650.00",D10123,STRATEGIC FINANCE,CORPORATE RESOURCES,FINANCE,FINANCIAL PLANNING AND MANAGEMENT,FINANCIAL PLANNING AND MANAGEMENT,PROFESSIONAL SERVICES - GENERAL,15/03/2018,,
OFH1819Q1.A000173,04/04/2018,St Mungo's��,Commercial Supplier,"25,000.00",D18410,CENTRAL INCOME TEAM (D03100),NEIGHBOURHOODS & GROWTH (HRA),HOUSING SERVICES (HRA),HOUSING MANAGEMENT SERVICES,CENTRAL INCOME TEAM,PRIVATE CONTRACTORS PAYMENT - OTHER,12/03/2018,,
OFH1819Q1.A000174,04/04/2018,Thornton Lodge Ltd��,Commercial Supplier,"6,994.29",D12274,MH - RESIDENTIAL,ADULTS & PUBLIC HEALTH,ADULT SOCIAL CARE,MENTAL HEALTH,ADULTS WITH MENTAL HEALTH NEEDS,RESIDENTIAL PLACEMENTS - PRIVATE CONTRACTORS PAYMENT,19/03/2018,,
OFH1819Q1.A000175,04/04/2018,We Rise Ltd,Commercial Supplier,"7,040.00",D14502,ECONOMIC DEVELOPMENT - S106 EMPLOYMENT AND JCU PROJECTS,NEIGHBOURHOODS & GROWTH,"GROWTH, PLANNING & EMPLOYMENT","WELFARE, EMPLOYMENT & SKILLS",S106 EMPLOYMENT,ARTS AND LEISURE COSTS,14/03/2018,,
OFH1819Q1.A000176,04/04/2018,County Private Client Ltd��,Non Commercial Supplier,"2,000.00",D14164,LETTINGS AND LANDLORDS SUPPORT,NEIGHBOURHOODS & GROWTH,HOUSING SERVICES,HOUSING NEEDS,HOUSING OPTIONS - GF,CONSULTANCY FEES,24/03/2018,,
OFH1819Q1.A000177,04/04/2018,*******,,"1,167.77",D02300,ADMINISTRATIVE BODY - London Borough of Lambeth,Pensions All CCs,Pensions All CCs,Pensions All CCs,Pensions All CCs,LUMP SUM DEATH GRANTS,22/03/2018,,
OFH1819Q1.A000178,05/04/2018,*******,CARERS,-593.47,D12531,OP - DIRECT PAYMENTS,ADULTS & PUBLIC HEALTH,ADULT SOCIAL CARE,OLDER PEOPLE,OP - OLDER PEOPLE'S SERVICES,FAIRER CHARGING INCOME,,03/04/2018,
OFH1819Q1.A000179,05/04/2018,*******,CARERS,"2,786.20",D12531,OP - DIRECT PAYMENTS,ADULTS & PUBLIC HEALTH,ADULT SOCIAL CARE,OLDER PEOPLE,OP - OLDER PEOPLE'S SERVICES,DIRECT PAYMENTS,,03/04/2018,
OFH1819Q1.A000184,05/04/2018,Acmed Services Ltd��,Commercial Supplier,"4,082.32",D12366,DOLS ASSESSMENTS,ADULTS & PUBLIC HEALTH,ADULT SOCIAL CARE,OTHER - ADULTS,QUALITY & SAFEGUARDING ADULTS,PRIVATE CONTRACTORS PAYMENT - OTHER,04/04/2018,,
OFH1819Q1.A000185,05/04/2018,Acmed Services Ltd��,Commercial Supplier,"4,353.60",D12366,DOLS ASSESSMENTS,ADULTS & PUBLIC HEALTH,ADULT SOCIAL CARE,OTHER - ADULTS,QUALITY & SAFEGUARDING ADULTS,PRIVATE CONTRACTORS PAYMENT - OTHER,04/04/2018,,
OFH1819Q1.A000186,05/04/2018,Acmed Services Ltd��,Commercial Supplier,"2,207.52",D12366,DOLS ASSESSMENTS,ADULTS & PUBLIC HEALTH,ADULT SOCIAL CARE,OTHER - ADULTS,QUALITY & SAFEGUARDING ADULTS,PRIVATE CONTRACTORS PAYMENT - OTHER,04/04/2018,,
OFH1819Q1.A000187,05/04/2018,Allied Healthcare (UK) Ltd,COMMERCIAL SUPPLIER,"1,025.05",D12532,OP - DOMICILIARY CARE,ADULTS & PUBLIC HEALTH,ADULT SOCIAL CARE,OLDER PEOPLE,OP - OLDER PEOPLE'S SERVICES,DOMICILIARY CARE - THIRD PARTY,,03/04/2018,
OFH1819Q1.A000188,05/04/2018,Allied Healthcare (UK) Ltd,COMMERCIAL SUPPLIER,697.2,D12279,MH - DOMICILIARY CARE,ADULTS & PUBLIC HEALTH,ADULT SOCIAL CARE,MENTAL HEALTH,ADULTS WITH MENTAL HEALTH NEEDS,DOMICILIARY CARE - THIRD PARTY,,03/04/2018,
OFH1819Q1.A000189,05/04/2018,Allied Healthcare (UK) Ltd,COMMERCIAL SUPPLIER,"10,003.28",D12332,PD - DOMICILIARY CARE,ADULTS & PUBLIC HEALTH,ADULT SOCIAL CARE,INTEGRATED DISABILITY,INTEGRATED DISABILITY - PD,DOMICILIARY CARE - THIRD PARTY,,03/04/2018,
OFH1819Q1.A000190,05/04/2018,Allied Healthcare (UK) Ltd,COMMERCIAL SUPPLIER,"2,124.80",D12229,DOMICILIARY CARE LD,ADULTS & PUBLIC HEALTH,ADULT SOCIAL CARE,INTEGRATED DISABILITY,INTEGRATED DISABILITY - ALD,DOMICILIARY CARE - THIRD PARTY,,03/04/2018,
OFH1819Q1.A000191,05/04/2018,Allied Healthcare (UK) Ltd,COMMERCIAL SUPPLIER,"2,257.60",D12229,DOMICILIARY CARE LD,ADULTS & PUBLIC HEALTH,ADULT SOCIAL CARE,INTEGRATED DISABILITY,INTEGRATED DISABILITY - ALD,DOMICILIARY CARE - THIRD PARTY,,03/04/2018,
OFH1819Q1.A000192,05/04/2018,Allied Healthcare (UK) Ltd,COMMERCIAL SUPPLIER,"2,257.60",D12229,DOMICILIARY CARE LD,ADULTS & PUBLIC HEALTH,ADULT SOCIAL CARE,INTEGRATED DISABILITY,INTEGRATED DISABILITY - ALD,DOMICILIARY CARE - THIRD PARTY,,03/04/2018,
OFH1819Q1.A000193,05/04/2018,Allied Healthcare (UK) Ltd,COMMERCIAL SUPPLIER,"2,133.10",D12229,DOMICILIARY CARE LD,ADULTS & PUBLIC HEALTH,ADULT SOCIAL CARE,INTEGRATED DISABILITY,INTEGRATED DISABILITY - ALD,DOMICILIARY CARE - THIRD PARTY,,03/04/2018,
OFH1819Q1.A000194,05/04/2018,Allied Healthcare (UK) Ltd,COMMERCIAL SUPPLIER,"11,158.56",D12332,PD - DOMICILIARY CARE,ADULTS & PUBLIC HEALTH,ADULT SOCIAL CARE,INTEGRATED DISABILITY,INTEGRATED DISABILITY - PD,DOMICILIARY CARE - THIRD PARTY,,03/04/2018,
OFH1819Q1.A000195,05/04/2018,Allied Healthcare (UK) Ltd,COMMERCIAL SUPPLIER,"1,477.40",D12279,MH - DOMICILIARY CARE,ADULTS & PUBLIC HEALTH,ADULT SOCIAL CARE,MENTAL HEALTH,ADULTS WITH MENTAL HEALTH NEEDS,DOMICILIARY CARE - THIRD PARTY,,03/04/2018,
OFH1819Q1.A000196,05/04/2018,Allied Healthcare (UK) Ltd,COMMERCIAL SUPPLIER,871.5,D12532,OP - DOMICILIARY CARE,ADULTS & PUBLIC HEALTH,ADULT SOCIAL CARE,OLDER PEOPLE,OP - OLDER PEOPLE'S SERVICES,DOMICILIARY CARE - THIRD PARTY,,03/04/2018,
OFH1819Q1.A000197,05/04/2018,Allied Healthcare (UK) Ltd,COMMERCIAL SUPPLIER,"1,083.15",D12279,MH - DOMICILIARY CARE,ADULTS & PUBLIC HEALTH,ADULT SOCIAL CARE,MENTAL HEALTH,ADULTS WITH MENTAL HEALTH NEEDS,DOMICILIARY CARE - THIRD PARTY,,03/04/2018,
OFH1819Q1.A000198,05/04/2018,Allied Healthcare (UK) Ltd,COMMERCIAL SUPPLIER,"10,001.50",D12332,PD - DOMICILIARY CARE,ADULTS & PUBLIC HEALTH,ADULT SOCIAL CARE,INTEGRATED DISABILITY,INTEGRATED DISABILITY - PD,DOMICILIARY CARE - THIRD PARTY,,03/04/2018,
OFH1819Q1.A000199,05/04/2018,Allied Healthcare (UK) Ltd,COMMERCIAL SUPPLIER,"2,104.05",D12532,OP - DOMICILIARY CARE,ADULTS & PUBLIC HEALTH,ADULT SOCIAL CARE,OLDER PEOPLE,OP - OLDER PEOPLE'S SERVICES,DOMICILIARY CARE - THIRD PARTY,,03/04/2018,
OFH1819Q1.A000200,05/04/2018,Allied Healthcare (UK) Ltd,COMMERCIAL SUPPLIER,"1,045.80",D12532,OP - DOMICILIARY CARE,ADULTS & PUBLIC HEALTH,ADULT SOCIAL CARE,OLDER PEOPLE,OP - OLDER PEOPLE'S SERVICES,DOMICILIARY CARE - THIRD PARTY,,03/04/2018,
OFH1819Q1.A000201,05/04/2018,Allied Healthcare (UK) Ltd,COMMERCIAL SUPPLIER,"1,045.80",D12532,OP - DOMICILIARY CARE,ADULTS & PUBLIC HEALTH,ADULT SOCIAL CARE,OLDER PEOPLE,OP - OLDER PEOPLE'S SERVICES,DOMICILIARY CARE - THIRD PARTY,,03/04/2018,
OFH1819Q1.A000202,05/04/2018,Allied Healthcare (UK) Ltd,COMMERCIAL SUPPLIER,"1,477.40",D12279,MH - DOMICILIARY CARE,ADULTS & PUBLIC HEALTH,ADULT SOCIAL CARE,MENTAL HEALTH,ADULTS WITH MENTAL HEALTH NEEDS,DOMICILIARY CARE - THIRD PARTY,,03/04/2018,
OFH1819Q1.A000203,05/04/2018,Allied Healthcare (UK) Ltd,COMMERCIAL SUPPLIER,896.4,D12532,OP - DOMICILIARY CARE,ADULTS & PUBLIC HEALTH,ADULT SOCIAL CARE,OLDER PEOPLE,OP - OLDER PEOPLE'S SERVICES,DOMICILIARY CARE - THIRD PARTY,,03/04/2018,
OFH1819Q1.A000204,05/04/2018,Allied Healthcare (UK) Ltd,COMMERCIAL SUPPLIER,"1,079.00",D12279,MH - DOMICILIARY CARE,ADULTS & PUBLIC HEALTH,ADULT SOCIAL CARE,MENTAL HEALTH,ADULTS WITH MENTAL HEALTH NEEDS,DOMICILIARY CARE - THIRD PARTY,,03/04/2018,
OFH1819Q1.A000205,05/04/2018,Allied Healthcare (UK) Ltd,COMMERCIAL SUPPLIER,"10,001.50",D12332,PD - DOMICILIARY CARE,ADULTS & PUBLIC HEALTH,ADULT SOCIAL CARE,INTEGRATED DISABILITY,INTEGRATED DISABILITY - PD,DOMICILIARY CARE - THIRD PARTY,,03/04/2018,
OFH1819Q1.A000206,05/04/2018,Allied Healthcare (UK) Ltd,COMMERCIAL SUPPLIER,672.3,D12279,MH - DOMICILIARY CARE,ADULTS & PUBLIC HEALTH,ADULT SOCIAL CARE,MENTAL HEALTH,ADULTS WITH MENTAL HEALTH NEEDS,DOMICILIARY CARE - THIRD PARTY,,03/04/2018,
OFH1819Q1.A000207,05/04/2018,Allied Healthcare (UK) Ltd,COMMERCIAL SUPPLIER,"1,394.40",D12532,OP - DOMICILIARY CARE,ADULTS & PUBLIC HEALTH,ADULT SOCIAL CARE,OLDER PEOPLE,OP - OLDER PEOPLE'S SERVICES,DOMICILIARY CARE - THIRD PARTY,,03/04/2018,
OFH1819Q1.A000208,05/04/2018,Allied Healthcare (UK) Ltd,COMMERCIAL SUPPLIER,"11,156.88",D12332,PD - DOMICILIARY CARE,ADULTS & PUBLIC HEALTH,ADULT SOCIAL CARE,INTEGRATED DISABILITY,INTEGRATED DISABILITY - PD,DOMICILIARY CARE - THIRD PARTY,,03/04/2018,
OFH1819Q1.A000209,05/04/2018,Allied Healthcare (UK) Ltd,COMMERCIAL SUPPLIER,"1,477.40",D12279,MH - DOMICILIARY CARE,ADULTS & PUBLIC HEALTH,ADULT SOCIAL CARE,MENTAL HEALTH,ADULTS WITH MENTAL HEALTH NEEDS,DOMICILIARY CARE - THIRD PARTY,,03/04/2018,
OFH1819Q1.A000210,05/04/2018,Allied Healthcare (UK) Ltd,COMMERCIAL SUPPLIER,896.4,D12532,OP - DOMICILIARY CARE,ADULTS & PUBLIC HEALTH,ADULT SOCIAL CARE,OLDER PEOPLE,OP - OLDER PEOPLE'S SERVICES,DOMICILIARY CARE - THIRD PARTY,,03/04/2018,
OFH1819Q1.A000211,05/04/2018,Allied Healthcare (UK) Ltd,COMMERCIAL SUPPLIER,"1,070.70",D12279,MH - DOMICILIARY CARE,ADULTS & PUBLIC HEALTH,ADULT SOCIAL CARE,MENTAL HEALTH,ADULTS WITH MENTAL HEALTH NEEDS,DOMICILIARY CARE - THIRD PARTY,,03/04/2018,
OFH1819Q1.A000212,05/04/2018,Allied Healthcare (UK) Ltd,COMMERCIAL SUPPLIER,"10,225.60",D12332,PD - DOMICILIARY CARE,ADULTS & PUBLIC HEALTH,ADULT SOCIAL CARE,INTEGRATED DISABILITY,INTEGRATED DISABILITY - PD,DOMICILIARY CARE - THIRD PARTY,,03/04/2018,
OFH1819Q1.A000213,05/04/2018,Allied Healthcare (UK) Ltd,COMMERCIAL SUPPLIER,697.2,D12279,MH - DOMICILIARY CARE,ADULTS & PUBLIC HEALTH,ADULT SOCIAL CARE,MENTAL HEALTH,ADULTS WITH MENTAL HEALTH NEEDS,DOMICILIARY CARE - THIRD PARTY,,03/04/2018,
OFH1819Q1.A000214,05/04/2018,Allied Healthcare (UK) Ltd,COMMERCIAL SUPPLIER,"11,155.20",D12332,PD - DOMICILIARY CARE,ADULTS & PUBLIC HEALTH,ADULT SOCIAL CARE,INTEGRATED DISABILITY,INTEGRATED DISABILITY - PD,DOMICILIARY CARE - THIRD PARTY,,03/04/2018,
OFH1819Q1.A000215,05/04/2018,Allied Healthcare (UK) Ltd,COMMERCIAL SUPPLIER,"1,435.90",D12279,MH - DOMICILIARY CARE,ADULTS & PUBLIC HEALTH,ADULT SOCIAL CARE,MENTAL HEALTH,ADULTS WITH MENTAL HEALTH NEEDS,DOMICILIARY CARE - THIRD PARTY,,03/04/2018,
OFH1819Q1.A000216,05/04/2018,Allied Healthcare (UK) Ltd,COMMERCIAL SUPPLIER,896.4,D12532,OP - DOMICILIARY CARE,ADULTS & PUBLIC HEALTH,ADULT SOCIAL CARE,OLDER PEOPLE,OP - OLDER PEOPLE'S SERVICES,DOMICILIARY CARE - THIRD PARTY,,03/04/2018,
OFH1819Q1.A000217,05/04/2018,Allied Healthcare (UK) Ltd,COMMERCIAL SUPPLIER,"1,087.30",D12279,MH - DOMICILIARY CARE,ADULTS & PUBLIC HEALTH,ADULT SOCIAL CARE,MENTAL HEALTH,ADULTS WITH MENTAL HEALTH NEEDS,DOMICILIARY CARE - THIRD PARTY,,03/04/2018,
OFH1819Q1.A000218,05/04/2018,Allied Healthcare (UK) Ltd,COMMERCIAL SUPPLIER,"9,926.80",D12332,PD - DOMICILIARY CARE,ADULTS & PUBLIC HEALTH,ADULT SOCIAL CARE,INTEGRATED DISABILITY,INTEGRATED DISABILITY - PD,DOMICILIARY CARE - THIRD PARTY,,03/04/2018,
OFH1819Q1.A000219,05/04/2018,Allied Healthcare (UK) Ltd,COMMERCIAL SUPPLIER,697.2,D12279,MH - DOMICILIARY CARE,ADULTS & PUBLIC HEALTH,ADULT SOCIAL CARE,MENTAL HEALTH,ADULTS WITH MENTAL HEALTH NEEDS,DOMICILIARY CARE - THIRD PARTY,,03/04/2018,
OFH1819Q1.A000220,05/04/2018,Allied Healthcare (UK) Ltd,COMMERCIAL SUPPLIER,"1,045.80",D12532,OP - DOMICILIARY CARE,ADULTS & PUBLIC HEALTH,ADULT SOCIAL CARE,OLDER PEOPLE,OP - OLDER PEOPLE'S SERVICES,DOMICILIARY CARE - THIRD PARTY,,03/04/2018,
OFH1819Q1.A000221,05/04/2018,Allied Healthcare (UK) Ltd,COMMERCIAL SUPPLIER,"1,850.90",D12332,PD - DOMICILIARY CARE,ADULTS & PUBLIC HEALTH,ADULT SOCIAL CARE,INTEGRATED DISABILITY,INTEGRATED DISABILITY - PD,DOMICILIARY CARE - THIRD PARTY,,03/04/2018,
OFH1819Q1.A000222,05/04/2018,Allied Healthcare (UK) Ltd,COMMERCIAL SUPPLIER,730.4,D12332,PD - DOMICILIARY CARE,ADULTS & PUBLIC HEALTH,ADULT SOCIAL CARE,INTEGRATED DISABILITY,INTEGRATED DISABILITY - PD,DOMICILIARY CARE - THIRD PARTY,,03/04/2018,
OFH1819Q1.A000223,05/04/2018,Allied Healthcare (UK) Ltd,COMMERCIAL SUPPLIER,581,D12532,OP - DOMICILIARY CARE,ADULTS & PUBLIC HEALTH,ADULT SOCIAL CARE,OLDER PEOPLE,OP - OLDER PEOPLE'S SERVICES,DOMICILIARY CARE - THIRD PARTY,,03/04/2018,
OFH1819Q1.A000224,05/04/2018,Allied Healthcare (UK) Ltd,COMMERCIAL SUPPLIER,"1,726.40",D12532,OP - DOMICILIARY CARE,ADULTS & PUBLIC HEALTH,ADULT SOCIAL CARE,OLDER PEOPLE,OP - OLDER PEOPLE'S SERVICES,DOMICILIARY CARE - THIRD PARTY,,03/04/2018,
OFH1819Q1.A000225,05/04/2018,Allied Healthcare (UK) Ltd,COMMERCIAL SUPPLIER,813.4,D12532,OP - DOMICILIARY CARE,ADULTS & PUBLIC HEALTH,ADULT SOCIAL CARE,OLDER PEOPLE,OP - OLDER PEOPLE'S SERVICES,DOMICILIARY CARE - THIRD PARTY,,03/04/2018,
OFH1819Q1.A000226,05/04/2018,Allied Healthcare (UK) Ltd,COMMERCIAL SUPPLIER,813.4,D12532,OP - DOMICILIARY CARE,ADULTS & PUBLIC HEALTH,ADULT SOCIAL CARE,OLDER PEOPLE,OP - OLDER PEOPLE'S SERVICES,DOMICILIARY CARE - THIRD PARTY,,03/04/2018,
OFH1819Q1.A000227,05/04/2018,Apetito Ltd,COMMERCIAL SUPPLIER,-447,D12333,PD - MEALS ON WHEELS,ADULTS & PUBLIC HEALTH,ADULT SOCIAL CARE,INTEGRATED DISABILITY,INTEGRATED DISABILITY - PD,ADULT PAID MEALS INCOME,,03/04/2018,
OFH1819Q1.A000228,05/04/2018,Apetito Ltd,COMMERCIAL SUPPLIER,"2,652.26",D12333,PD - MEALS ON WHEELS,ADULTS & PUBLIC HEALTH,ADULT SOCIAL CARE,INTEGRATED DISABILITY,INTEGRATED DISABILITY - PD,MEALS ON WHEELS - PRIVATE CONT,,03/04/2018,
OFH1819Q1.A000229,05/04/2018,Apetito Ltd,COMMERCIAL SUPPLIER,"2,374.19",D12333,PD - MEALS ON WHEELS,ADULTS & PUBLIC HEALTH,ADULT SOCIAL CARE,INTEGRATED DISABILITY,INTEGRATED DISABILITY - PD,MEALS ON WHEELS - PRIVATE CONT,,03/04/2018,
OFH1819Q1.A000230,05/04/2018,Apetito Ltd,COMMERCIAL SUPPLIER,-486,D12333,PD - MEALS ON WHEELS,ADULTS & PUBLIC HEALTH,ADULT SOCIAL CARE,INTEGRATED DISABILITY,INTEGRATED DISABILITY - PD,ADULT PAID MEALS INCOME,,03/04/2018,
OFH1819Q1.A000231,05/04/2018,Apetito Ltd,COMMERCIAL SUPPLIER,-81,D12280,MH - MEALS ON WHEELS,ADULTS & PUBLIC HEALTH,ADULT SOCIAL CARE,MENTAL HEALTH,ADULTS WITH MENTAL HEALTH NEEDS,ADULT PAID MEALS INCOME,,03/04/2018,
OFH1819Q1.A000232,05/04/2018,Apetito Ltd,COMMERCIAL SUPPLIER,672.3,D12280,MH - MEALS ON WHEELS,ADULTS & PUBLIC HEALTH,ADULT SOCIAL CARE,MENTAL HEALTH,ADULTS WITH MENTAL HEALTH NEEDS,MEALS ON WHEELS - PRIVATE CONT,,03/04/2018,
OFH1819Q1.A000233,05/04/2018,Apex Lift & Escalator Engineers Ltd��,Commercial Supplier,"562,894.61",D19998,CAPITAL COST CENTRE,,,,0,CYCLICAL/PLANNED MAINTENANCE - MECHANICAL AND ELECTRICAL,08/03/2018,,
OFH1819Q1.A000234,05/04/2018,Apex Lift & Escalator Engineers Ltd��,Commercial Supplier,"713,717.43",D19998,CAPITAL COST CENTRE,,,,0,CYCLICAL/PLANNED MAINTENANCE - MECHANICAL AND ELECTRICAL,09/03/2018,,
OFH1819Q1.A000235,05/04/2018,Blenheim Gardens TMO��,Commercial Supplier,"8,418.00",D18102,AREA RESPONSIVE REPAIRS MANAGER (CENTRAL,NEIGHBOURHOODS & GROWTH (HRA),HOUSING SERVICES (HRA),HOUSING MANAGEMENT - REPAIRS & MAINTENAN,HOUSING MANAGEMENT - REPAIRS AND MAINTEN,PRIVATE CONTRACTORS PAYMENT - OTHER,15/03/2018,,
OFH1819Q1.A000236,05/04/2018,Capita Business Services Ltd��,Commercial Supplier,"22,000.00",D14711,HEADQUARTERS,CHILDREN'S SERVICES,EDUCATION & LEARNING,LIBRARIES & ARCHIVE,LIBRARIES & ARCHIVES,ICT SOFTWARE,13/03/2018,,
OFH1819Q1.A000237,05/04/2018,Chapel House Day Nursery��,Commercial Supplier,"7,688.67",D13202,2 YEAR OLD EARLY LEARNING,CHILDREN'S SERVICES,EDUCATION & LEARNING,EARLY YEARS QUALITY IMPROVEMENT,EARLY YEARS QUALITY IMPROVEMENT,PRIVATE CONTRACTORS PAYMENT - OTHER,11/12/2017,,
OFH1819Q1.A000238,05/04/2018,City Suburban Tree Surgeons Ltd��,Commercial Supplier,"65,000.00",D14752,PARKS,NEIGHBOURHOODS & GROWTH,ENVIRONMENT,NEIGHBOURHOODS,PARKS,OPEN SPACES WORKS,09/03/2018,,
OFH1819Q1.A000239,05/04/2018,City Suburban Tree Surgeons Ltd��,Commercial Supplier,"85,000.00",D19998,CAPITAL COST CENTRE,,,,0,OPEN SPACES WORKS,09/03/2018,,
OFH1819Q1.A000240,05/04/2018,EUS Holding Ltd��,Commercial Supplier,"13,780.00",D10101,CONTRACT SERVICES,CORPORATE RESOURCES,FINANCE,PROCUREMENT,CONTRACT SERVICES,ICT SOFTWARE,05/01/2018,,
OFH1819Q1.A000241,05/04/2018,Finch Support Services Ltd,COMMERCIAL SUPPLIER,"2,425.72",D12532,OP - DOMICILIARY CARE,ADULTS & PUBLIC HEALTH,ADULT SOCIAL CARE,OLDER PEOPLE,OP - OLDER PEOPLE'S SERVICES,DOMICILIARY CARE - THIRD PARTY,,03/04/2018,
OFH1819Q1.A000242,05/04/2018,Finch Support Services Ltd,COMMERCIAL SUPPLIER,956.45,D12532,OP - DOMICILIARY CARE,ADULTS & PUBLIC HEALTH,ADULT SOCIAL CARE,OLDER PEOPLE,OP - OLDER PEOPLE'S SERVICES,DOMICILIARY CARE - THIRD PARTY,,04/04/2018,
OFH1819Q1.A000243,05/04/2018,Finch Support Services Ltd,COMMERCIAL SUPPLIER,919.82,D12532,OP - DOMICILIARY CARE,ADULTS & PUBLIC HEALTH,ADULT SOCIAL CARE,OLDER PEOPLE,OP - OLDER PEOPLE'S SERVICES,DOMICILIARY CARE - THIRD PARTY,,04/04/2018,
OFH1819Q1.A000244,05/04/2018,HA Marks Construction��,Commercial Supplier,"2,852.06",D19998,CAPITAL COST CENTRE,,,,0,"MAINTENANCE - EQUIPMENT, FURNITURE AND MATERIALS",15/03/2018,,
OFH1819Q1.A000245,05/04/2018,IHS(Global) Ltd��,Commercial Supplier,"8,228.51",D14513,STRATEGY AND PLANNING POLICY,NEIGHBOURHOODS & GROWTH,"GROWTH, PLANNING & EMPLOYMENT","PLANNING, TRANSPORT & DEVELOPMENT",PLANNING,CONSULTANCY FEES,09/03/2018,,
OFH1819Q1.A000246,05/04/2018,IHS(Global) Ltd��,Commercial Supplier,"-8,228.51",D14513,STRATEGY AND PLANNING POLICY,NEIGHBOURHOODS & GROWTH,"GROWTH, PLANNING & EMPLOYMENT","PLANNING, TRANSPORT & DEVELOPMENT",PLANNING,CONSULTANCY FEES,22/03/2018,,
OFH1819Q1.A000247,05/04/2018,IHS(Global) Ltd��,Commercial Supplier,"5,355.00",D14513,STRATEGY AND PLANNING POLICY,NEIGHBOURHOODS & GROWTH,"GROWTH, PLANNING & EMPLOYMENT","PLANNING, TRANSPORT & DEVELOPMENT",PLANNING,CONSULTANCY FEES,22/03/2018,,
OFH1819Q1.A000248,05/04/2018,Insight Direct (UK) Ltd��,Commercial Supplier,543.91,D19998,CAPITAL COST CENTRE,,,,0,ICT HARDWARE,16/03/2018,,
OFH1819Q1.A000249,05/04/2018,KNK Building Services Ltd��,Commercial Supplier,"11,085.00",D18102,AREA RESPONSIVE REPAIRS MANAGER (CENTRAL,NEIGHBOURHOODS & GROWTH (HRA),HOUSING SERVICES (HRA),HOUSING MANAGEMENT - REPAIRS & MAINTENAN,HOUSING MANAGEMENT - REPAIRS AND MAINTEN,FACILITIES MANAGEMENT,21/03/2018,,
OFH1819Q1.A000250,05/04/2018,Lambeth Crossroads,COMMERCIAL SUPPLIER,"3,811.50",D12532,OP - DOMICILIARY CARE,ADULTS & PUBLIC HEALTH,ADULT SOCIAL CARE,OLDER PEOPLE,OP - OLDER PEOPLE'S SERVICES,DOMICILIARY CARE - THIRD PARTY,,03/04/2018,
OFH1819Q1.A000251,05/04/2018,Lambeth Crossroads,COMMERCIAL SUPPLIER,"12,141.00",D12532,OP - DOMICILIARY CARE,ADULTS & PUBLIC HEALTH,ADULT SOCIAL CARE,OLDER PEOPLE,OP - OLDER PEOPLE'S SERVICES,DOMICILIARY CARE - THIRD PARTY,,03/04/2018,
OFH1819Q1.A000252,05/04/2018,Lambeth Crossroads,COMMERCIAL SUPPLIER,"13,347.00",D12532,OP - DOMICILIARY CARE,ADULTS & PUBLIC HEALTH,ADULT SOCIAL CARE,OLDER PEOPLE,OP - OLDER PEOPLE'S SERVICES,DOMICILIARY CARE - THIRD PARTY,,03/04/2018,
OFH1819Q1.A000253,05/04/2018,Lambeth Family Link��,Commercial Supplier,"5,404.00",D12229,DOMICILIARY CARE LD,ADULTS & PUBLIC HEALTH,ADULT SOCIAL CARE,INTEGRATED DISABILITY,INTEGRATED DISABILITY - ALD,DOMICILIARY CARE - THIRD PARTY,21/03/2018,,
OFH1819Q1.A000254,05/04/2018,Lambeth Family Link��,Commercial Supplier,930,D12229,DOMICILIARY CARE LD,ADULTS & PUBLIC HEALTH,ADULT SOCIAL CARE,INTEGRATED DISABILITY,INTEGRATED DISABILITY - ALD,DOMICILIARY CARE - THIRD PARTY,21/03/2018,,
OFH1819Q1.A000255,05/04/2018,Lambeth Family Link��,Commercial Supplier,750,D12229,DOMICILIARY CARE LD,ADULTS & PUBLIC HEALTH,ADULT SOCIAL CARE,INTEGRATED DISABILITY,INTEGRATED DISABILITY - ALD,DOMICILIARY CARE - THIRD PARTY,21/03/2018,,
OFH1819Q1.A000256,05/04/2018,Lambeth Family Link��,Commercial Supplier,"1,020.00",D13027,CHILDREN WITH DISABILITIES FWi,CHILDREN'S SERVICES,CHILDREN'S SERVICES,CHILDREN SAFEGUARDING & ASSESSMENTS,CHILDREN WITH DISABILITIES,DOMICILIARY CARE - THIRD PARTY,20/03/2018,,
OFH1819Q1.A000257,05/04/2018,Metro Homecare Ltd,COMMERCIAL SUPPLIER,"1,015.72",D12532,OP - DOMICILIARY CARE,ADULTS & PUBLIC HEALTH,ADULT SOCIAL CARE,OLDER PEOPLE,OP - OLDER PEOPLE'S SERVICES,DOMICILIARY CARE - THIRD PARTY,,03/04/2018,
OFH1819Q1.A000258,05/04/2018,Metro Homecare Ltd,COMMERCIAL SUPPLIER,"1,727.94",D12332,PD - DOMICILIARY CARE,ADULTS & PUBLIC HEALTH,ADULT SOCIAL CARE,INTEGRATED DISABILITY,INTEGRATED DISABILITY - PD,DOMICILIARY CARE - THIRD PARTY,,03/04/2018,
OFH1819Q1.A000259,05/04/2018,Metro Homecare Ltd,COMMERCIAL SUPPLIER,"1,475.09",D12332,PD - DOMICILIARY CARE,ADULTS & PUBLIC HEALTH,ADULT SOCIAL CARE,INTEGRATED DISABILITY,INTEGRATED DISABILITY - PD,DOMICILIARY CARE - THIRD PARTY,,03/04/2018,
OFH1819Q1.A000260,05/04/2018,Metro Homecare Ltd,COMMERCIAL SUPPLIER,602.61,D12532,OP - DOMICILIARY CARE,ADULTS & PUBLIC HEALTH,ADULT SOCIAL CARE,OLDER PEOPLE,OP - OLDER PEOPLE'S SERVICES,DOMICILIARY CARE - THIRD PARTY,,03/04/2018,
OFH1819Q1.A000261,05/04/2018,Metro Homecare Ltd,COMMERCIAL SUPPLIER,"1,586.40",D12332,PD - DOMICILIARY CARE,ADULTS & PUBLIC HEALTH,ADULT SOCIAL CARE,INTEGRATED DISABILITY,INTEGRATED DISABILITY - PD,DOMICILIARY CARE - THIRD PARTY,,03/04/2018,
OFH1819Q1.A000262,05/04/2018,Metro Homecare Ltd,COMMERCIAL SUPPLIER,"1,678.97",D12532,OP - DOMICILIARY CARE,ADULTS & PUBLIC HEALTH,ADULT SOCIAL CARE,OLDER PEOPLE,OP - OLDER PEOPLE'S SERVICES,DOMICILIARY CARE - THIRD PARTY,,03/04/2018,
OFH1819Q1.A000263,05/04/2018,Metro Homecare Ltd,COMMERCIAL SUPPLIER,803.48,D12532,OP - DOMICILIARY CARE,ADULTS & PUBLIC HEALTH,ADULT SOCIAL CARE,OLDER PEOPLE,OP - OLDER PEOPLE'S SERVICES,DOMICILIARY CARE - THIRD PARTY,,04/04/2018,
OFH1819Q1.A000264,05/04/2018,Metro Homecare Ltd,COMMERCIAL SUPPLIER,"1,788.88",D12532,OP - DOMICILIARY CARE,ADULTS & PUBLIC HEALTH,ADULT SOCIAL CARE,OLDER PEOPLE,OP - OLDER PEOPLE'S SERVICES,DOMICILIARY CARE - THIRD PARTY,,04/04/2018,
OFH1819Q1.A000265,05/04/2018,Oasis Care & Training Agency,COMMERCIAL SUPPLIER,"3,369.60",D12279,MH - DOMICILIARY CARE,ADULTS & PUBLIC HEALTH,ADULT SOCIAL CARE,MENTAL HEALTH,ADULTS WITH MENTAL HEALTH NEEDS,DOMICILIARY CARE - THIRD PARTY,,03/04/2018,
OFH1819Q1.A000266,05/04/2018,Rapid Information Systems��,Commercial Supplier,940,D14141,ALLOCATIONS & VERIFICATIONS - GF,NEIGHBOURHOODS & GROWTH,HOUSING SERVICES,HOUSING NEEDS,ACCOMMODATION AND PROPERTY - GF,ICT MAINTENANCE AND SUPPORT,09/03/2018,,
OFH1819Q1.A000267,05/04/2018,Rapid Information Systems��,Commercial Supplier,503.57,D10260,ARCHITECTURE,CORPORATE RESOURCES,BUSINESS TRANSFORMATION,BUSINESS TRANSFORMATION,ARCHITECTURE,ICT MAINTENANCE AND SUPPORT,09/03/2018,,
OFH1819Q1.A000268,05/04/2018,Remark! Ltd,COMMERCIAL SUPPLIER,"1,219.00",D12229,DOMICILIARY CARE LD,ADULTS & PUBLIC HEALTH,ADULT SOCIAL CARE,INTEGRATED DISABILITY,INTEGRATED DISABILITY - ALD,DOMICILIARY CARE - THIRD PARTY,,04/04/2018,
OFH1819Q1.A000269,05/04/2018,Resource Projects Partnership Ltd��,Commercial Supplier,"4,500.00",D14560,WATERLOO/STREATHAM,NEIGHBOURHOODS & GROWTH,"GROWTH, PLANNING & EMPLOYMENT",INVESTMENT & GROWTH,NEIGHBOURHOOD REGENERATION,CONSULTANCY FEES,14/03/2018,,
OFH1819Q1.A000270,05/04/2018,Sonia Heway Care Agency Ltd��,Commercial Supplier,812.16,D12532,OP - DOMICILIARY CARE,ADULTS & PUBLIC HEALTH,ADULT SOCIAL CARE,OLDER PEOPLE,OP - OLDER PEOPLE'S SERVICES,DOMICILIARY CARE - THIRD PARTY,22/03/2018,,
OFH1819Q1.A000271,05/04/2018,Sonia Heway Care Agency Ltd��,Commercial Supplier,"1,884.96",D12532,OP - DOMICILIARY CARE,ADULTS & PUBLIC HEALTH,ADULT SOCIAL CARE,OLDER PEOPLE,OP - OLDER PEOPLE'S SERVICES,DOMICILIARY CARE - THIRD PARTY,22/03/2018,,
OFH1819Q1.A000272,05/04/2018,Sonia Heway Care Agency Ltd��,Commercial Supplier,997.92,D12532,OP - DOMICILIARY CARE,ADULTS & PUBLIC HEALTH,ADULT SOCIAL CARE,OLDER PEOPLE,OP - OLDER PEOPLE'S SERVICES,DOMICILIARY CARE - THIRD PARTY,22/03/2018,,
OFH1819Q1.A000273,05/04/2018,Streetscene Addiction Recovery Ltd,COMMERCIAL SUPPLIER,"1,028.10",D12301,SUBSTANCE MISUSE,ADULTS & PUBLIC HEALTH,ADULT SOCIAL CARE,OTHER - ADULTS,SUBSTANCE MISUSE,RESIDENTIAL PLACEMENTS - PRIVA,,04/04/2018,
OFH1819Q1.A000274,05/04/2018,Streetscene Addiction Recovery Ltd,COMMERCIAL SUPPLIER,"2,987.20",D12301,SUBSTANCE MISUSE,ADULTS & PUBLIC HEALTH,ADULT SOCIAL CARE,OTHER - ADULTS,SUBSTANCE MISUSE,RESIDENTIAL PLACEMENTS - PRIVA,,04/04/2018,
OFH1819Q1.A000275,05/04/2018,Streetscene Addiction Recovery Ltd,COMMERCIAL SUPPLIER,"2,987.20",D12301,SUBSTANCE MISUSE,ADULTS & PUBLIC HEALTH,ADULT SOCIAL CARE,OTHER - ADULTS,SUBSTANCE MISUSE,RESIDENTIAL PLACEMENTS - PRIVA,,04/04/2018,
OFH1819Q1.A000276,05/04/2018,Substance��,Commercial Supplier,"6,600.00",D14791,LAMBETH THIS GIRL CAN,NEIGHBOURHOODS & GROWTH,ENVIRONMENT,ENVIRONMENT,CULTURE AND COMMUNITIES,CONSULTANCY FEES,16/03/2018,,
OFH1819Q1.A000277,05/04/2018,The Providence Projects Rehab Group Ltd,COMMERCIAL SUPPLIER,"2,396.00",D12301,SUBSTANCE MISUSE,ADULTS & PUBLIC HEALTH,ADULT SOCIAL CARE,OTHER - ADULTS,SUBSTANCE MISUSE,RESIDENTIAL PLACEMENTS - PRIVA,,03/04/2018,
OFH1819Q1.A000278,05/04/2018,Unique Personnel (Uk) Ltd,COMMERCIAL SUPPLIER,-580.32,D13027,CHILDREN WITH DISABILITIES FWi,CHILDREN'S SERVICES,CHILDREN'S SERVICES,CHILDREN SAFEGUARDING & ASSESSMENTS,CHILDREN WITH DISABILITIES,DOMICILIARY CARE - THIRD PARTY,,03/04/2018,
OFH1819Q1.A000279,05/04/2018,Unique Personnel (Uk) Ltd,COMMERCIAL SUPPLIER,-902.72,D13027,CHILDREN WITH DISABILITIES FWi,CHILDREN'S SERVICES,CHILDREN'S SERVICES,CHILDREN SAFEGUARDING & ASSESSMENTS,CHILDREN WITH DISABILITIES,DOMICILIARY CARE - THIRD PARTY,,03/04/2018,
OFH1819Q1.A000280,05/04/2018,Unique Personnel (Uk) Ltd,COMMERCIAL SUPPLIER,674.82,D12332,PD - DOMICILIARY CARE,ADULTS & PUBLIC HEALTH,ADULT SOCIAL CARE,INTEGRATED DISABILITY,INTEGRATED DISABILITY - PD,DOMICILIARY CARE - THIRD PARTY,,03/04/2018,
OFH1819Q1.A000281,05/04/2018,Unique Personnel (Uk) Ltd,COMMERCIAL SUPPLIER,"2,856.60",D12229,DOMICILIARY CARE LD,ADULTS & PUBLIC HEALTH,ADULT SOCIAL CARE,INTEGRATED DISABILITY,INTEGRATED DISABILITY - ALD,DOMICILIARY CARE - THIRD PARTY,,03/04/2018,
OFH1819Q1.A000282,05/04/2018,Unique Personnel (Uk) Ltd,COMMERCIAL SUPPLIER,902.72,D13027,CHILDREN WITH DISABILITIES FWi,CHILDREN'S SERVICES,CHILDREN'S SERVICES,CHILDREN SAFEGUARDING & ASSESSMENTS,CHILDREN WITH DISABILITIES,DOMICILIARY CARE - THIRD PARTY,,03/04/2018,
OFH1819Q1.A000283,05/04/2018,Unique Personnel (Uk) Ltd,COMMERCIAL SUPPLIER,521.64,D12532,OP - DOMICILIARY CARE,ADULTS & PUBLIC HEALTH,ADULT SOCIAL CARE,OLDER PEOPLE,OP - OLDER PEOPLE'S SERVICES,DOMICILIARY CARE - THIRD PARTY,,03/04/2018,
OFH1819Q1.A000284,05/04/2018,Unique Personnel (Uk) Ltd,COMMERCIAL SUPPLIER,616.86,D12332,PD - DOMICILIARY CARE,ADULTS & PUBLIC HEALTH,ADULT SOCIAL CARE,INTEGRATED DISABILITY,INTEGRATED DISABILITY - PD,DOMICILIARY CARE - THIRD PARTY,,03/04/2018,
OFH1819Q1.A000285,05/04/2018,Unique Personnel (Uk) Ltd,COMMERCIAL SUPPLIER,587.88,D12532,OP - DOMICILIARY CARE,ADULTS & PUBLIC HEALTH,ADULT SOCIAL CARE,OLDER PEOPLE,OP - OLDER PEOPLE'S SERVICES,DOMICILIARY CARE - THIRD PARTY,,03/04/2018,
OFH1819Q1.A000286,05/04/2018,Unique Personnel (Uk) Ltd,COMMERCIAL SUPPLIER,500.94,D12532,OP - DOMICILIARY CARE,ADULTS & PUBLIC HEALTH,ADULT SOCIAL CARE,OLDER PEOPLE,OP - OLDER PEOPLE'S SERVICES,DOMICILIARY CARE - THIRD PARTY,,03/04/2018,
OFH1819Q1.A000287,05/04/2018,Unique Personnel (Uk) Ltd,COMMERCIAL SUPPLIER,579.6,D12532,OP - DOMICILIARY CARE,ADULTS & PUBLIC HEALTH,ADULT SOCIAL CARE,OLDER PEOPLE,OP - OLDER PEOPLE'S SERVICES,DOMICILIARY CARE - THIRD PARTY,,03/04/2018,
OFH1819Q1.A000288,05/04/2018,Unique Personnel (Uk) Ltd,COMMERCIAL SUPPLIER,579.6,D12532,OP - DOMICILIARY CARE,ADULTS & PUBLIC HEALTH,ADULT SOCIAL CARE,OLDER PEOPLE,OP - OLDER PEOPLE'S SERVICES,DOMICILIARY CARE - THIRD PARTY,,03/04/2018,
OFH1819Q1.A000289,05/04/2018,Unique Personnel (Uk) Ltd,COMMERCIAL SUPPLIER,658.26,D12532,OP - DOMICILIARY CARE,ADULTS & PUBLIC HEALTH,ADULT SOCIAL CARE,OLDER PEOPLE,OP - OLDER PEOPLE'S SERVICES,DOMICILIARY CARE - THIRD PARTY,,03/04/2018,
OFH1819Q1.A000290,05/04/2018,Unique Personnel (Uk) Ltd,COMMERCIAL SUPPLIER,678.96,D12532,OP - DOMICILIARY CARE,ADULTS & PUBLIC HEALTH,ADULT SOCIAL CARE,OLDER PEOPLE,OP - OLDER PEOPLE'S SERVICES,DOMICILIARY CARE - THIRD PARTY,,03/04/2018,
OFH1819Q1.A000291,05/04/2018,Unique Personnel (Uk) Ltd,COMMERCIAL SUPPLIER,592.02,D12332,PD - DOMICILIARY CARE,ADULTS & PUBLIC HEALTH,ADULT SOCIAL CARE,INTEGRATED DISABILITY,INTEGRATED DISABILITY - PD,DOMICILIARY CARE - THIRD PARTY,,03/04/2018,
OFH1819Q1.A000292,05/04/2018,Unique Personnel (Uk) Ltd,COMMERCIAL SUPPLIER,629.28,D12532,OP - DOMICILIARY CARE,ADULTS & PUBLIC HEALTH,ADULT SOCIAL CARE,OLDER PEOPLE,OP - OLDER PEOPLE'S SERVICES,DOMICILIARY CARE - THIRD PARTY,,03/04/2018,
OFH1819Q1.A000293,05/04/2018,Unique Personnel (Uk) Ltd,COMMERCIAL SUPPLIER,687.24,D12532,OP - DOMICILIARY CARE,ADULTS & PUBLIC HEALTH,ADULT SOCIAL CARE,OLDER PEOPLE,OP - OLDER PEOPLE'S SERVICES,DOMICILIARY CARE - THIRD PARTY,,03/04/2018,
OFH1819Q1.A000294,05/04/2018,Unique Personnel (Uk) Ltd,COMMERCIAL SUPPLIER,542.34,D12532,OP - DOMICILIARY CARE,ADULTS & PUBLIC HEALTH,ADULT SOCIAL CARE,OLDER PEOPLE,OP - OLDER PEOPLE'S SERVICES,DOMICILIARY CARE - THIRD PARTY,,03/04/2018,
OFH1819Q1.A000295,05/04/2018,Unique Personnel (Uk) Ltd,COMMERCIAL SUPPLIER,"2,321.28",D13027,CHILDREN WITH DISABILITIES FWi,CHILDREN'S SERVICES,CHILDREN'S SERVICES,CHILDREN SAFEGUARDING & ASSESSMENTS,CHILDREN WITH DISABILITIES,DOMICILIARY CARE - THIRD PARTY,,03/04/2018,
OFH1819Q1.A000296,05/04/2018,Unique Personnel (Uk) Ltd,COMMERCIAL SUPPLIER,580.32,D13027,CHILDREN WITH DISABILITIES FWi,CHILDREN'S SERVICES,CHILDREN'S SERVICES,CHILDREN SAFEGUARDING & ASSESSMENTS,CHILDREN WITH DISABILITIES,DOMICILIARY CARE - THIRD PARTY,,03/04/2018,
OFH1819Q1.A000297,05/04/2018,Unique Personnel (Uk) Ltd,COMMERCIAL SUPPLIER,662.4,D13027,CHILDREN WITH DISABILITIES FWi,CHILDREN'S SERVICES,CHILDREN'S SERVICES,CHILDREN SAFEGUARDING & ASSESSMENTS,CHILDREN WITH DISABILITIES,DOMICILIARY CARE - THIRD PARTY,,03/04/2018,
OFH1819Q1.A000298,05/04/2018,Unique Personnel (Uk) Ltd,COMMERCIAL SUPPLIER,592.41,D12532,OP - DOMICILIARY CARE,ADULTS & PUBLIC HEALTH,ADULT SOCIAL CARE,OLDER PEOPLE,OP - OLDER PEOPLE'S SERVICES,DOMICILIARY CARE - THIRD PARTY,,03/04/2018,
OFH1819Q1.A000299,05/04/2018,Unique Personnel (Uk) Ltd,COMMERCIAL SUPPLIER,"2,351.52",D12532,OP - DOMICILIARY CARE,ADULTS & PUBLIC HEALTH,ADULT SOCIAL CARE,OLDER PEOPLE,OP - OLDER PEOPLE'S SERVICES,DOMICILIARY CARE - THIRD PARTY,,03/04/2018,
OFH1819Q1.A000300,05/04/2018,Unique Personnel (Uk) Ltd,COMMERCIAL SUPPLIER,"1,055.70",D12532,OP - DOMICILIARY CARE,ADULTS & PUBLIC HEALTH,ADULT SOCIAL CARE,OLDER PEOPLE,OP - OLDER PEOPLE'S SERVICES,DOMICILIARY CARE - THIRD PARTY,,03/04/2018,
OFH1819Q1.A000301,05/04/2018,Unique Personnel (Uk) Ltd,COMMERCIAL SUPPLIER,"1,126.08",D12532,OP - DOMICILIARY CARE,ADULTS & PUBLIC HEALTH,ADULT SOCIAL CARE,OLDER PEOPLE,OP - OLDER PEOPLE'S SERVICES,DOMICILIARY CARE - THIRD PARTY,,03/04/2018,
OFH1819Q1.A000302,05/04/2018,Unique Personnel (Uk) Ltd,COMMERCIAL SUPPLIER,571.32,D12532,OP - DOMICILIARY CARE,ADULTS & PUBLIC HEALTH,ADULT SOCIAL CARE,OLDER PEOPLE,OP - OLDER PEOPLE'S SERVICES,DOMICILIARY CARE - THIRD PARTY,,03/04/2018,
OFH1819Q1.A000303,05/04/2018,Unique Personnel (Uk) Ltd,COMMERCIAL SUPPLIER,765.9,D12532,OP - DOMICILIARY CARE,ADULTS & PUBLIC HEALTH,ADULT SOCIAL CARE,OLDER PEOPLE,OP - OLDER PEOPLE'S SERVICES,DOMICILIARY CARE - THIRD PARTY,,03/04/2018,
OFH1819Q1.A000304,05/04/2018,Unique Personnel (Uk) Ltd,COMMERCIAL SUPPLIER,"1,142.64",D12532,OP - DOMICILIARY CARE,ADULTS & PUBLIC HEALTH,ADULT SOCIAL CARE,OLDER PEOPLE,OP - OLDER PEOPLE'S SERVICES,DOMICILIARY CARE - THIRD PARTY,,03/04/2018,
OFH1819Q1.A000305,05/04/2018,Wrixon Care Services,COMMERCIAL SUPPLIER,599.5,D13088,LAC PLACEMENT-TRANSPORT,CHILDREN'S SERVICES,CHILDREN'S SERVICES,CHILDREN LOOKED AFTER,CHILDREN LOOKED AFTER PLACEMENTS,CLIENT TRANSPORT,,03/04/2018,
OFH1819Q1.A000306,05/04/2018,We Rise Ltd,Commercial Supplier,"2,250.00",D14544,MAKERVERSITY,NEIGHBOURHOODS & GROWTH,"GROWTH, PLANNING & EMPLOYMENT",INVESTMENT & GROWTH,BRIXTON CLAPHAM PROJECTS,CONSULTANCY FEES,14/03/2018,,
OFH1819Q1.A000307,05/04/2018,*******,DIRECT PAYMENTS,-84.35,D12531,OP - DIRECT PAYMENTS,ADULTS & PUBLIC HEALTH,ADULT SOCIAL CARE,OLDER PEOPLE,OP - OLDER PEOPLE'S SERVICES,FAIRER CHARGING INCOME,,03/04/2018,
OFH1819Q1.A000308,05/04/2018,*******,DIRECT PAYMENTS,"3,097.67",D12531,OP - DIRECT PAYMENTS,ADULTS & PUBLIC HEALTH,ADULT SOCIAL CARE,OLDER PEOPLE,OP - OLDER PEOPLE'S SERVICES,DIRECT PAYMENTS,,03/04/2018,
OFH1819Q1.A000309,05/04/2018,*******,Legal Services,"1,532.00",D12322,SPECIALIST DISABILITIES TEAM,ADULTS & PUBLIC HEALTH,ADULT SOCIAL CARE,INTEGRATED DISABILITY,INTEGRATED DISABILITY - PD,LEGAL FEES,12/03/2018,,
OFH1819Q1.A000310,05/04/2018,Chelsea & Westminster Hospital NHS Foundation Trust��,NHS Bodies,"1,143.84",D12071,Public Health - Sexual Health,ADULTS & PUBLIC HEALTH,PUBLIC HEALTH,PUBLIC HEALTH - ADULTS,PUBLIC HEALTH - ADULTS,PAYMENT TO HEALTH AUTHORITIES,09/03/2018,,
OFH1819Q1.A000311,05/04/2018,MENCAP��,Non Commercial Supplier,"15,000.00",D14557,NHB - SKILLS FOR JOBS,NEIGHBOURHOODS & GROWTH,"GROWTH, PLANNING & EMPLOYMENT","WELFARE, EMPLOYMENT & SKILLS",NEW HOMES BONUS,STAFF DEVELOPMENT AND TRAINING,20/03/2018,,
OFH1819Q1.A000312,05/04/2018,*******,,"1,209.19",D02300,ADMINISTRATIVE BODY - London Borough of,Pensions All CCs,Pensions All CCs,Pensions All CCs,Pensions All CCs,RETURN OF CONTRIBUTIONS,,04/04/2018,
OFH1819Q1.A000313,05/04/2018,*******,,-241.84,D02500,COMMON FUND OPERATIONS,Pensions All CCs,Pensions All CCs,Pensions All CCs,Pensions All CCs,PENSION FUND SUNDRY CREDITOR,,04/04/2018,
OFH1819Q1.A000314,05/04/2018,Sundry CTAX,,500.95,D10000,BALANCE SHEET COST CENTRE,BALANCE SHEET,BALANCE SHEET,BALANCE SHEET,BALANCE SHEET,COUNCIL TAX DEBTOR,,03/04/2018,
OFH1819Q1.A000315,06/04/2018,A* Transport Ltd,COMMERCIAL SUPPLIER,550,D12233,DAY CARE LD,ADULTS & PUBLIC HEALTH,ADULT SOCIAL CARE,INTEGRATED DISABILITY,INTEGRATED DISABILITY - ALD,CLIENT TRANSPORT,,05/04/2018,
OFH1819Q1.A000316,06/04/2018,A* Transport Ltd,COMMERCIAL SUPPLIER,550,D12233,DAY CARE LD,ADULTS & PUBLIC HEALTH,ADULT SOCIAL CARE,INTEGRATED DISABILITY,INTEGRATED DISABILITY - ALD,CLIENT TRANSPORT,,05/04/2018,
OFH1819Q1.A000317,06/04/2018,Askews and Holts Library Services Ltd��,Commercial Supplier,894.31,D14711,HEADQUARTERS,CHILDREN'S SERVICES,EDUCATION & LEARNING,LIBRARIES & ARCHIVE,LIBRARIES & ARCHIVES,"BOOKS, PUBLICATIONS AND RESOURCES",05/04/2018,,
OFH1819Q1.A000318,06/04/2018,Askews and Holts Library Services Ltd��,Commercial Supplier,536.01,D14711,HEADQUARTERS,CHILDREN'S SERVICES,EDUCATION & LEARNING,LIBRARIES & ARCHIVE,LIBRARIES & ARCHIVES,"BOOKS, PUBLICATIONS AND RESOURCES",05/04/2018,,
OFH1819Q1.A000319,06/04/2018,Askews and Holts Library Services Ltd��,Commercial Supplier,"1,876.09",D14711,HEADQUARTERS,CHILDREN'S SERVICES,EDUCATION & LEARNING,LIBRARIES & ARCHIVE,LIBRARIES & ARCHIVES,"BOOKS, PUBLICATIONS AND RESOURCES",05/04/2018,,
OFH1819Q1.A000320,06/04/2018,Baily Garner LLP��,Commercial Supplier,"2,963.40",D19998,CAPITAL COST CENTRE,,,,0,FACILITIES MANAGEMENT,16/03/2018,,
OFH1819Q1.A000321,06/04/2018,Bounceback Project Ltd��,Commercial Supplier,"6,663.66",D14557,NHB - SKILLS FOR JOBS,NEIGHBOURHOODS & GROWTH,"GROWTH, PLANNING & EMPLOYMENT","WELFARE, EMPLOYMENT & SKILLS",NEW HOMES BONUS,"MAINTENANCE - EQUIPMENT, FURNITURE AND MATERIALS",12/03/2018,,
OFH1819Q1.A000322,06/04/2018,Brixton Advice Centre,COMMERCIAL SUPPLIER,"10,500.00",D14142,TEMPORARY ACCOMMODATION,NEIGHBOURHOODS & GROWTH,HOUSING SERVICES,HOUSING NEEDS,ACCOMMODATION SERVICES - GF,LEGAL FEES,,05/04/2018,
OFH1819Q1.A000323,06/04/2018,Carat��,Commercial Supplier,"16,089.14",D12074,PUBLIC HEALTH -LONDON HIV PREVENTION PROGRAMME,ADULTS & PUBLIC HEALTH,PUBLIC HEALTH,PUBLIC HEALTH - ADULTS,PUBLIC HEALTH - ADULTS,PAYMENT TO HEALTH AUTHORITIES,14/03/2018,,
OFH1819Q1.A000324,06/04/2018,Carat��,Commercial Supplier,"20,354.62",D12074,PUBLIC HEALTH -LONDON HIV PREVENTION PROGRAMME,ADULTS & PUBLIC HEALTH,PUBLIC HEALTH,PUBLIC HEALTH - ADULTS,PUBLIC HEALTH - ADULTS,PAYMENT TO HEALTH AUTHORITIES,14/03/2018,,
OFH1819Q1.A000325,06/04/2018,Castle Water Ltd��,Commercial Supplier,"7,389.59",D14752,PARKS,NEIGHBOURHOODS & GROWTH,ENVIRONMENT,NEIGHBOURHOODS,PARKS,WATER AND SEWERAGE,20/03/2018,,
OFH1819Q1.A000326,06/04/2018,Centre 70 Advice Centre,COMMERCIAL SUPPLIER,"3,450.00",D18112,AREA CUSTOMER SERVICES MANAGER (SOUTH),NEIGHBOURHOODS & GROWTH (HRA),HOUSING SERVICES (HRA),HOUSING MANAGEMENT - REPAIRS & MAINTENAN,HOUSING MANAGEMENT - REPAIRS AND MAINTEN,LEGAL FEES,,05/04/2018,
OFH1819Q1.A000327,06/04/2018,Cyclehoop Ltd��,Commercial Supplier,"1,600.00",D14281,HIGHWAYS,NEIGHBOURHOODS & GROWTH,ENVIRONMENT,NEIGHBOURHOODS,STREET MANAGEMENT,"PURCHASE - EQUIPMENT, FURNITURE AND MATERIALS",10/03/2018,,
OFH1819Q1.A000328,06/04/2018,Engie Regeneration Ltd��,Commercial Supplier,"173,369.88",D19998,CAPITAL COST CENTRE,,,,0,"MAINTENANCE - EQUIPMENT, FURNITURE AND MATERIALS",14/03/2018,,
OFH1819Q1.A000329,06/04/2018,Eurovia Infrastructure Ltd��,Commercial Supplier,"29,344.50",D18061,ESTATE PRIDE,NEIGHBOURHOODS & GROWTH (HRA),HOUSING SERVICES (HRA),HOUSING MANAGEMENT - REPAIRS & MAINTENAN,HOUSING MANAGEMENT - REPAIRS AND MAINTEN,SECURITY SERVICES (EXCLUDING PREMISES),13/03/2018,,
OFH1819Q1.A000330,06/04/2018,Eurovia Infrastructure Ltd��,Commercial Supplier,"6,113.11",D18061,ESTATE PRIDE,NEIGHBOURHOODS & GROWTH (HRA),HOUSING SERVICES (HRA),HOUSING MANAGEMENT - REPAIRS & MAINTENAN,HOUSING MANAGEMENT - REPAIRS AND MAINTEN,SECURITY SERVICES (EXCLUDING PREMISES),13/03/2018,,
OFH1819Q1.A000331,06/04/2018,F M Conway Ltd��,Commercial Supplier,"26,202.42",D14281,HIGHWAYS,NEIGHBOURHOODS & GROWTH,ENVIRONMENT,NEIGHBOURHOODS,STREET MANAGEMENT,"MAINTENANCE - EQUIPMENT, FURNITURE AND MATERIALS",16/03/2018,,
OFH1819Q1.A000332,06/04/2018,F M Conway Ltd��,Commercial Supplier,"4,179.62",D14281,HIGHWAYS,NEIGHBOURHOODS & GROWTH,ENVIRONMENT,NEIGHBOURHOODS,STREET MANAGEMENT,"MAINTENANCE - EQUIPMENT, FURNITURE AND MATERIALS",16/03/2018,,
OFH1819Q1.A000333,06/04/2018,F M Conway Ltd��,Commercial Supplier,916.69,D14281,HIGHWAYS,NEIGHBOURHOODS & GROWTH,ENVIRONMENT,NEIGHBOURHOODS,STREET MANAGEMENT,"MAINTENANCE - EQUIPMENT, FURNITURE AND MATERIALS",16/03/2018,,
OFH1819Q1.A000334,06/04/2018,F M Conway Ltd��,Commercial Supplier,"2,826.04",D14281,HIGHWAYS,NEIGHBOURHOODS & GROWTH,ENVIRONMENT,NEIGHBOURHOODS,STREET MANAGEMENT,"MAINTENANCE - EQUIPMENT, FURNITURE AND MATERIALS",16/03/2018,,
OFH1819Q1.A000335,06/04/2018,F M Conway Ltd��,Commercial Supplier,"29,300.51",D14281,HIGHWAYS,NEIGHBOURHOODS & GROWTH,ENVIRONMENT,NEIGHBOURHOODS,STREET MANAGEMENT,"MAINTENANCE - EQUIPMENT, FURNITURE AND MATERIALS",16/03/2018,,
OFH1819Q1.A000336,06/04/2018,Fleet (Line Markers) Ltd��,Commercial Supplier,712.5,D14752,PARKS,NEIGHBOURHOODS & GROWTH,ENVIRONMENT,NEIGHBOURHOODS,PARKS,CLEANING MATERIALS,16/03/2018,,
OFH1819Q1.A000337,06/04/2018,Freight Transport Association��,Commercial Supplier,639,D14752,PARKS,NEIGHBOURHOODS & GROWTH,ENVIRONMENT,NEIGHBOURHOODS,PARKS,DIRECT TRANSPORT,15/03/2018,,
OFH1819Q1.A000338,06/04/2018,*******,Commercial Supplier,"2,307.08",D13096,CHILDREN SERVICES NON- RECOURSE TO PUBLICE FUNDS (NRPF),NO RECOURSE TO PUBLIC FUNDS,NO RECOURSE TO PUBLIC FUNDS,NO RECOURSE TO PUBLIC FUNDS,NO RECOURSE TO PUBLIC FUNDS,RENTS PAYABLE,21/03/2018,,
OFH1819Q1.A000339,06/04/2018,Lambeth Mencap��,Commercial Supplier,"2,961.76",D12229,DOMICILIARY CARE LD,ADULTS & PUBLIC HEALTH,ADULT SOCIAL CARE,INTEGRATED DISABILITY,INTEGRATED DISABILITY - ALD,DOMICILIARY CARE - THIRD PARTY,22/03/2018,,
OFH1819Q1.A000340,06/04/2018,Lambeth Mencap��,Commercial Supplier,"7,381.25",D12229,DOMICILIARY CARE LD,ADULTS & PUBLIC HEALTH,ADULT SOCIAL CARE,INTEGRATED DISABILITY,INTEGRATED DISABILITY - ALD,DOMICILIARY CARE - THIRD PARTY,22/03/2018,,
OFH1819Q1.A000341,06/04/2018,Lambeth Mencap��,Commercial Supplier,"1,046.40",D12229,DOMICILIARY CARE LD,ADULTS & PUBLIC HEALTH,ADULT SOCIAL CARE,INTEGRATED DISABILITY,INTEGRATED DISABILITY - ALD,DOMICILIARY CARE - THIRD PARTY,22/03/2018,,
OFH1819Q1.A000342,06/04/2018,Lambeth Mencap��,Commercial Supplier,514.48,D12229,DOMICILIARY CARE LD,ADULTS & PUBLIC HEALTH,ADULT SOCIAL CARE,INTEGRATED DISABILITY,INTEGRATED DISABILITY - ALD,DOMICILIARY CARE - THIRD PARTY,22/03/2018,,
OFH1819Q1.A000343,06/04/2018,Lambeth Mencap��,Commercial Supplier,558.08,D12229,DOMICILIARY CARE LD,ADULTS & PUBLIC HEALTH,ADULT SOCIAL CARE,INTEGRATED DISABILITY,INTEGRATED DISABILITY - ALD,DOMICILIARY CARE - THIRD PARTY,22/03/2018,,
OFH1819Q1.A000344,06/04/2018,Lambeth Mencap��,Commercial Supplier,"2,261.10",D12229,DOMICILIARY CARE LD,ADULTS & PUBLIC HEALTH,ADULT SOCIAL CARE,INTEGRATED DISABILITY,INTEGRATED DISABILITY - ALD,DOMICILIARY CARE - THIRD PARTY,22/03/2018,,
OFH1819Q1.A000345,06/04/2018,Lambeth Mencap��,Commercial Supplier,"1,098.72",D12229,DOMICILIARY CARE LD,ADULTS & PUBLIC HEALTH,ADULT SOCIAL CARE,INTEGRATED DISABILITY,INTEGRATED DISABILITY - ALD,DOMICILIARY CARE - THIRD PARTY,22/03/2018,,
OFH1819Q1.A000346,06/04/2018,Lambeth Mencap��,Commercial Supplier,575.52,D12229,DOMICILIARY CARE LD,ADULTS & PUBLIC HEALTH,ADULT SOCIAL CARE,INTEGRATED DISABILITY,INTEGRATED DISABILITY - ALD,DOMICILIARY CARE - THIRD PARTY,22/03/2018,,
OFH1819Q1.A000347,06/04/2018,Lambeth Mencap��,Commercial Supplier,558.08,D12229,DOMICILIARY CARE LD,ADULTS & PUBLIC HEALTH,ADULT SOCIAL CARE,INTEGRATED DISABILITY,INTEGRATED DISABILITY - ALD,DOMICILIARY CARE - THIRD PARTY,22/03/2018,,
OFH1819Q1.A000348,06/04/2018,Lambeth Mencap��,Commercial Supplier,"1,717.84",D12229,DOMICILIARY CARE LD,ADULTS & PUBLIC HEALTH,ADULT SOCIAL CARE,INTEGRATED DISABILITY,INTEGRATED DISABILITY - ALD,DOMICILIARY CARE - THIRD PARTY,22/03/2018,,
OFH1819Q1.A000349,06/04/2018,Lambeth Mencap��,Commercial Supplier,880.72,D12229,DOMICILIARY CARE LD,ADULTS & PUBLIC HEALTH,ADULT SOCIAL CARE,INTEGRATED DISABILITY,INTEGRATED DISABILITY - ALD,DOMICILIARY CARE - THIRD PARTY,22/03/2018,,
OFH1819Q1.A000350,06/04/2018,Lambeth Mencap��,Commercial Supplier,872,D12229,DOMICILIARY CARE LD,ADULTS & PUBLIC HEALTH,ADULT SOCIAL CARE,INTEGRATED DISABILITY,INTEGRATED DISABILITY - ALD,DOMICILIARY CARE - THIRD PARTY,22/03/2018,,
OFH1819Q1.A000351,06/04/2018,Lambeth Mencap��,Commercial Supplier,"1,040.00",D12233,DAY CARE LD,ADULTS & PUBLIC HEALTH,ADULT SOCIAL CARE,INTEGRATED DISABILITY,INTEGRATED DISABILITY - ALD,DAYCARE - PRIVATE CONTRACTORS PAYMENT,22/03/2018,,
OFH1819Q1.A000352,06/04/2018,Lifecome Ltd,COMMERCIAL SUPPLIER,846.21,D12532,OP - DOMICILIARY CARE,ADULTS & PUBLIC HEALTH,ADULT SOCIAL CARE,OLDER PEOPLE,OP - OLDER PEOPLE'S SERVICES,DOMICILIARY CARE - THIRD PARTY,,05/04/2018,
OFH1819Q1.A000353,06/04/2018,London Drainage Facilities Ltd��,Commercial Supplier,"4,825.00",D14752,PARKS,NEIGHBOURHOODS & GROWTH,ENVIRONMENT,NEIGHBOURHOODS,PARKS,"MAINTENANCE - EQUIPMENT, FURNITURE AND MATERIALS",15/03/2018,,
OFH1819Q1.A000354,06/04/2018,London Letterbox Marketing��,Commercial Supplier,"4,623.39",D19998,CAPITAL COST CENTRE,,,,0,POSTAGE AND COURIER SERVICES,13/03/2018,,
OFH1819Q1.A000355,06/04/2018,London Letterbox Marketing��,Commercial Supplier,"6,021.54",D10029,POLICY & COMMUNICATIONS - COMMUNICATIONS,CORPORATE RESOURCES,POLICY & COMMUNICATIONS,POLICY & COMMUNICATIONS,CAMPAIGNS & COMMUNICATIONS,POSTAGE AND COURIER SERVICES,13/03/2018,,
OFH1819Q1.A000356,06/04/2018,London Letterbox Marketing��,Commercial Supplier,"1,204.28",D10029,POLICY & COMMUNICATIONS - COMMUNICATIONS,CORPORATE RESOURCES,POLICY & COMMUNICATIONS,POLICY & COMMUNICATIONS,CAMPAIGNS & COMMUNICATIONS,POSTAGE AND COURIER SERVICES,13/03/2018,,
OFH1819Q1.A000357,06/04/2018,Mears Care Ltd,COMMERCIAL SUPPLIER,791.7,D12532,OP - DOMICILIARY CARE,ADULTS & PUBLIC HEALTH,ADULT SOCIAL CARE,OLDER PEOPLE,OP - OLDER PEOPLE'S SERVICES,DOMICILIARY CARE - THIRD PARTY,,02/04/2018,
OFH1819Q1.A000358,06/04/2018,Mears Care Ltd,COMMERCIAL SUPPLIER,"1,351.98",D12532,OP - DOMICILIARY CARE,ADULTS & PUBLIC HEALTH,ADULT SOCIAL CARE,OLDER PEOPLE,OP - OLDER PEOPLE'S SERVICES,DOMICILIARY CARE - THIRD PARTY,,02/04/2018,
OFH1819Q1.A000359,06/04/2018,Mears Care Ltd,COMMERCIAL SUPPLIER,645.54,D12332,PD - DOMICILIARY CARE,ADULTS & PUBLIC HEALTH,ADULT SOCIAL CARE,INTEGRATED DISABILITY,INTEGRATED DISABILITY - PD,DOMICILIARY CARE - THIRD PARTY,,02/04/2018,
OFH1819Q1.A000360,06/04/2018,Mears Care Ltd,COMMERCIAL SUPPLIER,592.76,D12532,OP - DOMICILIARY CARE,ADULTS & PUBLIC HEALTH,ADULT SOCIAL CARE,OLDER PEOPLE,OP - OLDER PEOPLE'S SERVICES,DOMICILIARY CARE - THIRD PARTY,,03/04/2018,
OFH1819Q1.A000361,06/04/2018,Mears Care Ltd,COMMERCIAL SUPPLIER,"1,209.88",D12532,OP - DOMICILIARY CARE,ADULTS & PUBLIC HEALTH,ADULT SOCIAL CARE,OLDER PEOPLE,OP - OLDER PEOPLE'S SERVICES,DOMICILIARY CARE - THIRD PARTY,,03/04/2018,
OFH1819Q1.A000362,06/04/2018,Mears Care Ltd,COMMERCIAL SUPPLIER,665.84,D12532,OP - DOMICILIARY CARE,ADULTS & PUBLIC HEALTH,ADULT SOCIAL CARE,OLDER PEOPLE,OP - OLDER PEOPLE'S SERVICES,DOMICILIARY CARE - THIRD PARTY,,03/04/2018,
OFH1819Q1.A000363,06/04/2018,Mears Care Ltd,COMMERCIAL SUPPLIER,702.38,D12332,PD - DOMICILIARY CARE,ADULTS & PUBLIC HEALTH,ADULT SOCIAL CARE,INTEGRATED DISABILITY,INTEGRATED DISABILITY - PD,DOMICILIARY CARE - THIRD PARTY,,03/04/2018,
OFH1819Q1.A000364,06/04/2018,Mears Care Ltd,COMMERCIAL SUPPLIER,"2,415.70",D12532,OP - DOMICILIARY CARE,ADULTS & PUBLIC HEALTH,ADULT SOCIAL CARE,OLDER PEOPLE,OP - OLDER PEOPLE'S SERVICES,DOMICILIARY CARE - THIRD PARTY,,03/04/2018,
OFH1819Q1.A000365,06/04/2018,Mears Care Ltd,COMMERCIAL SUPPLIER,"1,412.88",D12332,PD - DOMICILIARY CARE,ADULTS & PUBLIC HEALTH,ADULT SOCIAL CARE,INTEGRATED DISABILITY,INTEGRATED DISABILITY - PD,DOMICILIARY CARE - THIRD PARTY,,03/04/2018,
OFH1819Q1.A000366,06/04/2018,Mears Care Ltd,COMMERCIAL SUPPLIER,548.1,D12332,PD - DOMICILIARY CARE,ADULTS & PUBLIC HEALTH,ADULT SOCIAL CARE,INTEGRATED DISABILITY,INTEGRATED DISABILITY - PD,DOMICILIARY CARE - THIRD PARTY,,03/04/2018,
OFH1819Q1.A000367,06/04/2018,Mears Care Ltd,COMMERCIAL SUPPLIER,"1,952.86",D12332,PD - DOMICILIARY CARE,ADULTS & PUBLIC HEALTH,ADULT SOCIAL CARE,INTEGRATED DISABILITY,INTEGRATED DISABILITY - PD,DOMICILIARY CARE - THIRD PARTY,,03/04/2018,
OFH1819Q1.A000368,06/04/2018,Mears Care Ltd,COMMERCIAL SUPPLIER,576.52,D12332,PD - DOMICILIARY CARE,ADULTS & PUBLIC HEALTH,ADULT SOCIAL CARE,INTEGRATED DISABILITY,INTEGRATED DISABILITY - PD,DOMICILIARY CARE - THIRD PARTY,,03/04/2018,
OFH1819Q1.A000369,06/04/2018,Mears Care Ltd,COMMERCIAL SUPPLIER,856.66,D12332,PD - DOMICILIARY CARE,ADULTS & PUBLIC HEALTH,ADULT SOCIAL CARE,INTEGRATED DISABILITY,INTEGRATED DISABILITY - PD,DOMICILIARY CARE - THIRD PARTY,,03/04/2018,
OFH1819Q1.A000370,06/04/2018,Mears Care Ltd,COMMERCIAL SUPPLIER,519.68,D12532,OP - DOMICILIARY CARE,ADULTS & PUBLIC HEALTH,ADULT SOCIAL CARE,OLDER PEOPLE,OP - OLDER PEOPLE'S SERVICES,DOMICILIARY CARE - THIRD PARTY,,03/04/2018,
OFH1819Q1.A000371,06/04/2018,Mears Care Ltd,COMMERCIAL SUPPLIER,864.78,D12532,OP - DOMICILIARY CARE,ADULTS & PUBLIC HEALTH,ADULT SOCIAL CARE,OLDER PEOPLE,OP - OLDER PEOPLE'S SERVICES,DOMICILIARY CARE - THIRD PARTY,,03/04/2018,
OFH1819Q1.A000372,06/04/2018,Mears Care Ltd,COMMERCIAL SUPPLIER,722.68,D12332,PD - DOMICILIARY CARE,ADULTS & PUBLIC HEALTH,ADULT SOCIAL CARE,INTEGRATED DISABILITY,INTEGRATED DISABILITY - PD,DOMICILIARY CARE - THIRD PARTY,,03/04/2018,
OFH1819Q1.A000373,06/04/2018,Mears Care Ltd,COMMERCIAL SUPPLIER,"1,213.94",D12332,PD - DOMICILIARY CARE,ADULTS & PUBLIC HEALTH,ADULT SOCIAL CARE,INTEGRATED DISABILITY,INTEGRATED DISABILITY - PD,DOMICILIARY CARE - THIRD PARTY,,02/04/2018,
OFH1819Q1.A000374,06/04/2018,Mears Care Ltd,COMMERCIAL SUPPLIER,775.46,D12532,OP - DOMICILIARY CARE,ADULTS & PUBLIC HEALTH,ADULT SOCIAL CARE,OLDER PEOPLE,OP - OLDER PEOPLE'S SERVICES,DOMICILIARY CARE - THIRD PARTY,,02/04/2018,
OFH1819Q1.A000375,06/04/2018,Mears Care Ltd,COMMERCIAL SUPPLIER,759.22,D12332,PD - DOMICILIARY CARE,ADULTS & PUBLIC HEALTH,ADULT SOCIAL CARE,INTEGRATED DISABILITY,INTEGRATED DISABILITY - PD,DOMICILIARY CARE - THIRD PARTY,,02/04/2018,
OFH1819Q1.A000376,06/04/2018,Mears Care Ltd,COMMERCIAL SUPPLIER,734.86,D12532,OP - DOMICILIARY CARE,ADULTS & PUBLIC HEALTH,ADULT SOCIAL CARE,OLDER PEOPLE,OP - OLDER PEOPLE'S SERVICES,DOMICILIARY CARE - THIRD PARTY,,02/04/2018,
OFH1819Q1.A000377,06/04/2018,Mears Care Ltd,COMMERCIAL SUPPLIER,531.86,D12532,OP - DOMICILIARY CARE,ADULTS & PUBLIC HEALTH,ADULT SOCIAL CARE,OLDER PEOPLE,OP - OLDER PEOPLE'S SERVICES,DOMICILIARY CARE - THIRD PARTY,,02/04/2018,
OFH1819Q1.A000378,06/04/2018,Mears Care Ltd,COMMERCIAL SUPPLIER,726.74,D12532,OP - DOMICILIARY CARE,ADULTS & PUBLIC HEALTH,ADULT SOCIAL CARE,OLDER PEOPLE,OP - OLDER PEOPLE'S SERVICES,DOMICILIARY CARE - THIRD PARTY,,02/04/2018,
OFH1819Q1.A000379,06/04/2018,Mears Care Ltd,COMMERCIAL SUPPLIER,523.74,D12332,PD - DOMICILIARY CARE,ADULTS & PUBLIC HEALTH,ADULT SOCIAL CARE,INTEGRATED DISABILITY,INTEGRATED DISABILITY - PD,DOMICILIARY CARE - THIRD PARTY,,02/04/2018,
OFH1819Q1.A000380,06/04/2018,Mears Care Ltd,COMMERCIAL SUPPLIER,787.64,D12532,OP - DOMICILIARY CARE,ADULTS & PUBLIC HEALTH,ADULT SOCIAL CARE,OLDER PEOPLE,OP - OLDER PEOPLE'S SERVICES,DOMICILIARY CARE - THIRD PARTY,,02/04/2018,
OFH1819Q1.A000381,06/04/2018,Mears Care Ltd,COMMERCIAL SUPPLIER,669.9,D12332,PD - DOMICILIARY CARE,ADULTS & PUBLIC HEALTH,ADULT SOCIAL CARE,INTEGRATED DISABILITY,INTEGRATED DISABILITY - PD,DOMICILIARY CARE - THIRD PARTY,,02/04/2018,
OFH1819Q1.A000382,06/04/2018,Mears Care Ltd,COMMERCIAL SUPPLIER,"1,863.54",D12532,OP - DOMICILIARY CARE,ADULTS & PUBLIC HEALTH,ADULT SOCIAL CARE,OLDER PEOPLE,OP - OLDER PEOPLE'S SERVICES,DOMICILIARY CARE - THIRD PARTY,,02/04/2018,
OFH1819Q1.A000383,06/04/2018,Mears Care Ltd,COMMERCIAL SUPPLIER,783.58,D12532,OP - DOMICILIARY CARE,ADULTS & PUBLIC HEALTH,ADULT SOCIAL CARE,OLDER PEOPLE,OP - OLDER PEOPLE'S SERVICES,DOMICILIARY CARE - THIRD PARTY,,02/04/2018,
OFH1819Q1.A000384,06/04/2018,Mears Care Ltd,COMMERCIAL SUPPLIER,"1,323.56",D12532,OP - DOMICILIARY CARE,ADULTS & PUBLIC HEALTH,ADULT SOCIAL CARE,OLDER PEOPLE,OP - OLDER PEOPLE'S SERVICES,DOMICILIARY CARE - THIRD PARTY,,02/04/2018,
OFH1819Q1.A000385,06/04/2018,Mears Care Ltd,COMMERCIAL SUPPLIER,"1,006.88",D12332,PD - DOMICILIARY CARE,ADULTS & PUBLIC HEALTH,ADULT SOCIAL CARE,INTEGRATED DISABILITY,INTEGRATED DISABILITY - PD,DOMICILIARY CARE - THIRD PARTY,,02/04/2018,
OFH1819Q1.A000386,06/04/2018,Mears Care Ltd,COMMERCIAL SUPPLIER,641.48,D12332,PD - DOMICILIARY CARE,ADULTS & PUBLIC HEALTH,ADULT SOCIAL CARE,INTEGRATED DISABILITY,INTEGRATED DISABILITY - PD,DOMICILIARY CARE - THIRD PARTY,,02/04/2018,
OFH1819Q1.A000387,06/04/2018,Mears Care Ltd,COMMERCIAL SUPPLIER,747.04,D12532,OP - DOMICILIARY CARE,ADULTS & PUBLIC HEALTH,ADULT SOCIAL CARE,OLDER PEOPLE,OP - OLDER PEOPLE'S SERVICES,DOMICILIARY CARE - THIRD PARTY,,02/04/2018,
OFH1819Q1.A000388,06/04/2018,Mears Care Ltd,COMMERCIAL SUPPLIER,600.88,D12532,OP - DOMICILIARY CARE,ADULTS & PUBLIC HEALTH,ADULT SOCIAL CARE,OLDER PEOPLE,OP - OLDER PEOPLE'S SERVICES,DOMICILIARY CARE - THIRD PARTY,,02/04/2018,
OFH1819Q1.A000389,06/04/2018,Mears Care Ltd,COMMERCIAL SUPPLIER,730.8,D12332,PD - DOMICILIARY CARE,ADULTS & PUBLIC HEALTH,ADULT SOCIAL CARE,INTEGRATED DISABILITY,INTEGRATED DISABILITY - PD,DOMICILIARY CARE - THIRD PARTY,,05/04/2018,
OFH1819Q1.A000390,06/04/2018,Mears Care Ltd,COMMERCIAL SUPPLIER,771.4,D12532,OP - DOMICILIARY CARE,ADULTS & PUBLIC HEALTH,ADULT SOCIAL CARE,OLDER PEOPLE,OP - OLDER PEOPLE'S SERVICES,DOMICILIARY CARE - THIRD PARTY,,05/04/2018,
OFH1819Q1.A000391,06/04/2018,Mears Care Ltd,COMMERCIAL SUPPLIER,763.28,D12532,OP - DOMICILIARY CARE,ADULTS & PUBLIC HEALTH,ADULT SOCIAL CARE,OLDER PEOPLE,OP - OLDER PEOPLE'S SERVICES,DOMICILIARY CARE - THIRD PARTY,,05/04/2018,
OFH1819Q1.A000392,06/04/2018,Mears Care Ltd,COMMERCIAL SUPPLIER,714.56,D12332,PD - DOMICILIARY CARE,ADULTS & PUBLIC HEALTH,ADULT SOCIAL CARE,INTEGRATED DISABILITY,INTEGRATED DISABILITY - PD,DOMICILIARY CARE - THIRD PARTY,,05/04/2018,
OFH1819Q1.A000393,06/04/2018,Mears Care Ltd,COMMERCIAL SUPPLIER,909.44,D12532,OP - DOMICILIARY CARE,ADULTS & PUBLIC HEALTH,ADULT SOCIAL CARE,OLDER PEOPLE,OP - OLDER PEOPLE'S SERVICES,DOMICILIARY CARE - THIRD PARTY,,05/04/2018,
OFH1819Q1.A000394,06/04/2018,Mears Care Ltd,COMMERCIAL SUPPLIER,755.16,D12532,OP - DOMICILIARY CARE,ADULTS & PUBLIC HEALTH,ADULT SOCIAL CARE,OLDER PEOPLE,OP - OLDER PEOPLE'S SERVICES,DOMICILIARY CARE - THIRD PARTY,,05/04/2018,
OFH1819Q1.A000395,06/04/2018,Mears Ltd��,Commercial Supplier,"81,624.30",D19998,CAPITAL COST CENTRE,,,,0,FACILITIES MANAGEMENT,16/03/2018,,
OFH1819Q1.A000396,06/04/2018,MLM Consulting Engineers Ltd��,Commercial Supplier,950,D14586,114-118 LOWER MARSH,NEIGHBOURHOODS & GROWTH,"GROWTH, PLANNING & EMPLOYMENT",INVESTMENT & GROWTH,WATERLOO STREATHAM PROJECTS,"MAINTENANCE - EQUIPMENT, FURNITURE AND MATERIALS",12/03/2018,,
OFH1819Q1.A000397,06/04/2018,Notting Hill Housing Trust,COMMERCIAL SUPPLIER,"7,274.13",D12334,PD - EXTRA CARE HOUSING,ADULTS & PUBLIC HEALTH,ADULT SOCIAL CARE,INTEGRATED DISABILITY,INTEGRATED DISABILITY - PD,DOMICILIARY CARE - THIRD PARTY,,05/04/2018,
OFH1819Q1.A000398,06/04/2018,Notting Hill Housing Trust,COMMERCIAL SUPPLIER,"7,669.60",D12281,MH - EXTRA CARE HOUSING,ADULTS & PUBLIC HEALTH,ADULT SOCIAL CARE,MENTAL HEALTH,ADULTS WITH MENTAL HEALTH NEEDS,DOMICILIARY CARE - THIRD PARTY,,05/04/2018,
OFH1819Q1.A000399,06/04/2018,Notting Hill Housing Trust,COMMERCIAL SUPPLIER,"38,904.71",D12534,OP - EXTRA CARE HOUSING,ADULTS & PUBLIC HEALTH,ADULT SOCIAL CARE,OLDER PEOPLE,OP - OLDER PEOPLE'S SERVICES,DOMICILIARY CARE - THIRD PARTY,,05/04/2018,
OFH1819Q1.A000400,06/04/2018,Pellings LLP��,Commercial Supplier,"2,470.04",D19998,CAPITAL COST CENTRE,,,,0,CONSULTANCY FEES,20/03/2018,,
OFH1819Q1.A000401,06/04/2018,Pellings LLP��,Commercial Supplier,"3,563.08",D19998,CAPITAL COST CENTRE,,,,0,CONSULTANCY FEES,14/03/2018,,
OFH1819Q1.A000402,06/04/2018,Pellings LLP��,Commercial Supplier,"5,178.94",D19998,CAPITAL COST CENTRE,,,,0,CONSULTANCY FEES,14/03/2018,,
OFH1819Q1.A000403,06/04/2018,Pellings LLP��,Commercial Supplier,"22,211.80",D19998,CAPITAL COST CENTRE,,,,0,CONSULTANCY FEES,12/03/2018,,
OFH1819Q1.A000404,06/04/2018,Pellings LLP��,Commercial Supplier,"15,561.00",D19998,CAPITAL COST CENTRE,,,,0,CONSULTANCY FEES,12/03/2018,,
OFH1819Q1.A000405,06/04/2018,Pellings LLP��,Commercial Supplier,687.07,D19998,CAPITAL COST CENTRE,,,,0,CONSULTANCY FEES,12/03/2018,,
OFH1819Q1.A000406,06/04/2018,Pellings LLP��,Commercial Supplier,"3,770.22",D19998,CAPITAL COST CENTRE,,,,0,CONSULTANCY FEES,16/03/2018,,
OFH1819Q1.A000407,06/04/2018,Pellings LLP��,Commercial Supplier,"2,030.66",D19998,CAPITAL COST CENTRE,,,,0,CONSULTANCY FEES,14/03/2018,,
OFH1819Q1.A000408,06/04/2018,Pellings LLP��,Commercial Supplier,"5,489.40",D19998,CAPITAL COST CENTRE,,,,0,CONSULTANCY FEES,14/03/2018,,
OFH1819Q1.A000409,06/04/2018,Precision Lift Services Ltd��,Commercial Supplier,"42,651.75",D19998,CAPITAL COST CENTRE,,,,0,CYCLICAL/PLANNED MAINTENANCE - MECHANICAL AND ELECTRICAL,14/03/2018,,
OFH1819Q1.A000410,06/04/2018,Regeneris Consulting Ltd��,Commercial Supplier,"9,000.00",D14540,INTERNATIONAL HOUSE,NEIGHBOURHOODS & GROWTH,"GROWTH, PLANNING & EMPLOYMENT",INVESTMENT & GROWTH,BRIXTON CLAPHAM PROJECTS,CONSULTANCY FEES,12/03/2018,,
OFH1819Q1.A000411,06/04/2018,Standing Together Against Domestic Violence��,Commercial Supplier,"2,646.00",D12011,VAWG SERVICES,ADULTS & PUBLIC HEALTH,ADULT SOCIAL CARE,SUPPORTING PEOPLE,SUPPORTED HOUSING,PRIVATE CONTRACTORS PAYMENT - OTHER,10/03/2018,,
OFH1819Q1.A000412,06/04/2018,Sw Energy Ltd��,Commercial Supplier,"1,101.67",D14715,CLAPHAM,CHILDREN'S SERVICES,EDUCATION & LEARNING,LIBRARIES & ARCHIVE,LIBRARIES & ARCHIVES,GAS,15/03/2018,,
OFH1819Q1.A000413,06/04/2018,The Champion Agency Ltd��,Commercial Supplier,700,D10029,POLICY & COMMUNICATIONS - COMMUNICATIONS,CORPORATE RESOURCES,POLICY & COMMUNICATIONS,POLICY & COMMUNICATIONS,CAMPAIGNS & COMMUNICATIONS,"ADVERTISING, PUBLICITY AND MARKETING",05/04/2018,,
OFH1819Q1.A000414,06/04/2018,1st Central Law Ltd,LEGAL SERVICES,"4,447.00",D10000,BALANCE SHEET COST CENTRE,BALANCE SHEET,BALANCE SHEET,BALANCE SHEET,BALANCE SHEET,SHORT TERM PROVISIONS - INSURA,,05/04/2018,
OFH1819Q1.A000415,06/04/2018,1st Central Law Ltd,LEGAL SERVICES,"3,500.00",D10000,BALANCE SHEET COST CENTRE,BALANCE SHEET,BALANCE SHEET,BALANCE SHEET,BALANCE SHEET,SHORT TERM PROVISIONS - INSURA,,05/04/2018,
OFH1819Q1.A000416,06/04/2018,*******,LEGAL SERVICES,600,D10603,CORPORATE PROPERTY SERVICES MAIN OFFICE,CORPORATE RESOURCES,FINANCE,VALUATION & STRATEGIC ASSETS,VALUATION & STRATEGIC ASSETS,LEGAL FEES,,05/04/2018,
OFH1819Q1.A000417,06/04/2018,Anthony Gold Solicitors,LEGAL SERVICES,"7,200.00",D18132,AREA CUSTOMER SERVICES MANAGER (NORTH),NEIGHBOURHOODS & GROWTH (HRA),HOUSING SERVICES (HRA),HOUSING MANAGEMENT - REPAIRS & MAINTENAN,HOUSING MANAGEMENT - REPAIRS AND MAINTEN,LEGAL FEES,,05/04/2018,
OFH1819Q1.A000418,06/04/2018,Anthony Gold Solicitors,LEGAL SERVICES,"9,600.00",D18092,AREA CUSTOMER SERVICES MANAGER (CENTRAL,NEIGHBOURHOODS & GROWTH (HRA),HOUSING SERVICES (HRA),HOUSING MANAGEMENT - REPAIRS & MAINTENAN,HOUSING MANAGEMENT - REPAIRS AND MAINTEN,LEGAL FEES,,05/04/2018,
OFH1819Q1.A000419,06/04/2018,Anthony Gold Solicitors,LEGAL SERVICES,"18,000.00",D18092,AREA CUSTOMER SERVICES MANAGER (CENTRAL,NEIGHBOURHOODS & GROWTH (HRA),HOUSING SERVICES (HRA),HOUSING MANAGEMENT - REPAIRS & MAINTENAN,HOUSING MANAGEMENT - REPAIRS AND MAINTEN,LEGAL FEES,,05/04/2018,
OFH1819Q1.A000420,06/04/2018,Belshaw & Curtin Solicitors,LEGAL SERVICES,"5,800.00",D18092,AREA CUSTOMER SERVICES MANAGER (CENTRAL,NEIGHBOURHOODS & GROWTH (HRA),HOUSING SERVICES (HRA),HOUSING MANAGEMENT - REPAIRS & MAINTENAN,HOUSING MANAGEMENT - REPAIRS AND MAINTEN,LEGAL FEES,,05/04/2018,
OFH1819Q1.A000421,06/04/2018,Charles Allotey & Co,LEGAL SERVICES,"7,845.61",D18001,ANGEL TOWN EMB,NEIGHBOURHOODS & GROWTH (HRA),HOUSING SERVICES (HRA),TENANT MANAGEMENT ORGANISATIONS,TENANT MANAGEMENT ORGANISATIONS,LEGAL FEES,,05/04/2018,
OFH1819Q1.A000422,06/04/2018,Clarke Barnes LLP,LEGAL SERVICES,"3,028.05",D18132,AREA CUSTOMER SERVICES MANAGER (NORTH),NEIGHBOURHOODS & GROWTH (HRA),HOUSING SERVICES (HRA),HOUSING MANAGEMENT - REPAIRS & MAINTENAN,HOUSING MANAGEMENT - REPAIRS AND MAINTEN,LEGAL FEES,,05/04/2018,
OFH1819Q1.A000423,06/04/2018,Clarke Barnes LLP,LEGAL SERVICES,"3,000.00",D18112,AREA CUSTOMER SERVICES MANAGER (SOUTH),NEIGHBOURHOODS & GROWTH (HRA),HOUSING SERVICES (HRA),HOUSING MANAGEMENT - REPAIRS & MAINTENAN,HOUSING MANAGEMENT - REPAIRS AND MAINTEN,LEGAL FEES,,05/04/2018,
OFH1819Q1.A000424,06/04/2018,Clarke Barnes LLP,LEGAL SERVICES,"5,000.00",D18132,AREA CUSTOMER SERVICES MANAGER (NORTH),NEIGHBOURHOODS & GROWTH (HRA),HOUSING SERVICES (HRA),HOUSING MANAGEMENT - REPAIRS & MAINTENAN,HOUSING MANAGEMENT - REPAIRS AND MAINTEN,LEGAL FEES,,05/04/2018,
OFH1819Q1.A000425,06/04/2018,*******,LEGAL SERVICES,600,D18092,AREA CUSTOMER SERVICES MANAGER (CENTRAL,NEIGHBOURHOODS & GROWTH (HRA),HOUSING SERVICES (HRA),HOUSING MANAGEMENT - REPAIRS & MAINTENAN,HOUSING MANAGEMENT - REPAIRS AND MAINTEN,LEGAL FEES,,05/04/2018,
OFH1819Q1.A000426,06/04/2018,*******,LEGAL SERVICES,600,D14142,TEMPORARY ACCOMMODATION,NEIGHBOURHOODS & GROWTH,HOUSING SERVICES,HOUSING NEEDS,ACCOMMODATION SERVICES - GF,LEGAL FEES,,05/04/2018,
OFH1819Q1.A000427,06/04/2018,*******,LEGAL SERVICES,"1,440.00",D13118,CHILDREN LEGAL SERVICES,CHILDREN'S SERVICES,CHILDREN'S SERVICES,CHILDREN LEGAL SERVICES,CHILDREN LEGAL SERVICES,LEGAL FEES,,05/04/2018,
OFH1819Q1.A000428,06/04/2018,GT Stewart Solicitors,LEGAL SERVICES,"69,500.00",D13118,CHILDREN LEGAL SERVICES,CHILDREN'S SERVICES,CHILDREN'S SERVICES,CHILDREN LEGAL SERVICES,CHILDREN LEGAL SERVICES,LEGAL FEES,,05/04/2018,
OFH1819Q1.A000429,06/04/2018,Hanne & Co Solicitors,LEGAL SERVICES,"24,500.00",D13095,NRPF- ADMINISTRATION,NO RECOURSE TO PUBLIC FUNDS,NO RECOURSE TO PUBLIC FUNDS,NO RECOURSE TO PUBLIC FUNDS,NO RECOURSE TO PUBLIC FUNDS,LEGAL FEES,,05/04/2018,
OFH1819Q1.A000430,06/04/2018,*******,LEGAL SERVICES,550,D77194,LIVITY SCHOOL,CHILDREN'S SERVICES (SCH),EDUCATION & LEARNING (SCH),EDUCATION & LEARNING (SCH),SCHOOLS DEVOLVED FUNDING,LEGAL FEES,,05/04/2018,
OFH1819Q1.A000431,06/04/2018,*******,LEGAL SERVICES,500,D18112,AREA CUSTOMER SERVICES MANAGER (SOUTH),NEIGHBOURHOODS & GROWTH (HRA),HOUSING SERVICES (HRA),HOUSING MANAGEMENT - REPAIRS & MAINTENAN,HOUSING MANAGEMENT - REPAIRS AND MAINTEN,LEGAL FEES,,05/04/2018,
OFH1819Q1.A000432,06/04/2018,*******,LEGAL SERVICES,"1,000.00",D14142,TEMPORARY ACCOMMODATION,NEIGHBOURHOODS & GROWTH,HOUSING SERVICES,HOUSING NEEDS,ACCOMMODATION SERVICES - GF,LEGAL FEES,,05/04/2018,
OFH1819Q1.A000433,06/04/2018,*******,Legal Services,"3,000.00",D14512,DEVELOPMENT MANAGEMENT,NEIGHBOURHOODS & GROWTH,"GROWTH, PLANNING & EMPLOYMENT","PLANNING, TRANSPORT & DEVELOPMENT",PLANNING,LEGAL FEES,19/03/2018,,
OFH1819Q1.A000434,06/04/2018,*******,LEGAL SERVICES,"8,750.00",D18132,AREA CUSTOMER SERVICES MANAGER (NORTH),NEIGHBOURHOODS & GROWTH (HRA),HOUSING SERVICES (HRA),HOUSING MANAGEMENT - REPAIRS & MAINTENAN,HOUSING MANAGEMENT - REPAIRS AND MAINTEN,LEGAL FEES,,05/04/2018,
OFH1819Q1.A000435,06/04/2018,*******,LEGAL SERVICES,675,D12322,SPECIALIST DISABILITIES TEAM,ADULTS & PUBLIC HEALTH,ADULT SOCIAL CARE,INTEGRATED DISABILITY,INTEGRATED DISABILITY - PD,LEGAL FEES,,05/04/2018,
OFH1819Q1.A000436,06/04/2018,*******,LEGAL SERVICES,750,D18042,SERVICE CHARGE ADMIN & LEASEHOLD MANAGEM,NEIGHBOURHOODS & GROWTH (HRA),HOUSING SERVICES (HRA),HOUSING MANAGEMENT - REPAIRS & MAINTENAN,HOUSING MANAGEMENT - REPAIRS AND MAINTEN,LEGAL FEES,,05/04/2018,
OFH1819Q1.A000437,06/04/2018,*******,LEGAL SERVICES,850,D18402,HOUSING MANAGEMENT- CENTRAL (D03017),NEIGHBOURHOODS & GROWTH (HRA),HOUSING SERVICES (HRA),HOUSING MANAGEMENT SERVICES,HOUSING MANAGEMENT SERVICES,LEGAL FEES,,05/04/2018,
OFH1819Q1.A000438,06/04/2018,*******,LEGAL SERVICES,"1,435.00",D13118,CHILDREN LEGAL SERVICES,CHILDREN'S SERVICES,CHILDREN'S SERVICES,CHILDREN LEGAL SERVICES,CHILDREN LEGAL SERVICES,LEGAL FEES,,05/04/2018,
OFH1819Q1.A000439,06/04/2018,Osbornes Solicitors,LEGAL SERVICES,"25,000.00",D13118,CHILDREN LEGAL SERVICES,CHILDREN'S SERVICES,CHILDREN'S SERVICES,CHILDREN LEGAL SERVICES,CHILDREN LEGAL SERVICES,LEGAL FEES,,05/04/2018,
OFH1819Q1.A000440,06/04/2018,Porterhouse Legal & Consultancy Services Ltd,LEGAL SERVICES,551.5,D18132,AREA CUSTOMER SERVICES MANAGER (NORTH),NEIGHBOURHOODS & GROWTH (HRA),HOUSING SERVICES (HRA),HOUSING MANAGEMENT - REPAIRS & MAINTENAN,HOUSING MANAGEMENT - REPAIRS AND MAINTEN,LEGAL FEES,,05/04/2018,
OFH1819Q1.A000441,06/04/2018,*******,LEGAL SERVICES,850,D12541,CARE MGMT NORTH TEAM,ADULTS & PUBLIC HEALTH,ADULT SOCIAL CARE,OLDER PEOPLE,OP - INITIAL CONTACT AND OLDER PEOPLE,LEGAL FEES,,05/04/2018,
OFH1819Q1.A000442,06/04/2018,Wainwright and Cummins Solicitors,LEGAL SERVICES,"7,928.46",D18132,AREA CUSTOMER SERVICES MANAGER (NORTH),NEIGHBOURHOODS & GROWTH (HRA),HOUSING SERVICES (HRA),HOUSING MANAGEMENT - REPAIRS & MAINTENAN,HOUSING MANAGEMENT - REPAIRS AND MAINTEN,LEGAL FEES,,05/04/2018,
OFH1819Q1.A000443,06/04/2018,London Borough of Camden��,Local Authority Services,"2,600.00",D10028,EVENTS PRODUCTIONS,NEIGHBOURHOODS & GROWTH,ENVIRONMENT,NEIGHBOURHOODS,EVENTS,PRIVATE CONTRACTORS PAYMENT - OTHER,20/03/2018,,
OFH1819Q1.A000444,06/04/2018,Guys & St Thomas NHS Foundation Trust��,NHS Bodies,"5,000.00",D12041,STRATEGY & COMMISSIONING SENIOR MANAGEMENT,ADULTS & PUBLIC HEALTH,SENIOR MANAGEMENT - ADULTS & PUBLIC HEAL,SENIOR MANAGEMENT - ADULTS & PUBLIC HEAL,SENIOR MANAGEMENT - ADULTS & PUBLIC HEAL,PAYMENT TO HEALTH AUTHORITIES,16/03/2018,,
OFH1819Q1.A000445,06/04/2018,Sundry NNDR,,"34,174.98",D10000,BALANCE SHEET COST CENTRE,BALANCE SHEET,BALANCE SHEET,BALANCE SHEET,BALANCE SHEET,NNDR/BRS DEBTOR,,03/04/2018,
OFH1819Q1.A000446,06/04/2018,Sundry NNDR,,856.8,D10000,BALANCE SHEET COST CENTRE,BALANCE SHEET,BALANCE SHEET,BALANCE SHEET,BALANCE SHEET,NNDR/BRS DEBTOR,,03/04/2018,
OFH1819Q1.A000447,06/04/2018,Sundry NNDR,,"1,271.82",D10000,BALANCE SHEET COST CENTRE,BALANCE SHEET,BALANCE SHEET,BALANCE SHEET,BALANCE SHEET,NNDR/BRS DEBTOR,,03/04/2018,
OFH1819Q1.A000448,06/04/2018,Sundry NNDR,,"10,271.69",D10000,BALANCE SHEET COST CENTRE,BALANCE SHEET,BALANCE SHEET,BALANCE SHEET,BALANCE SHEET,NNDR/BRS DEBTOR,,03/04/2018,
OFH1819Q1.A000449,06/04/2018,Sundry NNDR,,"5,643.22",D10000,BALANCE SHEET COST CENTRE,BALANCE SHEET,BALANCE SHEET,BALANCE SHEET,BALANCE SHEET,NNDR/BRS DEBTOR,,03/04/2018,
OFH1819Q1.A000450,06/04/2018,Sundry NNDR,,"16,183.14",D10000,BALANCE SHEET COST CENTRE,BALANCE SHEET,BALANCE SHEET,BALANCE SHEET,BALANCE SHEET,NNDR/BRS DEBTOR,,03/04/2018,
OFH1819Q1.A000451,06/04/2018,Sundry NNDR,,"2,693.73",D10000,BALANCE SHEET COST CENTRE,BALANCE SHEET,BALANCE SHEET,BALANCE SHEET,BALANCE SHEET,NNDR/BRS DEBTOR,,03/04/2018,
OFH1819Q1.A000452,06/04/2018,Sundry NNDR,,"4,246.95",D10000,BALANCE SHEET COST CENTRE,BALANCE SHEET,BALANCE SHEET,BALANCE SHEET,BALANCE SHEET,NNDR/BRS DEBTOR,,03/04/2018,
OFH1819Q1.A000453,06/04/2018,Sundry NNDR,,"1,346.96",D10000,BALANCE SHEET COST CENTRE,BALANCE SHEET,BALANCE SHEET,BALANCE SHEET,BALANCE SHEET,NNDR/BRS DEBTOR,,03/04/2018,
OFH1819Q1.A000454,06/04/2018,Sundry NNDR,,"1,299.35",D10000,BALANCE SHEET COST CENTRE,BALANCE SHEET,BALANCE SHEET,BALANCE SHEET,BALANCE SHEET,NNDR/BRS DEBTOR,,03/04/2018,
OFH1819Q1.A000455,06/04/2018,Sundry NNDR,,547.68,D10000,BALANCE SHEET COST CENTRE,BALANCE SHEET,BALANCE SHEET,BALANCE SHEET,BALANCE SHEET,NNDR/BRS DEBTOR,,03/04/2018,
OFH1819Q1.A000456,06/04/2018,Sundry NNDR,,617.19,D10000,BALANCE SHEET COST CENTRE,BALANCE SHEET,BALANCE SHEET,BALANCE SHEET,BALANCE SHEET,NNDR/BRS DEBTOR,,03/04/2018,
OFH1819Q1.A000457,06/04/2018,Sundry NNDR,,"48,352.50",D10000,BALANCE SHEET COST CENTRE,BALANCE SHEET,BALANCE SHEET,BALANCE SHEET,BALANCE SHEET,NNDR/BRS DEBTOR,,03/04/2018,
OFH1819Q1.A000458,06/04/2018,Sundry NNDR,,"4,077.67",D10000,BALANCE SHEET COST CENTRE,BALANCE SHEET,BALANCE SHEET,BALANCE SHEET,BALANCE SHEET,NNDR/BRS DEBTOR,,03/04/2018,
OFH1819Q1.A000459,06/04/2018,Sundry NNDR,,"1,822.23",D10000,BALANCE SHEET COST CENTRE,BALANCE SHEET,BALANCE SHEET,BALANCE SHEET,BALANCE SHEET,NNDR/BRS DEBTOR,,03/04/2018,
OFH1819Q1.A000460,06/04/2018,Sundry NNDR,,548.29,D10000,BALANCE SHEET COST CENTRE,BALANCE SHEET,BALANCE SHEET,BALANCE SHEET,BALANCE SHEET,NNDR/BRS DEBTOR,,03/04/2018,
OFH1819Q1.A000461,06/04/2018,Sundry NNDR,,997.46,D10000,BALANCE SHEET COST CENTRE,BALANCE SHEET,BALANCE SHEET,BALANCE SHEET,BALANCE SHEET,NNDR/BRS DEBTOR,,03/04/2018,
OFH1819Q1.A000462,06/04/2018,Sundry NNDR,,895.25,D10000,BALANCE SHEET COST CENTRE,BALANCE SHEET,BALANCE SHEET,BALANCE SHEET,BALANCE SHEET,NNDR/BRS DEBTOR,,03/04/2018,
OFH1819Q1.A000463,06/04/2018,Sundry NNDR,,799,D10000,BALANCE SHEET COST CENTRE,BALANCE SHEET,BALANCE SHEET,BALANCE SHEET,BALANCE SHEET,NNDR/BRS DEBTOR,,03/04/2018,
OFH1819Q1.A000464,06/04/2018,Sundry NNDR,,"8,429.71",D10000,BALANCE SHEET COST CENTRE,BALANCE SHEET,BALANCE SHEET,BALANCE SHEET,BALANCE SHEET,NNDR/BRS DEBTOR,,03/04/2018,
OFH1819Q1.A000465,06/04/2018,Sundry Refunds,,"10,000.00",D10356,REDRESS SCHEME,CORPORATE RESOURCES,FINANCE,IMPROVEMENT RISK AND INSURANCE,IMPROVEMENT RISK AND INSURANCE,COMPENSATION,,05/04/2018,
OFH1819Q1.A000466,06/04/2018,Sundry Refunds,,"10,000.00",D10356,REDRESS SCHEME,CORPORATE RESOURCES,FINANCE,IMPROVEMENT RISK AND INSURANCE,IMPROVEMENT RISK AND INSURANCE,COMPENSATION,,05/04/2018,
OFH1819Q1.A000467,06/04/2018,Sundry Refunds,,720.8,D10000,BALANCE SHEET COST CENTRE,BALANCE SHEET,BALANCE SHEET,BALANCE SHEET,BALANCE SHEET,SHORT TERM PROVISIONS - INSURA,,05/04/2018,
OFH1819Q1.A000468,06/04/2018,Sundry Refunds,,"10,000.00",D10356,REDRESS SCHEME,CORPORATE RESOURCES,FINANCE,IMPROVEMENT RISK AND INSURANCE,IMPROVEMENT RISK AND INSURANCE,COMPENSATION,,05/04/2018,
OFH1819Q1.A000469,06/04/2018,Sundry Refunds,,"10,000.00",D10356,REDRESS SCHEME,CORPORATE RESOURCES,FINANCE,IMPROVEMENT RISK AND INSURANCE,IMPROVEMENT RISK AND INSURANCE,COMPENSATION,,05/04/2018,
OFH1819Q1.A000470,06/04/2018,Sundry Refunds,,"10,000.00",D10356,REDRESS SCHEME,CORPORATE RESOURCES,FINANCE,IMPROVEMENT RISK AND INSURANCE,IMPROVEMENT RISK AND INSURANCE,COMPENSATION,,05/04/2018,
OFH1819Q1.A000471,06/04/2018,Sundry Refunds,,"10,000.00",D10356,REDRESS SCHEME,CORPORATE RESOURCES,FINANCE,IMPROVEMENT RISK AND INSURANCE,IMPROVEMENT RISK AND INSURANCE,COMPENSATION,,05/04/2018,
OFH1819Q1.A000472,06/04/2018,Sundry Refunds,,"10,000.00",D10356,REDRESS SCHEME,CORPORATE RESOURCES,FINANCE,IMPROVEMENT RISK AND INSURANCE,IMPROVEMENT RISK AND INSURANCE,COMPENSATION,,05/04/2018,
OFH1819Q1.A000473,06/04/2018,Sundry Refunds,,"10,000.00",D10356,REDRESS SCHEME,CORPORATE RESOURCES,FINANCE,IMPROVEMENT RISK AND INSURANCE,IMPROVEMENT RISK AND INSURANCE,COMPENSATION,,05/04/2018,
OFH1819Q1.A000476,06/04/2018,Sundry Refunds,,"1,000.00",D10356,REDRESS SCHEME,CORPORATE RESOURCES,FINANCE,IMPROVEMENT RISK AND INSURANCE,IMPROVEMENT RISK AND INSURANCE,COMPENSATION,,05/04/2018,
OFH1819Q1.A000477,06/04/2018,Sundry Refunds,,"10,000.00",D10356,REDRESS SCHEME,CORPORATE RESOURCES,FINANCE,IMPROVEMENT RISK AND INSURANCE,IMPROVEMENT RISK AND INSURANCE,COMPENSATION,,05/04/2018,
OFH1819Q1.A000478,06/04/2018,Sundry Refunds,,"2,500.00",D10356,REDRESS SCHEME,CORPORATE RESOURCES,FINANCE,IMPROVEMENT RISK AND INSURANCE,IMPROVEMENT RISK AND INSURANCE,COMPENSATION,,05/04/2018,
OFH1819Q1.A000479,06/04/2018,Sundry Refunds,,"10,000.00",D10356,REDRESS SCHEME,CORPORATE RESOURCES,FINANCE,IMPROVEMENT RISK AND INSURANCE,IMPROVEMENT RISK AND INSURANCE,COMPENSATION,,05/04/2018,
OFH1819Q1.A000480,06/04/2018,Sundry Refunds,,"1,000.00",D10356,REDRESS SCHEME,CORPORATE RESOURCES,FINANCE,IMPROVEMENT RISK AND INSURANCE,IMPROVEMENT RISK AND INSURANCE,COMPENSATION,,05/04/2018,
OFH1819Q1.A000481,06/04/2018,Sundry Refunds,,"2,500.00",D10356,REDRESS SCHEME,CORPORATE RESOURCES,FINANCE,IMPROVEMENT RISK AND INSURANCE,IMPROVEMENT RISK AND INSURANCE,COMPENSATION,,05/04/2018,
OFH1819Q1.A000482,06/04/2018,Sundry Refunds,,"10,000.00",D10356,REDRESS SCHEME,CORPORATE RESOURCES,FINANCE,IMPROVEMENT RISK AND INSURANCE,IMPROVEMENT RISK AND INSURANCE,COMPENSATION,,05/04/2018,
OFH1819Q1.A000483,06/04/2018,Sundry Refunds,,"10,000.00",D10356,REDRESS SCHEME,CORPORATE RESOURCES,FINANCE,IMPROVEMENT RISK AND INSURANCE,IMPROVEMENT RISK AND INSURANCE,COMPENSATION,,05/04/2018,
OFH1819Q1.A000484,06/04/2018,Sundry Refunds,,"10,000.00",D10356,REDRESS SCHEME,CORPORATE RESOURCES,FINANCE,IMPROVEMENT RISK AND INSURANCE,IMPROVEMENT RISK AND INSURANCE,COMPENSATION,,05/04/2018,
OFH1819Q1.A000485,06/04/2018,Sundry Refunds,,"10,000.00",D10356,REDRESS SCHEME,CORPORATE RESOURCES,FINANCE,IMPROVEMENT RISK AND INSURANCE,IMPROVEMENT RISK AND INSURANCE,COMPENSATION,,05/04/2018,
OFH1819Q1.A000486,06/04/2018,Sundry Refunds,,"10,000.00",D10356,REDRESS SCHEME,CORPORATE RESOURCES,FINANCE,IMPROVEMENT RISK AND INSURANCE,IMPROVEMENT RISK AND INSURANCE,COMPENSATION,,05/04/2018,
OFH1819Q1.A000487,06/04/2018,Sundry Refunds,,"10,000.00",D10356,REDRESS SCHEME,CORPORATE RESOURCES,FINANCE,IMPROVEMENT RISK AND INSURANCE,IMPROVEMENT RISK AND INSURANCE,COMPENSATION,,05/04/2018,
OFH1819Q1.A000488,06/04/2018,Sundry Refunds,,"10,000.00",D10356,REDRESS SCHEME,CORPORATE RESOURCES,FINANCE,IMPROVEMENT RISK AND INSURANCE,IMPROVEMENT RISK AND INSURANCE,COMPENSATION,,05/04/2018,
OFH1819Q1.A000489,06/04/2018,Sundry Refunds,,"10,000.00",D10356,REDRESS SCHEME,CORPORATE RESOURCES,FINANCE,IMPROVEMENT RISK AND INSURANCE,IMPROVEMENT RISK AND INSURANCE,COMPENSATION,,05/04/2018,
OFH1819Q1.A000490,06/04/2018,Sundry Refunds,,"10,000.00",D10356,REDRESS SCHEME,CORPORATE RESOURCES,FINANCE,IMPROVEMENT RISK AND INSURANCE,IMPROVEMENT RISK AND INSURANCE,COMPENSATION,,05/04/2018,
OFH1819Q1.A000491,06/04/2018,Sundry Refunds,,"10,000.00",D10356,REDRESS SCHEME,CORPORATE RESOURCES,FINANCE,IMPROVEMENT RISK AND INSURANCE,IMPROVEMENT RISK AND INSURANCE,COMPENSATION,,05/04/2018,
OFH1819Q1.A000492,06/04/2018,Sundry Refunds,,"10,000.00",D10356,REDRESS SCHEME,CORPORATE RESOURCES,FINANCE,IMPROVEMENT RISK AND INSURANCE,IMPROVEMENT RISK AND INSURANCE,COMPENSATION,,05/04/2018,
OFH1819Q1.A000493,06/04/2018,Sundry Refunds,,500,D10022,EVENTS OPERATIONS,NEIGHBOURHOODS & GROWTH,ENVIRONMENT,NEIGHBOURHOODS,EVENTS,SALES INCOME - GENERAL,,04/04/2018,
OFH1819Q1.A000494,06/04/2018,Sundry Refunds,,500,D10022,EVENTS OPERATIONS,NEIGHBOURHOODS & GROWTH,ENVIRONMENT,NEIGHBOURHOODS,EVENTS,SALES INCOME - GENERAL,,04/04/2018,
OFH1819Q1.A000495,06/04/2018,Sundry Refunds,,864,D10000,BALANCE SHEET COST CENTRE,BALANCE SHEET,BALANCE SHEET,BALANCE SHEET,BALANCE SHEET,SHORT TERM PROVISIONS - INSURA,,05/04/2018,
OFH1819Q1.A000496,06/04/2018,Sundry Refunds,,"10,000.00",D10356,REDRESS SCHEME,CORPORATE RESOURCES,FINANCE,IMPROVEMENT RISK AND INSURANCE,IMPROVEMENT RISK AND INSURANCE,COMPENSATION,,05/04/2018,
OFH1819Q1.A000497,06/04/2018,Sundry Refunds,,"10,000.00",D10356,REDRESS SCHEME,CORPORATE RESOURCES,FINANCE,IMPROVEMENT RISK AND INSURANCE,IMPROVEMENT RISK AND INSURANCE,COMPENSATION,,05/04/2018,
OFH1819Q1.A000498,06/04/2018,Sundry Refunds,,"10,000.00",D10356,REDRESS SCHEME,CORPORATE RESOURCES,FINANCE,IMPROVEMENT RISK AND INSURANCE,IMPROVEMENT RISK AND INSURANCE,COMPENSATION,,05/04/2018,
OFH1819Q1.A000499,06/04/2018,Sundry Refunds,,"10,000.00",D10356,REDRESS SCHEME,CORPORATE RESOURCES,FINANCE,IMPROVEMENT RISK AND INSURANCE,IMPROVEMENT RISK AND INSURANCE,COMPENSATION,,05/04/2018,
OFH1819Q1.A000500,06/04/2018,Sundry Refunds,,"10,000.00",D10356,REDRESS SCHEME,CORPORATE RESOURCES,FINANCE,IMPROVEMENT RISK AND INSURANCE,IMPROVEMENT RISK AND INSURANCE,COMPENSATION,,05/04/2018,
OFH1819Q1.A000501,06/04/2018,Switalskis Solicitor��,,"10,000.00",D10356,REDRESS SCHEME,CORPORATE RESOURCES,FINANCE,IMPROVEMENT RISK AND INSURANCE,IMPROVEMENT RISK AND INSURANCE,COMPENSATION,12/03/2018,,
OFH1819Q1.A000502,06/04/2018,Switalskis Solicitor��,,"10,000.00",D10356,REDRESS SCHEME,CORPORATE RESOURCES,FINANCE,IMPROVEMENT RISK AND INSURANCE,IMPROVEMENT RISK AND INSURANCE,COMPENSATION,12/03/2018,,
OFH1819Q1.A000503,09/04/2018,*******,Carers,"1,494.51",D13130,ADOPTION- SGO ALLOWANCES,CHILDREN'S SERVICES,CHILDREN'S SERVICES,CHILDREN LOOKED AFTER,ADOPTIONS,SPECIAL GUARDIANSHIP,09/03/2018,,
OFH1819Q1.A000504,09/04/2018,A* Transport Ltd,COMMERCIAL SUPPLIER,550,D12233,DAY CARE LD,ADULTS & PUBLIC HEALTH,ADULT SOCIAL CARE,INTEGRATED DISABILITY,INTEGRATED DISABILITY - ALD,CLIENT TRANSPORT,,06/04/2018,
OFH1819Q1.A000505,09/04/2018,A* Transport Ltd,COMMERCIAL SUPPLIER,550,D12233,DAY CARE LD,ADULTS & PUBLIC HEALTH,ADULT SOCIAL CARE,INTEGRATED DISABILITY,INTEGRATED DISABILITY - ALD,CLIENT TRANSPORT,,06/04/2018,
OFH1819Q1.A000506,09/04/2018,A* Transport Ltd,COMMERCIAL SUPPLIER,704,D12233,DAY CARE LD,ADULTS & PUBLIC HEALTH,ADULT SOCIAL CARE,INTEGRATED DISABILITY,INTEGRATED DISABILITY - ALD,CLIENT TRANSPORT,,06/04/2018,
OFH1819Q1.A000507,09/04/2018,A* Transport Ltd,COMMERCIAL SUPPLIER,704,D12233,DAY CARE LD,ADULTS & PUBLIC HEALTH,ADULT SOCIAL CARE,INTEGRATED DISABILITY,INTEGRATED DISABILITY - ALD,CLIENT TRANSPORT,,06/04/2018,
OFH1819Q1.A000508,09/04/2018,A* Transport Ltd,COMMERCIAL SUPPLIER,704,D12233,DAY CARE LD,ADULTS & PUBLIC HEALTH,ADULT SOCIAL CARE,INTEGRATED DISABILITY,INTEGRATED DISABILITY - ALD,CLIENT TRANSPORT,,06/04/2018,
OFH1819Q1.A000509,09/04/2018,A* Transport Ltd,COMMERCIAL SUPPLIER,704,D12233,DAY CARE LD,ADULTS & PUBLIC HEALTH,ADULT SOCIAL CARE,INTEGRATED DISABILITY,INTEGRATED DISABILITY - ALD,CLIENT TRANSPORT,,06/04/2018,
OFH1819Q1.A000510,09/04/2018,A* Transport Ltd,COMMERCIAL SUPPLIER,704,D12233,DAY CARE LD,ADULTS & PUBLIC HEALTH,ADULT SOCIAL CARE,INTEGRATED DISABILITY,INTEGRATED DISABILITY - ALD,CLIENT TRANSPORT,,06/04/2018,
OFH1819Q1.A000511,09/04/2018,A* Transport Ltd,COMMERCIAL SUPPLIER,704,D12233,DAY CARE LD,ADULTS & PUBLIC HEALTH,ADULT SOCIAL CARE,INTEGRATED DISABILITY,INTEGRATED DISABILITY - ALD,CLIENT TRANSPORT,,06/04/2018,
OFH1819Q1.A000512,09/04/2018,A* Transport Ltd,COMMERCIAL SUPPLIER,704,D12233,DAY CARE LD,ADULTS & PUBLIC HEALTH,ADULT SOCIAL CARE,INTEGRATED DISABILITY,INTEGRATED DISABILITY - ALD,CLIENT TRANSPORT,,06/04/2018,
OFH1819Q1.A000513,09/04/2018,A* Transport Ltd,COMMERCIAL SUPPLIER,550,D12233,DAY CARE LD,ADULTS & PUBLIC HEALTH,ADULT SOCIAL CARE,INTEGRATED DISABILITY,INTEGRATED DISABILITY - ALD,CLIENT TRANSPORT,,06/04/2018,
OFH1819Q1.A000514,09/04/2018,Age Uk Lewisham & Southwark��,Commercial Supplier,"1,980.00",D12207,OP DAY CENTRE - CLARENCE AVENUE,ADULTS & PUBLIC HEALTH,ADULT SOCIAL CARE,DAY CENTRES,DAY SERVICES,PRIVATE CONTRACTORS PAYMENT - OTHER,06/04/2018,,
OFH1819Q1.A000515,09/04/2018,Allies and Morrison Architects��,Commercial Supplier,"4,394.00",D14587,LIVING CENTRE,NEIGHBOURHOODS & GROWTH,"GROWTH, PLANNING & EMPLOYMENT",INVESTMENT & GROWTH,WATERLOO STREATHAM PROJECTS,DESIGN AND PHOTOGRAPHIC COSTS,15/03/2018,,
OFH1819Q1.A000516,09/04/2018,Alpha Nano Developments Ltd��,Commercial Supplier,"2,748.00",D18081,AREA RESPONSIVE REPAIRS MANAGER (NORTH),NEIGHBOURHOODS & GROWTH (HRA),HOUSING SERVICES (HRA),HOUSING MANAGEMENT - REPAIRS & MAINTENAN,HOUSING MANAGEMENT - REPAIRS AND MAINTEN,BUILDING ALTERATIONS AND MATERIALS,06/04/2018,,
OFH1819Q1.A000517,09/04/2018,Andrew Christie Consulting Ltd��,Commercial Supplier,"2,250.00",D10005,LOCAL SAFEGUARDING CHILDRENS BOARD (LSCB),CHILDREN'S SERVICES,STRATEGY & COMMISSIONING - CHILDREN,CHILDRENS COMMISSIONING,LOCAL SAFEGUARDING CHILDRENS BOARD (LSCB,CONSULTANCY FEES,06/04/2018,,
OFH1819Q1.A000518,09/04/2018,Apropos Productions Ltd��,Commercial Supplier,850,D13442,YOUTH OFFENDING COMMISSIONING SERVICES,CHILDREN'S SERVICES,CHILDREN'S SERVICES,YOUTH OFFENDING SERVICE,SPECIALIST YOUTH,STAFF DEVELOPMENT AND TRAINING,15/03/2018,,
OFH1819Q1.A000519,09/04/2018,Askews and Holts Library Services Ltd��,Commercial Supplier,"6,762.04",D14711,HEADQUARTERS,CHILDREN'S SERVICES,EDUCATION & LEARNING,LIBRARIES & ARCHIVE,LIBRARIES & ARCHIVES,"BOOKS, PUBLICATIONS AND RESOURCES",06/04/2018,,
OFH1819Q1.A000520,09/04/2018,Askews and Holts Library Services Ltd��,Commercial Supplier,"1,623.11",D14711,HEADQUARTERS,CHILDREN'S SERVICES,EDUCATION & LEARNING,LIBRARIES & ARCHIVE,LIBRARIES & ARCHIVES,"BOOKS, PUBLICATIONS AND RESOURCES",06/04/2018,,
OFH1819Q1.A000521,09/04/2018,Askews and Holts Library Services Ltd��,Commercial Supplier,"2,188.11",D14711,HEADQUARTERS,CHILDREN'S SERVICES,EDUCATION & LEARNING,LIBRARIES & ARCHIVE,LIBRARIES & ARCHIVES,"BOOKS, PUBLICATIONS AND RESOURCES",21/03/2018,,
OFH1819Q1.A000522,09/04/2018,Askews and Holts Library Services Ltd��,Commercial Supplier,"5,584.56",D19998,CAPITAL COST CENTRE,,,,0,"BOOKS, PUBLICATIONS AND RESOURCES",21/03/2018,,
OFH1819Q1.A000523,09/04/2018,Askews and Holts Library Services Ltd��,Commercial Supplier,"1,061.29",D14711,HEADQUARTERS,CHILDREN'S SERVICES,EDUCATION & LEARNING,LIBRARIES & ARCHIVE,LIBRARIES & ARCHIVES,"BOOKS, PUBLICATIONS AND RESOURCES",06/04/2018,,
OFH1819Q1.A000524,09/04/2018,Askews and Holts Library Services Ltd��,Commercial Supplier,"4,250.32",D19998,CAPITAL COST CENTRE,,,,0,"BOOKS, PUBLICATIONS AND RESOURCES",06/04/2018,,
OFH1819Q1.A000525,09/04/2018,Beverley Martins Ltd��,Commercial Supplier,632.82,D12332,PD - DOMICILIARY CARE,ADULTS & PUBLIC HEALTH,ADULT SOCIAL CARE,INTEGRATED DISABILITY,INTEGRATED DISABILITY - PD,DOMICILIARY CARE - THIRD PARTY,14/03/2018,,
OFH1819Q1.A000526,09/04/2018,Beverley Martins Ltd��,Commercial Supplier,955.2,D12532,OP - DOMICILIARY CARE,ADULTS & PUBLIC HEALTH,ADULT SOCIAL CARE,OLDER PEOPLE,OP - OLDER PEOPLE'S SERVICES,DOMICILIARY CARE - THIRD PARTY,14/03/2018,,
OFH1819Q1.A000527,09/04/2018,Beverley Martins Ltd��,Commercial Supplier,991.02,D12332,PD - DOMICILIARY CARE,ADULTS & PUBLIC HEALTH,ADULT SOCIAL CARE,INTEGRATED DISABILITY,INTEGRATED DISABILITY - PD,DOMICILIARY CARE - THIRD PARTY,14/03/2018,,
OFH1819Q1.A000528,09/04/2018,Beverley Martins Ltd��,Commercial Supplier,640.78,D12532,OP - DOMICILIARY CARE,ADULTS & PUBLIC HEALTH,ADULT SOCIAL CARE,OLDER PEOPLE,OP - OLDER PEOPLE'S SERVICES,DOMICILIARY CARE - THIRD PARTY,14/03/2018,,
OFH1819Q1.A000529,09/04/2018,Beverley Martins Ltd��,Commercial Supplier,963.16,D12229,DOMICILIARY CARE LD,ADULTS & PUBLIC HEALTH,ADULT SOCIAL CARE,INTEGRATED DISABILITY,INTEGRATED DISABILITY - ALD,DOMICILIARY CARE - THIRD PARTY,14/03/2018,,
OFH1819Q1.A000530,09/04/2018,Beverley Martins Ltd��,Commercial Supplier,557.2,D12532,OP - DOMICILIARY CARE,ADULTS & PUBLIC HEALTH,ADULT SOCIAL CARE,OLDER PEOPLE,OP - OLDER PEOPLE'S SERVICES,DOMICILIARY CARE - THIRD PARTY,14/03/2018,,
OFH1819Q1.A000531,09/04/2018,Beverley Martins Ltd��,Commercial Supplier,"1,042.76",D12332,PD - DOMICILIARY CARE,ADULTS & PUBLIC HEALTH,ADULT SOCIAL CARE,INTEGRATED DISABILITY,INTEGRATED DISABILITY - PD,DOMICILIARY CARE - THIRD PARTY,14/03/2018,,
OFH1819Q1.A000532,09/04/2018,Beverley Martins Ltd��,Commercial Supplier,764.16,D12532,OP - DOMICILIARY CARE,ADULTS & PUBLIC HEALTH,ADULT SOCIAL CARE,OLDER PEOPLE,OP - OLDER PEOPLE'S SERVICES,DOMICILIARY CARE - THIRD PARTY,14/03/2018,,
OFH1819Q1.A000533,09/04/2018,Beverley Martins Ltd��,Commercial Supplier,803.96,D12532,OP - DOMICILIARY CARE,ADULTS & PUBLIC HEALTH,ADULT SOCIAL CARE,OLDER PEOPLE,OP - OLDER PEOPLE'S SERVICES,DOMICILIARY CARE - THIRD PARTY,14/03/2018,,
OFH1819Q1.A000534,09/04/2018,Beverley Martins Ltd��,Commercial Supplier,533.32,D12532,OP - DOMICILIARY CARE,ADULTS & PUBLIC HEALTH,ADULT SOCIAL CARE,OLDER PEOPLE,OP - OLDER PEOPLE'S SERVICES,DOMICILIARY CARE - THIRD PARTY,14/03/2018,,
OFH1819Q1.A000535,09/04/2018,Beverley Martins Ltd��,Commercial Supplier,652.72,D12532,OP - DOMICILIARY CARE,ADULTS & PUBLIC HEALTH,ADULT SOCIAL CARE,OLDER PEOPLE,OP - OLDER PEOPLE'S SERVICES,DOMICILIARY CARE - THIRD PARTY,14/03/2018,,
OFH1819Q1.A000536,09/04/2018,Beverley Martins Ltd��,Commercial Supplier,780.08,D12532,OP - DOMICILIARY CARE,ADULTS & PUBLIC HEALTH,ADULT SOCIAL CARE,OLDER PEOPLE,OP - OLDER PEOPLE'S SERVICES,DOMICILIARY CARE - THIRD PARTY,14/03/2018,,
OFH1819Q1.A000537,09/04/2018,Beverley Martins Ltd��,Commercial Supplier,752.22,D12532,OP - DOMICILIARY CARE,ADULTS & PUBLIC HEALTH,ADULT SOCIAL CARE,OLDER PEOPLE,OP - OLDER PEOPLE'S SERVICES,DOMICILIARY CARE - THIRD PARTY,14/03/2018,,
OFH1819Q1.A000538,09/04/2018,Beverley Martins Ltd��,Commercial Supplier,955.2,D12532,OP - DOMICILIARY CARE,ADULTS & PUBLIC HEALTH,ADULT SOCIAL CARE,OLDER PEOPLE,OP - OLDER PEOPLE'S SERVICES,DOMICILIARY CARE - THIRD PARTY,14/03/2018,,
OFH1819Q1.A000539,09/04/2018,Birlem Ltd��,Commercial Supplier,"2,623.50",D18133,ESTATE SERVICES MANAGER (NORTH),NEIGHBOURHOODS & GROWTH (HRA),HOUSING SERVICES (HRA),HOUSING MANAGEMENT - REPAIRS & MAINTENAN,HOUSING MANAGEMENT - REPAIRS AND MAINTEN,LIQUID FUEL,06/04/2018,,
OFH1819Q1.A000540,09/04/2018,Birlem Ltd��,Commercial Supplier,"2,510.00",D18133,ESTATE SERVICES MANAGER (NORTH),NEIGHBOURHOODS & GROWTH (HRA),HOUSING SERVICES (HRA),HOUSING MANAGEMENT - REPAIRS & MAINTENAN,HOUSING MANAGEMENT - REPAIRS AND MAINTEN,LIQUID FUEL,06/04/2018,,
OFH1819Q1.A000541,09/04/2018,Birlem Ltd��,Commercial Supplier,"2,140.00",D18133,ESTATE SERVICES MANAGER (NORTH),NEIGHBOURHOODS & GROWTH (HRA),HOUSING SERVICES (HRA),HOUSING MANAGEMENT - REPAIRS & MAINTENAN,HOUSING MANAGEMENT - REPAIRS AND MAINTEN,LIQUID FUEL,06/04/2018,,
OFH1819Q1.A000542,09/04/2018,Bounceback Project Ltd��,Commercial Supplier,"6,029.34",D14557,NHB - SKILLS FOR JOBS,NEIGHBOURHOODS & GROWTH,"GROWTH, PLANNING & EMPLOYMENT","WELFARE, EMPLOYMENT & SKILLS",NEW HOMES BONUS,"MAINTENANCE - EQUIPMENT, FURNITURE AND MATERIALS",06/04/2018,,
OFH1819Q1.A000543,09/04/2018,Bounceback Project Ltd��,Commercial Supplier,"-1,990.00",D14557,NHB - SKILLS FOR JOBS,NEIGHBOURHOODS & GROWTH,"GROWTH, PLANNING & EMPLOYMENT","WELFARE, EMPLOYMENT & SKILLS",NEW HOMES BONUS,"MAINTENANCE - EQUIPMENT, FURNITURE AND MATERIALS",06/04/2018,,
OFH1819Q1.A000544,09/04/2018,Capital Homecare (UK) Ltd��,Commercial Supplier,888.8,D12532,OP - DOMICILIARY CARE,ADULTS & PUBLIC HEALTH,ADULT SOCIAL CARE,OLDER PEOPLE,OP - OLDER PEOPLE'S SERVICES,DOMICILIARY CARE - THIRD PARTY,16/03/2018,,
OFH1819Q1.A000545,09/04/2018,Capital Homecare (UK) Ltd��,Commercial Supplier,"1,111.00",D12532,OP - DOMICILIARY CARE,ADULTS & PUBLIC HEALTH,ADULT SOCIAL CARE,OLDER PEOPLE,OP - OLDER PEOPLE'S SERVICES,DOMICILIARY CARE - THIRD PARTY,16/03/2018,,
OFH1819Q1.A000546,09/04/2018,Capital Homecare (UK) Ltd��,Commercial Supplier,"1,660.86",D12532,OP - DOMICILIARY CARE,ADULTS & PUBLIC HEALTH,ADULT SOCIAL CARE,OLDER PEOPLE,OP - OLDER PEOPLE'S SERVICES,DOMICILIARY CARE - THIRD PARTY,16/03/2018,,
OFH1819Q1.A000547,09/04/2018,Capital Homecare (UK) Ltd��,Commercial Supplier,"1,405.92",D12532,OP - DOMICILIARY CARE,ADULTS & PUBLIC HEALTH,ADULT SOCIAL CARE,OLDER PEOPLE,OP - OLDER PEOPLE'S SERVICES,DOMICILIARY CARE - THIRD PARTY,16/03/2018,,
OFH1819Q1.A000548,09/04/2018,Capital Homecare (UK) Ltd��,Commercial Supplier,791.84,D12532,OP - DOMICILIARY CARE,ADULTS & PUBLIC HEALTH,ADULT SOCIAL CARE,OLDER PEOPLE,OP - OLDER PEOPLE'S SERVICES,DOMICILIARY CARE - THIRD PARTY,14/03/2018,,
OFH1819Q1.A000549,09/04/2018,Capital Homecare (UK) Ltd��,Commercial Supplier,"2,593.68",D12532,OP - DOMICILIARY CARE,ADULTS & PUBLIC HEALTH,ADULT SOCIAL CARE,OLDER PEOPLE,OP - OLDER PEOPLE'S SERVICES,DOMICILIARY CARE - THIRD PARTY,16/03/2018,,
OFH1819Q1.A000550,09/04/2018,Capital Homecare (UK) Ltd��,Commercial Supplier,824.16,D12532,OP - DOMICILIARY CARE,ADULTS & PUBLIC HEALTH,ADULT SOCIAL CARE,OLDER PEOPLE,OP - OLDER PEOPLE'S SERVICES,DOMICILIARY CARE - THIRD PARTY,16/03/2018,,
OFH1819Q1.A000551,09/04/2018,Capital Homecare (UK) Ltd��,Commercial Supplier,"2,339.16",D12532,OP - DOMICILIARY CARE,ADULTS & PUBLIC HEALTH,ADULT SOCIAL CARE,OLDER PEOPLE,OP - OLDER PEOPLE'S SERVICES,DOMICILIARY CARE - THIRD PARTY,16/03/2018,,
OFH1819Q1.A000552,09/04/2018,Capital Homecare (UK) Ltd��,Commercial Supplier,565.6,D12532,OP - DOMICILIARY CARE,ADULTS & PUBLIC HEALTH,ADULT SOCIAL CARE,OLDER PEOPLE,OP - OLDER PEOPLE'S SERVICES,DOMICILIARY CARE - THIRD PARTY,14/03/2018,,
OFH1819Q1.A000553,09/04/2018,Capital Homecare (UK) Ltd��,Commercial Supplier,"2,036.16",D12532,OP - DOMICILIARY CARE,ADULTS & PUBLIC HEALTH,ADULT SOCIAL CARE,OLDER PEOPLE,OP - OLDER PEOPLE'S SERVICES,DOMICILIARY CARE - THIRD PARTY,16/03/2018,,
OFH1819Q1.A000554,09/04/2018,Capital Homecare (UK) Ltd��,Commercial Supplier,816.08,D12332,PD - DOMICILIARY CARE,ADULTS & PUBLIC HEALTH,ADULT SOCIAL CARE,INTEGRATED DISABILITY,INTEGRATED DISABILITY - PD,DOMICILIARY CARE - THIRD PARTY,16/03/2018,,
OFH1819Q1.A000555,09/04/2018,Capital Homecare (UK) Ltd��,Commercial Supplier,913.04,D12532,OP - DOMICILIARY CARE,ADULTS & PUBLIC HEALTH,ADULT SOCIAL CARE,OLDER PEOPLE,OP - OLDER PEOPLE'S SERVICES,DOMICILIARY CARE - THIRD PARTY,16/03/2018,,
OFH1819Q1.A000556,09/04/2018,Capital Homecare (UK) Ltd��,Commercial Supplier,957.48,D12532,OP - DOMICILIARY CARE,ADULTS & PUBLIC HEALTH,ADULT SOCIAL CARE,OLDER PEOPLE,OP - OLDER PEOPLE'S SERVICES,DOMICILIARY CARE - THIRD PARTY,16/03/2018,,
OFH1819Q1.A000557,09/04/2018,Capital Homecare (UK) Ltd��,Commercial Supplier,561.56,D12532,OP - DOMICILIARY CARE,ADULTS & PUBLIC HEALTH,ADULT SOCIAL CARE,OLDER PEOPLE,OP - OLDER PEOPLE'S SERVICES,DOMICILIARY CARE - THIRD PARTY,16/03/2018,,
OFH1819Q1.A000558,09/04/2018,Capital Homecare (UK) Ltd��,Commercial Supplier,"1,357.44",D12532,OP - DOMICILIARY CARE,ADULTS & PUBLIC HEALTH,ADULT SOCIAL CARE,OLDER PEOPLE,OP - OLDER PEOPLE'S SERVICES,DOMICILIARY CARE - THIRD PARTY,14/03/2018,,
OFH1819Q1.A000559,09/04/2018,Capital Homecare (UK) Ltd��,Commercial Supplier,980.83,D12532,OP - DOMICILIARY CARE,ADULTS & PUBLIC HEALTH,ADULT SOCIAL CARE,OLDER PEOPLE,OP - OLDER PEOPLE'S SERVICES,DOMICILIARY CARE - THIRD PARTY,16/03/2018,,
OFH1819Q1.A000560,09/04/2018,Capital Homecare (UK) Ltd��,Commercial Supplier,"2,036.16",D12532,OP - DOMICILIARY CARE,ADULTS & PUBLIC HEALTH,ADULT SOCIAL CARE,OLDER PEOPLE,OP - OLDER PEOPLE'S SERVICES,DOMICILIARY CARE - THIRD PARTY,14/03/2018,,
OFH1819Q1.A000561,09/04/2018,Capital Homecare (UK) Ltd��,Commercial Supplier,"1,809.92",D12532,OP - DOMICILIARY CARE,ADULTS & PUBLIC HEALTH,ADULT SOCIAL CARE,OLDER PEOPLE,OP - OLDER PEOPLE'S SERVICES,DOMICILIARY CARE - THIRD PARTY,14/03/2018,,
OFH1819Q1.A000562,09/04/2018,Capital Homecare (UK) Ltd��,Commercial Supplier,"2,149.28",D12532,OP - DOMICILIARY CARE,ADULTS & PUBLIC HEALTH,ADULT SOCIAL CARE,OLDER PEOPLE,OP - OLDER PEOPLE'S SERVICES,DOMICILIARY CARE - THIRD PARTY,14/03/2018,,
OFH1819Q1.A000563,09/04/2018,Capital Homecare (UK) Ltd��,Commercial Supplier,"1,244.32",D12532,OP - DOMICILIARY CARE,ADULTS & PUBLIC HEALTH,ADULT SOCIAL CARE,OLDER PEOPLE,OP - OLDER PEOPLE'S SERVICES,DOMICILIARY CARE - THIRD PARTY,14/03/2018,,
OFH1819Q1.A000564,09/04/2018,Capital Homecare (UK) Ltd��,Commercial Supplier,"1,018.08",D12532,OP - DOMICILIARY CARE,ADULTS & PUBLIC HEALTH,ADULT SOCIAL CARE,OLDER PEOPLE,OP - OLDER PEOPLE'S SERVICES,DOMICILIARY CARE - THIRD PARTY,14/03/2018,,
OFH1819Q1.A000565,09/04/2018,Capital Homecare (UK) Ltd��,Commercial Supplier,565.6,D12532,OP - DOMICILIARY CARE,ADULTS & PUBLIC HEALTH,ADULT SOCIAL CARE,OLDER PEOPLE,OP - OLDER PEOPLE'S SERVICES,DOMICILIARY CARE - THIRD PARTY,14/03/2018,,
OFH1819Q1.A000566,09/04/2018,Capital Homecare (UK) Ltd��,Commercial Supplier,824.16,D12532,OP - DOMICILIARY CARE,ADULTS & PUBLIC HEALTH,ADULT SOCIAL CARE,OLDER PEOPLE,OP - OLDER PEOPLE'S SERVICES,DOMICILIARY CARE - THIRD PARTY,14/03/2018,,
OFH1819Q1.A000567,09/04/2018,Capital Homecare (UK) Ltd��,Commercial Supplier,949.29,D12332,PD - DOMICILIARY CARE,ADULTS & PUBLIC HEALTH,ADULT SOCIAL CARE,INTEGRATED DISABILITY,INTEGRATED DISABILITY - PD,DOMICILIARY CARE - THIRD PARTY,16/03/2018,,
OFH1819Q1.A000568,09/04/2018,Capital Homecare (UK) Ltd��,Commercial Supplier,"1,914.96",D12332,PD - DOMICILIARY CARE,ADULTS & PUBLIC HEALTH,ADULT SOCIAL CARE,INTEGRATED DISABILITY,INTEGRATED DISABILITY - PD,DOMICILIARY CARE - THIRD PARTY,16/03/2018,,
OFH1819Q1.A000569,09/04/2018,Capital Homecare (UK) Ltd��,Commercial Supplier,"2,262.40",D12532,OP - DOMICILIARY CARE,ADULTS & PUBLIC HEALTH,ADULT SOCIAL CARE,OLDER PEOPLE,OP - OLDER PEOPLE'S SERVICES,DOMICILIARY CARE - THIRD PARTY,14/03/2018,,
OFH1819Q1.A000570,09/04/2018,Capital Homecare (UK) Ltd��,Commercial Supplier,646.4,D12532,OP - DOMICILIARY CARE,ADULTS & PUBLIC HEALTH,ADULT SOCIAL CARE,OLDER PEOPLE,OP - OLDER PEOPLE'S SERVICES,DOMICILIARY CARE - THIRD PARTY,16/03/2018,,
OFH1819Q1.A000571,09/04/2018,Capital Homecare (UK) Ltd��,Commercial Supplier,708.26,D12532,OP - DOMICILIARY CARE,ADULTS & PUBLIC HEALTH,ADULT SOCIAL CARE,OLDER PEOPLE,OP - OLDER PEOPLE'S SERVICES,DOMICILIARY CARE - THIRD PARTY,16/03/2018,,
OFH1819Q1.A000572,09/04/2018,Capital Homecare (UK) Ltd��,Commercial Supplier,"1,018.08",D12532,OP - DOMICILIARY CARE,ADULTS & PUBLIC HEALTH,ADULT SOCIAL CARE,OLDER PEOPLE,OP - OLDER PEOPLE'S SERVICES,DOMICILIARY CARE - THIRD PARTY,14/03/2018,,
OFH1819Q1.A000573,09/04/2018,Capital Homecare (UK) Ltd��,Commercial Supplier,"2,181.60",D12532,OP - DOMICILIARY CARE,ADULTS & PUBLIC HEALTH,ADULT SOCIAL CARE,OLDER PEOPLE,OP - OLDER PEOPLE'S SERVICES,DOMICILIARY CARE - THIRD PARTY,14/03/2018,,
OFH1819Q1.A000574,09/04/2018,Capital Homecare (UK) Ltd��,Commercial Supplier,"2,036.16",D12532,OP - DOMICILIARY CARE,ADULTS & PUBLIC HEALTH,ADULT SOCIAL CARE,OLDER PEOPLE,OP - OLDER PEOPLE'S SERVICES,DOMICILIARY CARE - THIRD PARTY,14/03/2018,,
OFH1819Q1.A000575,09/04/2018,Capital Homecare (UK) Ltd��,Commercial Supplier,"2,036.16",D12532,OP - DOMICILIARY CARE,ADULTS & PUBLIC HEALTH,ADULT SOCIAL CARE,OLDER PEOPLE,OP - OLDER PEOPLE'S SERVICES,DOMICILIARY CARE - THIRD PARTY,14/03/2018,,
OFH1819Q1.A000576,09/04/2018,Capital Homecare (UK) Ltd��,Commercial Supplier,"1,753.36",D12532,OP - DOMICILIARY CARE,ADULTS & PUBLIC HEALTH,ADULT SOCIAL CARE,OLDER PEOPLE,OP - OLDER PEOPLE'S SERVICES,DOMICILIARY CARE - THIRD PARTY,16/03/2018,,
OFH1819Q1.A000577,09/04/2018,Capital Homecare (UK) Ltd��,Commercial Supplier,610.04,D12332,PD - DOMICILIARY CARE,ADULTS & PUBLIC HEALTH,ADULT SOCIAL CARE,INTEGRATED DISABILITY,INTEGRATED DISABILITY - PD,DOMICILIARY CARE - THIRD PARTY,16/03/2018,,
OFH1819Q1.A000578,09/04/2018,Capital Homecare (UK) Ltd��,Commercial Supplier,565.6,D12532,OP - DOMICILIARY CARE,ADULTS & PUBLIC HEALTH,ADULT SOCIAL CARE,OLDER PEOPLE,OP - OLDER PEOPLE'S SERVICES,DOMICILIARY CARE - THIRD PARTY,14/03/2018,,
OFH1819Q1.A000579,09/04/2018,Capital Homecare (UK) Ltd��,Commercial Supplier,849.21,D12532,OP - DOMICILIARY CARE,ADULTS & PUBLIC HEALTH,ADULT SOCIAL CARE,OLDER PEOPLE,OP - OLDER PEOPLE'S SERVICES,DOMICILIARY CARE - THIRD PARTY,16/03/2018,,
OFH1819Q1.A000580,09/04/2018,Capital Homecare (UK) Ltd��,Commercial Supplier,"1,664.48",D12532,OP - DOMICILIARY CARE,ADULTS & PUBLIC HEALTH,ADULT SOCIAL CARE,OLDER PEOPLE,OP - OLDER PEOPLE'S SERVICES,DOMICILIARY CARE - THIRD PARTY,16/03/2018,,
OFH1819Q1.A000581,09/04/2018,Capital Homecare (UK) Ltd��,Commercial Supplier,"1,050.40",D12532,OP - DOMICILIARY CARE,ADULTS & PUBLIC HEALTH,ADULT SOCIAL CARE,OLDER PEOPLE,OP - OLDER PEOPLE'S SERVICES,DOMICILIARY CARE - THIRD PARTY,14/03/2018,,
OFH1819Q1.A000582,09/04/2018,Capital Homecare (UK) Ltd��,Commercial Supplier,"1,018.08",D12532,OP - DOMICILIARY CARE,ADULTS & PUBLIC HEALTH,ADULT SOCIAL CARE,OLDER PEOPLE,OP - OLDER PEOPLE'S SERVICES,DOMICILIARY CARE - THIRD PARTY,14/03/2018,,
OFH1819Q1.A000583,09/04/2018,Capital Homecare (UK) Ltd��,Commercial Supplier,"2,036.16",D12532,OP - DOMICILIARY CARE,ADULTS & PUBLIC HEALTH,ADULT SOCIAL CARE,OLDER PEOPLE,OP - OLDER PEOPLE'S SERVICES,DOMICILIARY CARE - THIRD PARTY,14/03/2018,,
OFH1819Q1.A000584,09/04/2018,Capital Homecare (UK) Ltd��,Commercial Supplier,"2,230.08",D12532,OP - DOMICILIARY CARE,ADULTS & PUBLIC HEALTH,ADULT SOCIAL CARE,OLDER PEOPLE,OP - OLDER PEOPLE'S SERVICES,DOMICILIARY CARE - THIRD PARTY,16/03/2018,,
OFH1819Q1.A000585,09/04/2018,Capital Homecare (UK) Ltd��,Commercial Supplier,"1,018.08",D12532,OP - DOMICILIARY CARE,ADULTS & PUBLIC HEALTH,ADULT SOCIAL CARE,OLDER PEOPLE,OP - OLDER PEOPLE'S SERVICES,DOMICILIARY CARE - THIRD PARTY,14/03/2018,,
OFH1819Q1.A000586,09/04/2018,Capital Homecare (UK) Ltd��,Commercial Supplier,"2,133.12",D12532,OP - DOMICILIARY CARE,ADULTS & PUBLIC HEALTH,ADULT SOCIAL CARE,OLDER PEOPLE,OP - OLDER PEOPLE'S SERVICES,DOMICILIARY CARE - THIRD PARTY,16/03/2018,,
OFH1819Q1.A000587,09/04/2018,Capital Homecare (UK) Ltd��,Commercial Supplier,"2,137.16",D12532,OP - DOMICILIARY CARE,ADULTS & PUBLIC HEALTH,ADULT SOCIAL CARE,OLDER PEOPLE,OP - OLDER PEOPLE'S SERVICES,DOMICILIARY CARE - THIRD PARTY,16/03/2018,,
OFH1819Q1.A000588,09/04/2018,Capital Homecare (UK) Ltd��,Commercial Supplier,997.88,D12532,OP - DOMICILIARY CARE,ADULTS & PUBLIC HEALTH,ADULT SOCIAL CARE,OLDER PEOPLE,OP - OLDER PEOPLE'S SERVICES,DOMICILIARY CARE - THIRD PARTY,16/03/2018,,
OFH1819Q1.A000589,09/04/2018,Capital Homecare (UK) Ltd��,Commercial Supplier,816.08,D12532,OP - DOMICILIARY CARE,ADULTS & PUBLIC HEALTH,ADULT SOCIAL CARE,OLDER PEOPLE,OP - OLDER PEOPLE'S SERVICES,DOMICILIARY CARE - THIRD PARTY,14/03/2018,,
OFH1819Q1.A000590,09/04/2018,Capital Homecare (UK) Ltd��,Commercial Supplier,551.77,D12532,OP - DOMICILIARY CARE,ADULTS & PUBLIC HEALTH,ADULT SOCIAL CARE,OLDER PEOPLE,OP - OLDER PEOPLE'S SERVICES,DOMICILIARY CARE - THIRD PARTY,16/03/2018,,
OFH1819Q1.A000591,09/04/2018,Capital Homecare (UK) Ltd��,Commercial Supplier,"1,357.44",D12532,OP - DOMICILIARY CARE,ADULTS & PUBLIC HEALTH,ADULT SOCIAL CARE,OLDER PEOPLE,OP - OLDER PEOPLE'S SERVICES,DOMICILIARY CARE - THIRD PARTY,14/03/2018,,
OFH1819Q1.A000592,09/04/2018,Capital Homecare (UK) Ltd��,Commercial Supplier,"1,147.36",D12532,OP - DOMICILIARY CARE,ADULTS & PUBLIC HEALTH,ADULT SOCIAL CARE,OLDER PEOPLE,OP - OLDER PEOPLE'S SERVICES,DOMICILIARY CARE - THIRD PARTY,14/03/2018,,
OFH1819Q1.A000593,09/04/2018,Capital Homecare (UK) Ltd��,Commercial Supplier,727.2,D12532,OP - DOMICILIARY CARE,ADULTS & PUBLIC HEALTH,ADULT SOCIAL CARE,OLDER PEOPLE,OP - OLDER PEOPLE'S SERVICES,DOMICILIARY CARE - THIRD PARTY,16/03/2018,,
OFH1819Q1.A000594,09/04/2018,Capital Homecare (UK) Ltd��,Commercial Supplier,"3,240.08",D12332,PD - DOMICILIARY CARE,ADULTS & PUBLIC HEALTH,ADULT SOCIAL CARE,INTEGRATED DISABILITY,INTEGRATED DISABILITY - PD,DOMICILIARY CARE - THIRD PARTY,16/03/2018,,
OFH1819Q1.A000595,09/04/2018,Capital Homecare (UK) Ltd��,Commercial Supplier,"1,333.20",D12532,OP - DOMICILIARY CARE,ADULTS & PUBLIC HEALTH,ADULT SOCIAL CARE,OLDER PEOPLE,OP - OLDER PEOPLE'S SERVICES,DOMICILIARY CARE - THIRD PARTY,16/03/2018,,
OFH1819Q1.A000596,09/04/2018,Capital Homecare (UK) Ltd��,Commercial Supplier,795.88,D12332,PD - DOMICILIARY CARE,ADULTS & PUBLIC HEALTH,ADULT SOCIAL CARE,INTEGRATED DISABILITY,INTEGRATED DISABILITY - PD,DOMICILIARY CARE - THIRD PARTY,16/03/2018,,
OFH1819Q1.A000597,09/04/2018,Capital Homecare (UK) Ltd��,Commercial Supplier,"2,953.24",D12532,OP - DOMICILIARY CARE,ADULTS & PUBLIC HEALTH,ADULT SOCIAL CARE,OLDER PEOPLE,OP - OLDER PEOPLE'S SERVICES,DOMICILIARY CARE - THIRD PARTY,16/03/2018,,
OFH1819Q1.A000598,09/04/2018,Capital Homecare (UK) Ltd��,Commercial Supplier,"2,036.16",D12532,OP - DOMICILIARY CARE,ADULTS & PUBLIC HEALTH,ADULT SOCIAL CARE,OLDER PEOPLE,OP - OLDER PEOPLE'S SERVICES,DOMICILIARY CARE - THIRD PARTY,14/03/2018,,
OFH1819Q1.A000599,09/04/2018,Capital Homecare (UK) Ltd��,Commercial Supplier,791.84,D12532,OP - DOMICILIARY CARE,ADULTS & PUBLIC HEALTH,ADULT SOCIAL CARE,OLDER PEOPLE,OP - OLDER PEOPLE'S SERVICES,DOMICILIARY CARE - THIRD PARTY,14/03/2018,,
OFH1819Q1.A000600,09/04/2018,Capital Homecare (UK) Ltd��,Commercial Supplier,"2,011.92",D12532,OP - DOMICILIARY CARE,ADULTS & PUBLIC HEALTH,ADULT SOCIAL CARE,OLDER PEOPLE,OP - OLDER PEOPLE'S SERVICES,DOMICILIARY CARE - THIRD PARTY,16/03/2018,,
OFH1819Q1.A000601,09/04/2018,Capital Homecare (UK) Ltd��,Commercial Supplier,634.65,D12332,PD - DOMICILIARY CARE,ADULTS & PUBLIC HEALTH,ADULT SOCIAL CARE,INTEGRATED DISABILITY,INTEGRATED DISABILITY - PD,DOMICILIARY CARE - THIRD PARTY,16/03/2018,,
OFH1819Q1.A000602,09/04/2018,Capital Homecare (UK) Ltd��,Commercial Supplier,"3,555.20",D12332,PD - DOMICILIARY CARE,ADULTS & PUBLIC HEALTH,ADULT SOCIAL CARE,INTEGRATED DISABILITY,INTEGRATED DISABILITY - PD,DOMICILIARY CARE - THIRD PARTY,14/03/2018,,
OFH1819Q1.A000603,09/04/2018,Capital Homecare (UK) Ltd��,Commercial Supplier,961.52,D12532,OP - DOMICILIARY CARE,ADULTS & PUBLIC HEALTH,ADULT SOCIAL CARE,OLDER PEOPLE,OP - OLDER PEOPLE'S SERVICES,DOMICILIARY CARE - THIRD PARTY,16/03/2018,,
OFH1819Q1.A000604,09/04/2018,Capital Homecare (UK) Ltd��,Commercial Supplier,884.76,D12532,OP - DOMICILIARY CARE,ADULTS & PUBLIC HEALTH,ADULT SOCIAL CARE,OLDER PEOPLE,OP - OLDER PEOPLE'S SERVICES,DOMICILIARY CARE - THIRD PARTY,16/03/2018,,
OFH1819Q1.A000605,09/04/2018,Capital Homecare (UK) Ltd��,Commercial Supplier,"1,147.36",D12332,PD - DOMICILIARY CARE,ADULTS & PUBLIC HEALTH,ADULT SOCIAL CARE,INTEGRATED DISABILITY,INTEGRATED DISABILITY - PD,DOMICILIARY CARE - THIRD PARTY,16/03/2018,,
OFH1819Q1.A000606,09/04/2018,Capital Homecare (UK) Ltd��,Commercial Supplier,"1,295.51",D12532,OP - DOMICILIARY CARE,ADULTS & PUBLIC HEALTH,ADULT SOCIAL CARE,OLDER PEOPLE,OP - OLDER PEOPLE'S SERVICES,DOMICILIARY CARE - THIRD PARTY,16/03/2018,,
OFH1819Q1.A000607,09/04/2018,Capital Homecare (UK) Ltd��,Commercial Supplier,"1,018.08",D12532,OP - DOMICILIARY CARE,ADULTS & PUBLIC HEALTH,ADULT SOCIAL CARE,OLDER PEOPLE,OP - OLDER PEOPLE'S SERVICES,DOMICILIARY CARE - THIRD PARTY,14/03/2018,,
OFH1819Q1.A000608,09/04/2018,Capital Homecare (UK) Ltd��,Commercial Supplier,597.92,D12332,PD - DOMICILIARY CARE,ADULTS & PUBLIC HEALTH,ADULT SOCIAL CARE,INTEGRATED DISABILITY,INTEGRATED DISABILITY - PD,DOMICILIARY CARE - THIRD PARTY,16/03/2018,,
OFH1819Q1.A000609,09/04/2018,Capital Homecare (UK) Ltd��,Commercial Supplier,904.96,D12532,OP - DOMICILIARY CARE,ADULTS & PUBLIC HEALTH,ADULT SOCIAL CARE,OLDER PEOPLE,OP - OLDER PEOPLE'S SERVICES,DOMICILIARY CARE - THIRD PARTY,14/03/2018,,
OFH1819Q1.A000610,09/04/2018,Capital Homecare (UK) Ltd��,Commercial Supplier,"2,036.16",D12332,PD - DOMICILIARY CARE,ADULTS & PUBLIC HEALTH,ADULT SOCIAL CARE,INTEGRATED DISABILITY,INTEGRATED DISABILITY - PD,DOMICILIARY CARE - THIRD PARTY,16/03/2018,,
OFH1819Q1.A000611,09/04/2018,Capital Homecare (UK) Ltd��,Commercial Supplier,533.39,D12532,OP - DOMICILIARY CARE,ADULTS & PUBLIC HEALTH,ADULT SOCIAL CARE,OLDER PEOPLE,OP - OLDER PEOPLE'S SERVICES,DOMICILIARY CARE - THIRD PARTY,16/03/2018,,
OFH1819Q1.A000612,09/04/2018,Capital Homecare (UK) Ltd��,Commercial Supplier,533.28,D12532,OP - DOMICILIARY CARE,ADULTS & PUBLIC HEALTH,ADULT SOCIAL CARE,OLDER PEOPLE,OP - OLDER PEOPLE'S SERVICES,DOMICILIARY CARE - THIRD PARTY,14/03/2018,,
OFH1819Q1.A000613,09/04/2018,Capital Homecare (UK) Ltd��,Commercial Supplier,"1,191.80",D12532,OP - DOMICILIARY CARE,ADULTS & PUBLIC HEALTH,ADULT SOCIAL CARE,OLDER PEOPLE,OP - OLDER PEOPLE'S SERVICES,DOMICILIARY CARE - THIRD PARTY,16/03/2018,,
OFH1819Q1.A000614,09/04/2018,Capital Homecare (UK) Ltd��,Commercial Supplier,816.08,D12332,PD - DOMICILIARY CARE,ADULTS & PUBLIC HEALTH,ADULT SOCIAL CARE,INTEGRATED DISABILITY,INTEGRATED DISABILITY - PD,DOMICILIARY CARE - THIRD PARTY,16/03/2018,,
OFH1819Q1.A000615,09/04/2018,Capital Homecare (UK) Ltd��,Commercial Supplier,"1,151.40",D12332,PD - DOMICILIARY CARE,ADULTS & PUBLIC HEALTH,ADULT SOCIAL CARE,INTEGRATED DISABILITY,INTEGRATED DISABILITY - PD,DOMICILIARY CARE - THIRD PARTY,16/03/2018,,
OFH1819Q1.A000616,09/04/2018,Capital Homecare (UK) Ltd��,Commercial Supplier,500.96,D12532,OP - DOMICILIARY CARE,ADULTS & PUBLIC HEALTH,ADULT SOCIAL CARE,OLDER PEOPLE,OP - OLDER PEOPLE'S SERVICES,DOMICILIARY CARE - THIRD PARTY,14/03/2018,,
OFH1819Q1.A000617,09/04/2018,Capital Homecare (UK) Ltd��,Commercial Supplier,856.48,D12532,OP - DOMICILIARY CARE,ADULTS & PUBLIC HEALTH,ADULT SOCIAL CARE,OLDER PEOPLE,OP - OLDER PEOPLE'S SERVICES,DOMICILIARY CARE - THIRD PARTY,14/03/2018,,
OFH1819Q1.A000618,09/04/2018,Carewatch (Lambeth)��,Commercial Supplier,"1,121.94",D12229,DOMICILIARY CARE LD,ADULTS & PUBLIC HEALTH,ADULT SOCIAL CARE,INTEGRATED DISABILITY,INTEGRATED DISABILITY - ALD,DOMICILIARY CARE - THIRD PARTY,16/03/2018,,
OFH1819Q1.A000619,09/04/2018,Carewatch (Lambeth)��,Commercial Supplier,650.42,D12332,PD - DOMICILIARY CARE,ADULTS & PUBLIC HEALTH,ADULT SOCIAL CARE,INTEGRATED DISABILITY,INTEGRATED DISABILITY - PD,DOMICILIARY CARE - THIRD PARTY,16/03/2018,,
OFH1819Q1.A000620,09/04/2018,Carewatch (Lambeth)��,Commercial Supplier,712.08,D12532,OP - DOMICILIARY CARE,ADULTS & PUBLIC HEALTH,ADULT SOCIAL CARE,OLDER PEOPLE,OP - OLDER PEOPLE'S SERVICES,DOMICILIARY CARE - THIRD PARTY,16/03/2018,,
OFH1819Q1.A000621,09/04/2018,Carewatch (Lambeth)��,Commercial Supplier,500.94,D12229,DOMICILIARY CARE LD,ADULTS & PUBLIC HEALTH,ADULT SOCIAL CARE,INTEGRATED DISABILITY,INTEGRATED DISABILITY - ALD,DOMICILIARY CARE - THIRD PARTY,16/03/2018,,
OFH1819Q1.A000622,09/04/2018,Carewatch (Lambeth)��,Commercial Supplier,799.02,D12532,OP - DOMICILIARY CARE,ADULTS & PUBLIC HEALTH,ADULT SOCIAL CARE,OLDER PEOPLE,OP - OLDER PEOPLE'S SERVICES,DOMICILIARY CARE - THIRD PARTY,22/03/2018,,
OFH1819Q1.A000623,09/04/2018,Carewatch (Lambeth)��,Commercial Supplier,724.5,D12229,DOMICILIARY CARE LD,ADULTS & PUBLIC HEALTH,ADULT SOCIAL CARE,INTEGRATED DISABILITY,INTEGRATED DISABILITY - ALD,DOMICILIARY CARE - THIRD PARTY,22/03/2018,,
OFH1819Q1.A000624,09/04/2018,Carewatch (Lambeth)��,Commercial Supplier,"1,473.84",D12532,OP - DOMICILIARY CARE,ADULTS & PUBLIC HEALTH,ADULT SOCIAL CARE,OLDER PEOPLE,OP - OLDER PEOPLE'S SERVICES,DOMICILIARY CARE - THIRD PARTY,22/03/2018,,
OFH1819Q1.A000625,09/04/2018,Carewatch (Lambeth)��,Commercial Supplier,602.59,D12532,OP - DOMICILIARY CARE,ADULTS & PUBLIC HEALTH,ADULT SOCIAL CARE,OLDER PEOPLE,OP - OLDER PEOPLE'S SERVICES,DOMICILIARY CARE - THIRD PARTY,16/03/2018,,
OFH1819Q1.A000626,09/04/2018,Carewatch (Lambeth)��,Commercial Supplier,612.72,D12229,DOMICILIARY CARE LD,ADULTS & PUBLIC HEALTH,ADULT SOCIAL CARE,INTEGRATED DISABILITY,INTEGRATED DISABILITY - ALD,DOMICILIARY CARE - THIRD PARTY,16/03/2018,,
OFH1819Q1.A000627,09/04/2018,Carewatch (Lambeth)��,Commercial Supplier,757.62,D12532,OP - DOMICILIARY CARE,ADULTS & PUBLIC HEALTH,ADULT SOCIAL CARE,OLDER PEOPLE,OP - OLDER PEOPLE'S SERVICES,DOMICILIARY CARE - THIRD PARTY,16/03/2018,,
OFH1819Q1.A000628,09/04/2018,Carewatch (Lambeth)��,Commercial Supplier,600.3,D12532,OP - DOMICILIARY CARE,ADULTS & PUBLIC HEALTH,ADULT SOCIAL CARE,OLDER PEOPLE,OP - OLDER PEOPLE'S SERVICES,DOMICILIARY CARE - THIRD PARTY,16/03/2018,,
OFH1819Q1.A000629,09/04/2018,Carewatch (Lambeth)��,Commercial Supplier,"3,456.90",D12229,DOMICILIARY CARE LD,ADULTS & PUBLIC HEALTH,ADULT SOCIAL CARE,INTEGRATED DISABILITY,INTEGRATED DISABILITY - ALD,DOMICILIARY CARE - THIRD PARTY,16/03/2018,,
OFH1819Q1.A000630,09/04/2018,Carewatch (Lambeth)��,Commercial Supplier,520.12,D12532,OP - DOMICILIARY CARE,ADULTS & PUBLIC HEALTH,ADULT SOCIAL CARE,OLDER PEOPLE,OP - OLDER PEOPLE'S SERVICES,DOMICILIARY CARE - THIRD PARTY,16/03/2018,,
OFH1819Q1.A000631,09/04/2018,Castle Water Ltd��,Commercial Supplier,691.67,D18133,ESTATE SERVICES MANAGER (NORTH),NEIGHBOURHOODS & GROWTH (HRA),HOUSING SERVICES (HRA),HOUSING MANAGEMENT - REPAIRS & MAINTENAN,HOUSING MANAGEMENT - REPAIRS AND MAINTEN,WATER AND SEWERAGE,06/04/2018,,
OFH1819Q1.A000632,09/04/2018,Castle Water Ltd��,Commercial Supplier,615.15,D18133,ESTATE SERVICES MANAGER (NORTH),NEIGHBOURHOODS & GROWTH (HRA),HOUSING SERVICES (HRA),HOUSING MANAGEMENT - REPAIRS & MAINTENAN,HOUSING MANAGEMENT - REPAIRS AND MAINTEN,WATER AND SEWERAGE,06/04/2018,,
OFH1819Q1.A000633,09/04/2018,Cityread��,Commercial Supplier,650,D14711,HEADQUARTERS,CHILDREN'S SERVICES,EDUCATION & LEARNING,LIBRARIES & ARCHIVE,LIBRARIES & ARCHIVES,EVENTS,06/04/2018,,
OFH1819Q1.A000634,09/04/2018,CVU��,Commercial Supplier,"22,242.39",D19998,CAPITAL COST CENTRE,,,,0,"MAINTENANCE - EQUIPMENT, FURNITURE AND MATERIALS",15/03/2018,,
OFH1819Q1.A000635,09/04/2018,CVU��,Commercial Supplier,"43,487.40",D19998,CAPITAL COST CENTRE,,,,0,"MAINTENANCE - EQUIPMENT, FURNITURE AND MATERIALS",15/03/2018,,
OFH1819Q1.A000636,09/04/2018,CVU��,Commercial Supplier,"43,529.20",D19998,CAPITAL COST CENTRE,,,,0,"MAINTENANCE - EQUIPMENT, FURNITURE AND MATERIALS",15/03/2018,,
OFH1819Q1.A000637,09/04/2018,CVU��,Commercial Supplier,"46,792.90",D19998,CAPITAL COST CENTRE,,,,0,"MAINTENANCE - EQUIPMENT, FURNITURE AND MATERIALS",15/03/2018,,
OFH1819Q1.A000638,09/04/2018,CVU��,Commercial Supplier,"43,066.10",D19998,CAPITAL COST CENTRE,,,,0,"MAINTENANCE - EQUIPMENT, FURNITURE AND MATERIALS",14/03/2018,,
OFH1819Q1.A000639,09/04/2018,CVU��,Commercial Supplier,"38,257.45",D19998,CAPITAL COST CENTRE,,,,0,"MAINTENANCE - EQUIPMENT, FURNITURE AND MATERIALS",15/03/2018,,
OFH1819Q1.A000640,09/04/2018,CVU��,Commercial Supplier,"44,666.05",D19998,CAPITAL COST CENTRE,,,,0,"MAINTENANCE - EQUIPMENT, FURNITURE AND MATERIALS",14/03/2018,,
OFH1819Q1.A000641,09/04/2018,CVU��,Commercial Supplier,"14,025.00",D19998,CAPITAL COST CENTRE,,,,0,"MAINTENANCE - EQUIPMENT, FURNITURE AND MATERIALS",15/03/2018,,
OFH1819Q1.A000642,09/04/2018,CVU��,Commercial Supplier,"26,400.00",D19998,CAPITAL COST CENTRE,,,,0,"MAINTENANCE - EQUIPMENT, FURNITURE AND MATERIALS",15/03/2018,,
OFH1819Q1.A000643,09/04/2018,CVU��,Commercial Supplier,"25,000.00",D19998,CAPITAL COST CENTRE,,,,0,"MAINTENANCE - EQUIPMENT, FURNITURE AND MATERIALS",15/03/2018,,
OFH1819Q1.A000644,09/04/2018,CVU��,Commercial Supplier,"5,573.13",D19998,CAPITAL COST CENTRE,,,,0,"MAINTENANCE - EQUIPMENT, FURNITURE AND MATERIALS",15/03/2018,,
OFH1819Q1.A000645,09/04/2018,CVU��,Commercial Supplier,"94,644.00",D19998,CAPITAL COST CENTRE,,,,0,"MAINTENANCE - EQUIPMENT, FURNITURE AND MATERIALS",15/03/2018,,
OFH1819Q1.A000646,09/04/2018,CVU��,Commercial Supplier,"55,645.18",D19998,CAPITAL COST CENTRE,,,,0,"MAINTENANCE - EQUIPMENT, FURNITURE AND MATERIALS",15/03/2018,,
OFH1819Q1.A000647,09/04/2018,CVU��,Commercial Supplier,"2,563.88",D19998,CAPITAL COST CENTRE,,,,0,"MAINTENANCE - EQUIPMENT, FURNITURE AND MATERIALS",15/03/2018,,
OFH1819Q1.A000648,09/04/2018,CVU��,Commercial Supplier,"10,000.00",D19998,CAPITAL COST CENTRE,,,,0,"MAINTENANCE - EQUIPMENT, FURNITURE AND MATERIALS",15/03/2018,,
OFH1819Q1.A000649,09/04/2018,CVU��,Commercial Supplier,"4,717.19",D19998,CAPITAL COST CENTRE,,,,0,"MAINTENANCE - EQUIPMENT, FURNITURE AND MATERIALS",15/03/2018,,
OFH1819Q1.A000650,09/04/2018,Cyclehoop Ltd��,Commercial Supplier,"9,750.00",D18131,AREA HOUSING MANAGER NORTH,NEIGHBOURHOODS & GROWTH (HRA),HOUSING SERVICES (HRA),HOUSING MANAGEMENT - REPAIRS & MAINTENAN,HOUSING MANAGEMENT - REPAIRS AND MAINTEN,"PURCHASE - EQUIPMENT, FURNITURE AND MATERIALS",13/03/2018,,
OFH1819Q1.A000651,09/04/2018,Cyclehoop Ltd��,Commercial Supplier,"77,823.85",D18061,ESTATE PRIDE,NEIGHBOURHOODS & GROWTH (HRA),HOUSING SERVICES (HRA),HOUSING MANAGEMENT - REPAIRS & MAINTENAN,HOUSING MANAGEMENT - REPAIRS AND MAINTEN,"PURCHASE - EQUIPMENT, FURNITURE AND MATERIALS",13/03/2018,,
OFH1819Q1.A000652,09/04/2018,Dolphin Computer Access Ltd��,Commercial Supplier,579.89,D14711,HEADQUARTERS,CHILDREN'S SERVICES,EDUCATION & LEARNING,LIBRARIES & ARCHIVE,LIBRARIES & ARCHIVES,SPECIALIST EQUIPMENT FOR SERVICE PROVISION,06/04/2018,,
OFH1819Q1.A000653,09/04/2018,Environmental Health Solutions & Training Ltd��,Commercial Supplier,"4,210.00",D14512,DEVELOPMENT MANAGEMENT,NEIGHBOURHOODS & GROWTH,"GROWTH, PLANNING & EMPLOYMENT","PLANNING, TRANSPORT & DEVELOPMENT",PLANNING,CONSULTANCY FEES,12/03/2018,,
OFH1819Q1.A000654,09/04/2018,Furnace Managed Services Ltd��,Commercial Supplier,"83,142.00",D19998,CAPITAL COST CENTRE,,,,0,BEREAVEMENT SERVICES EQUIPMENT,13/03/2018,,
OFH1819Q1.A000655,09/04/2018,*******,Commercial Supplier,696,D12334,PD - EXTRA CARE HOUSING,ADULTS & PUBLIC HEALTH,ADULT SOCIAL CARE,INTEGRATED DISABILITY,INTEGRATED DISABILITY - PD,TRANSLATORS AND INTERPRETERS,21/03/2018,,
OFH1819Q1.A000656,09/04/2018,Grant & Cutler at Foyles��,Commercial Supplier,999.61,D14711,HEADQUARTERS,CHILDREN'S SERVICES,EDUCATION & LEARNING,LIBRARIES & ARCHIVE,LIBRARIES & ARCHIVES,"BOOKS, PUBLICATIONS AND RESOURCES",13/03/2018,,
OFH1819Q1.A000657,09/04/2018,Greenwich Leisure Ltd��,Commercial Supplier,"40,432.83",D14781,LEISURE ESTATE,NEIGHBOURHOODS & GROWTH,ENVIRONMENT,ENVIRONMENT,CULTURE AND COMMUNITIES,ARTS AND LEISURE COSTS,16/03/2018,,
OFH1819Q1.A000658,09/04/2018,Jacqui Clark Illustration and Design��,Commercial Supplier,"1,135.00",D14538,TRANSPORT,NEIGHBOURHOODS & GROWTH,"GROWTH, PLANNING & EMPLOYMENT","PLANNING, TRANSPORT & DEVELOPMENT",TRANSPORTATION,"ADVERTISING, PUBLICITY AND MARKETING",13/03/2018,,
OFH1819Q1.A000659,09/04/2018,KWAS Ltd,COMMERCIAL SUPPLIER,-648,D12223,RESIDENTIAL (EXTERNAL): TEAM 1,ADULTS & PUBLIC HEALTH,ADULT SOCIAL CARE,INTEGRATED DISABILITY,INTEGRATED DISABILITY - ALD,RESIDENTIAL CARE INCOME,,04/04/2018,
OFH1819Q1.A000660,09/04/2018,KWAS Ltd,COMMERCIAL SUPPLIER,"8,008.15",D12223,RESIDENTIAL (EXTERNAL): TEAM 1,ADULTS & PUBLIC HEALTH,ADULT SOCIAL CARE,INTEGRATED DISABILITY,INTEGRATED DISABILITY - ALD,RESIDENTIAL PLACEMENTS - PRIVA,,04/04/2018,
OFH1819Q1.A000661,09/04/2018,KWAS Ltd,COMMERCIAL SUPPLIER,"8,440.56",D12223,RESIDENTIAL (EXTERNAL): TEAM 1,ADULTS & PUBLIC HEALTH,ADULT SOCIAL CARE,INTEGRATED DISABILITY,INTEGRATED DISABILITY - ALD,RESIDENTIAL PLACEMENTS - PRIVA,,04/04/2018,
OFH1819Q1.A000662,09/04/2018,KWAS Ltd,COMMERCIAL SUPPLIER,-400.6,D12223,RESIDENTIAL (EXTERNAL): TEAM 1,ADULTS & PUBLIC HEALTH,ADULT SOCIAL CARE,INTEGRATED DISABILITY,INTEGRATED DISABILITY - ALD,RESIDENTIAL CARE INCOME,,04/04/2018,
OFH1819Q1.A000663,09/04/2018,Lambeth Lighting Services��,Commercial Supplier,"1,778.00",D19998,CAPITAL COST CENTRE,,,,0,"PURCHASE - EQUIPMENT, FURNITURE AND MATERIALS",21/03/2018,,
OFH1819Q1.A000664,09/04/2018,Lambeth Lighting Services��,Commercial Supplier,"3,657.89",D14283,STREET LIGHTING PFI,NEIGHBOURHOODS & GROWTH,ENVIRONMENT,NEIGHBOURHOODS,STREET MANAGEMENT,"PURCHASE - EQUIPMENT, FURNITURE AND MATERIALS",21/03/2018,,
OFH1819Q1.A000665,09/04/2018,Lambeth Lighting Services��,Commercial Supplier,"1,705.09",D14281,HIGHWAYS,NEIGHBOURHOODS & GROWTH,ENVIRONMENT,NEIGHBOURHOODS,STREET MANAGEMENT,"PURCHASE - EQUIPMENT, FURNITURE AND MATERIALS",21/03/2018,,
OFH1819Q1.A000666,09/04/2018,Lambeth Lighting Services��,Commercial Supplier,"5,691.48",D14283,STREET LIGHTING PFI,NEIGHBOURHOODS & GROWTH,ENVIRONMENT,NEIGHBOURHOODS,STREET MANAGEMENT,"PURCHASE - EQUIPMENT, FURNITURE AND MATERIALS",21/03/2018,,
OFH1819Q1.A000667,09/04/2018,Lambeth Lighting Services��,Commercial Supplier,"2,235.00",D14281,HIGHWAYS,NEIGHBOURHOODS & GROWTH,ENVIRONMENT,NEIGHBOURHOODS,STREET MANAGEMENT,"PURCHASE - EQUIPMENT, FURNITURE AND MATERIALS",21/03/2018,,
OFH1819Q1.A000668,09/04/2018,Lambeth Lighting Services��,Commercial Supplier,"6,627.09",D14283,STREET LIGHTING PFI,NEIGHBOURHOODS & GROWTH,ENVIRONMENT,NEIGHBOURHOODS,STREET MANAGEMENT,"PURCHASE - EQUIPMENT, FURNITURE AND MATERIALS",21/03/2018,,
OFH1819Q1.A000669,09/04/2018,Lambeth Lighting Services��,Commercial Supplier,"2,345.67",D14283,STREET LIGHTING PFI,NEIGHBOURHOODS & GROWTH,ENVIRONMENT,NEIGHBOURHOODS,STREET MANAGEMENT,"PURCHASE - EQUIPMENT, FURNITURE AND MATERIALS",21/03/2018,,
OFH1819Q1.A000670,09/04/2018,Lambeth Lighting Services��,Commercial Supplier,923.53,D19998,CAPITAL COST CENTRE,,,,0,"PURCHASE - EQUIPMENT, FURNITURE AND MATERIALS",21/03/2018,,
OFH1819Q1.A000671,09/04/2018,Lambeth Lighting Services��,Commercial Supplier,"1,065.00",D14283,STREET LIGHTING PFI,NEIGHBOURHOODS & GROWTH,ENVIRONMENT,NEIGHBOURHOODS,STREET MANAGEMENT,"PURCHASE - EQUIPMENT, FURNITURE AND MATERIALS",21/03/2018,,
OFH1819Q1.A000672,09/04/2018,Lambeth Lighting Services��,Commercial Supplier,"1,035.96",D19998,CAPITAL COST CENTRE,,,,0,"PURCHASE - EQUIPMENT, FURNITURE AND MATERIALS",21/03/2018,,
OFH1819Q1.A000673,09/04/2018,Lambeth Lighting Services��,Commercial Supplier,"5,589.88",D19998,CAPITAL COST CENTRE,,,,0,"PURCHASE - EQUIPMENT, FURNITURE AND MATERIALS",21/03/2018,,
OFH1819Q1.A000674,09/04/2018,Lambeth Mencap,COMMERCIAL SUPPLIER,"1,040.00",D12233,DAY CARE LD,ADULTS & PUBLIC HEALTH,ADULT SOCIAL CARE,INTEGRATED DISABILITY,INTEGRATED DISABILITY - ALD,DAYCARE - PRIVATE CONTRACTORS,,06/04/2018,
OFH1819Q1.A000675,09/04/2018,Lawson Demolition Ltd��,Commercial Supplier,"38,075.00",D18102,AREA RESPONSIVE REPAIRS MANAGER (CENTRAL,NEIGHBOURHOODS & GROWTH (HRA),HOUSING SERVICES (HRA),HOUSING MANAGEMENT - REPAIRS & MAINTENAN,HOUSING MANAGEMENT - REPAIRS AND MAINTEN,HEALTH AND SAFETY WORKS,13/03/2018,,
OFH1819Q1.A000676,09/04/2018,London Hire Ltd��,Commercial Supplier,650,D14752,PARKS,NEIGHBOURHOODS & GROWTH,ENVIRONMENT,NEIGHBOURHOODS,PARKS,VEHICLE HIRE,15/03/2018,,
OFH1819Q1.A000677,09/04/2018,Mears Care Ltd,COMMERCIAL SUPPLIER,"1,088.08",D12332,PD - DOMICILIARY CARE,ADULTS & PUBLIC HEALTH,ADULT SOCIAL CARE,INTEGRATED DISABILITY,INTEGRATED DISABILITY - PD,DOMICILIARY CARE - THIRD PARTY,,02/04/2018,
OFH1819Q1.A000678,09/04/2018,Mears Care Ltd,COMMERCIAL SUPPLIER,588.7,D12532,OP - DOMICILIARY CARE,ADULTS & PUBLIC HEALTH,ADULT SOCIAL CARE,OLDER PEOPLE,OP - OLDER PEOPLE'S SERVICES,DOMICILIARY CARE - THIRD PARTY,,05/04/2018,
OFH1819Q1.A000679,09/04/2018,Mears Ltd��,Commercial Supplier,"1,277,304.79",D19998,CAPITAL COST CENTRE,,,,0,FACILITIES MANAGEMENT,14/03/2018,,
OFH1819Q1.A000680,09/04/2018,Mears Ltd��,Commercial Supplier,"505,206.76",D18072,PLANNED MAINTENANCE (NORTH),NEIGHBOURHOODS & GROWTH (HRA),STRATEGIC PROGRAMMES (HRA),HOUSING CAPITAL & ASSET MANAGEMENT,TECHNICAL SERVICES,FACILITIES MANAGEMENT,14/03/2018,,
OFH1819Q1.A000681,09/04/2018,Mears Ltd��,Commercial Supplier,"209,105.14",D19998,CAPITAL COST CENTRE,,,,0,FACILITIES MANAGEMENT,14/03/2018,,
OFH1819Q1.A000682,09/04/2018,Mears Ltd��,Commercial Supplier,"14,742.29",D19998,CAPITAL COST CENTRE,,,,0,FACILITIES MANAGEMENT,15/03/2018,,
OFH1819Q1.A000683,09/04/2018,Mears Ltd��,Commercial Supplier,"154,912.53",D19998,CAPITAL COST CENTRE,,,,0,FACILITIES MANAGEMENT,15/03/2018,,
OFH1819Q1.A000684,09/04/2018,Mears Ltd��,Commercial Supplier,"98,497.06",D19998,CAPITAL COST CENTRE,,,,0,FACILITIES MANAGEMENT,15/03/2018,,
OFH1819Q1.A000685,09/04/2018,Mears Ltd��,Commercial Supplier,"330,006.91",D19998,CAPITAL COST CENTRE,,,,0,FACILITIES MANAGEMENT,16/03/2018,,
OFH1819Q1.A000686,09/04/2018,Mears Ltd��,Commercial Supplier,"19,371.63",D19998,CAPITAL COST CENTRE,,,,0,FACILITIES MANAGEMENT,15/03/2018,,
OFH1819Q1.A000687,09/04/2018,Mears Ltd��,Commercial Supplier,"9,950.40",D19998,CAPITAL COST CENTRE,,,,0,FACILITIES MANAGEMENT,21/03/2018,,
OFH1819Q1.A000688,09/04/2018,Moving With Care Ltd,COMMERCIAL SUPPLIER,"3,037.42",D13083,LAC PLACEMENT-INDEPENDENT FOSTERING AGEN,CHILDREN'S SERVICES,CHILDREN'S SERVICES,CHILDREN LOOKED AFTER,FOSTERING,CLIENT TRANSPORT,,06/04/2018,
OFH1819Q1.A000689,09/04/2018,NLA Media Access Ltd��,Commercial Supplier,"2,692.00",D10029,POLICY & COMMUNICATIONS - COMMUNICATIONS,CORPORATE RESOURCES,POLICY & COMMUNICATIONS,POLICY & COMMUNICATIONS,CAMPAIGNS & COMMUNICATIONS,ICT MAINTENANCE AND SUPPORT,17/03/2018,,
OFH1819Q1.A000690,09/04/2018,Oasis Care & Training Agency,COMMERCIAL SUPPLIER,"1,729.35",D12332,PD - DOMICILIARY CARE,ADULTS & PUBLIC HEALTH,ADULT SOCIAL CARE,INTEGRATED DISABILITY,INTEGRATED DISABILITY - PD,DOMICILIARY CARE - THIRD PARTY,,06/04/2018,
OFH1819Q1.A000691,09/04/2018,Oasis Care & Training Agency,COMMERCIAL SUPPLIER,"1,142.10",D12532,OP - DOMICILIARY CARE,ADULTS & PUBLIC HEALTH,ADULT SOCIAL CARE,OLDER PEOPLE,OP - OLDER PEOPLE'S SERVICES,DOMICILIARY CARE - THIRD PARTY,,06/04/2018,
OFH1819Q1.A000692,09/04/2018,Oasis Care & Training Agency,COMMERCIAL SUPPLIER,801.9,D12532,OP - DOMICILIARY CARE,ADULTS & PUBLIC HEALTH,ADULT SOCIAL CARE,OLDER PEOPLE,OP - OLDER PEOPLE'S SERVICES,DOMICILIARY CARE - THIRD PARTY,,06/04/2018,
OFH1819Q1.A000693,09/04/2018,Oasis Care & Training Agency,COMMERCIAL SUPPLIER,567,D12532,OP - DOMICILIARY CARE,ADULTS & PUBLIC HEALTH,ADULT SOCIAL CARE,OLDER PEOPLE,OP - OLDER PEOPLE'S SERVICES,DOMICILIARY CARE - THIRD PARTY,,06/04/2018,
OFH1819Q1.A000694,09/04/2018,Oasis Care & Training Agency,COMMERCIAL SUPPLIER,"2,133.92",D12532,OP - DOMICILIARY CARE,ADULTS & PUBLIC HEALTH,ADULT SOCIAL CARE,OLDER PEOPLE,OP - OLDER PEOPLE'S SERVICES,DOMICILIARY CARE - THIRD PARTY,,06/04/2018,
OFH1819Q1.A000695,09/04/2018,Oasis Care & Training Agency,COMMERCIAL SUPPLIER,"1,020.60",D12532,OP - DOMICILIARY CARE,ADULTS & PUBLIC HEALTH,ADULT SOCIAL CARE,OLDER PEOPLE,OP - OLDER PEOPLE'S SERVICES,DOMICILIARY CARE - THIRD PARTY,,06/04/2018,
OFH1819Q1.A000696,09/04/2018,Oasis Care & Training Agency,COMMERCIAL SUPPLIER,"2,133.92",D12532,OP - DOMICILIARY CARE,ADULTS & PUBLIC HEALTH,ADULT SOCIAL CARE,OLDER PEOPLE,OP - OLDER PEOPLE'S SERVICES,DOMICILIARY CARE - THIRD PARTY,,06/04/2018,
OFH1819Q1.A000697,09/04/2018,Oasis Care & Training Agency,COMMERCIAL SUPPLIER,855.74,D12532,OP - DOMICILIARY CARE,ADULTS & PUBLIC HEALTH,ADULT SOCIAL CARE,OLDER PEOPLE,OP - OLDER PEOPLE'S SERVICES,DOMICILIARY CARE - THIRD PARTY,,06/04/2018,
OFH1819Q1.A000698,09/04/2018,Oasis Care & Training Agency,COMMERCIAL SUPPLIER,900.24,D12532,OP - DOMICILIARY CARE,ADULTS & PUBLIC HEALTH,ADULT SOCIAL CARE,OLDER PEOPLE,OP - OLDER PEOPLE'S SERVICES,DOMICILIARY CARE - THIRD PARTY,,06/04/2018,
OFH1819Q1.A000699,09/04/2018,Oasis Care & Training Agency,COMMERCIAL SUPPLIER,927.45,D12532,OP - DOMICILIARY CARE,ADULTS & PUBLIC HEALTH,ADULT SOCIAL CARE,OLDER PEOPLE,OP - OLDER PEOPLE'S SERVICES,DOMICILIARY CARE - THIRD PARTY,,06/04/2018,
OFH1819Q1.A000700,09/04/2018,Oasis Care & Training Agency,COMMERCIAL SUPPLIER,"1,247.40",D12332,PD - DOMICILIARY CARE,ADULTS & PUBLIC HEALTH,ADULT SOCIAL CARE,INTEGRATED DISABILITY,INTEGRATED DISABILITY - PD,DOMICILIARY CARE - THIRD PARTY,,06/04/2018,
OFH1819Q1.A000701,09/04/2018,Oasis Care & Training Agency,COMMERCIAL SUPPLIER,542.7,D12532,OP - DOMICILIARY CARE,ADULTS & PUBLIC HEALTH,ADULT SOCIAL CARE,OLDER PEOPLE,OP - OLDER PEOPLE'S SERVICES,DOMICILIARY CARE - THIRD PARTY,,06/04/2018,
OFH1819Q1.A000702,09/04/2018,Oasis Care & Training Agency,COMMERCIAL SUPPLIER,729,D12532,OP - DOMICILIARY CARE,ADULTS & PUBLIC HEALTH,ADULT SOCIAL CARE,OLDER PEOPLE,OP - OLDER PEOPLE'S SERVICES,DOMICILIARY CARE - THIRD PARTY,,06/04/2018,
OFH1819Q1.A000703,09/04/2018,Oasis Care & Training Agency,COMMERCIAL SUPPLIER,"2,502.90",D12532,OP - DOMICILIARY CARE,ADULTS & PUBLIC HEALTH,ADULT SOCIAL CARE,OLDER PEOPLE,OP - OLDER PEOPLE'S SERVICES,DOMICILIARY CARE - THIRD PARTY,,06/04/2018,
OFH1819Q1.A000704,09/04/2018,Oasis Care & Training Agency,COMMERCIAL SUPPLIER,"2,608.20",D12332,PD - DOMICILIARY CARE,ADULTS & PUBLIC HEALTH,ADULT SOCIAL CARE,INTEGRATED DISABILITY,INTEGRATED DISABILITY - PD,DOMICILIARY CARE - THIRD PARTY,,06/04/2018,
OFH1819Q1.A000705,09/04/2018,Oasis Care & Training Agency,COMMERCIAL SUPPLIER,575.61,D12532,OP - DOMICILIARY CARE,ADULTS & PUBLIC HEALTH,ADULT SOCIAL CARE,OLDER PEOPLE,OP - OLDER PEOPLE'S SERVICES,DOMICILIARY CARE - THIRD PARTY,,06/04/2018,
OFH1819Q1.A000706,09/04/2018,Oasis Care & Training Agency,COMMERCIAL SUPPLIER,"3,628.80",D12332,PD - DOMICILIARY CARE,ADULTS & PUBLIC HEALTH,ADULT SOCIAL CARE,INTEGRATED DISABILITY,INTEGRATED DISABILITY - PD,DOMICILIARY CARE - THIRD PARTY,,06/04/2018,
OFH1819Q1.A000707,09/04/2018,Oasis Care & Training Agency,COMMERCIAL SUPPLIER,"1,753.65",D12532,OP - DOMICILIARY CARE,ADULTS & PUBLIC HEALTH,ADULT SOCIAL CARE,OLDER PEOPLE,OP - OLDER PEOPLE'S SERVICES,DOMICILIARY CARE - THIRD PARTY,,06/04/2018,
OFH1819Q1.A000708,09/04/2018,Oasis Care & Training Agency,COMMERCIAL SUPPLIER,"1,976.40",D12532,OP - DOMICILIARY CARE,ADULTS & PUBLIC HEALTH,ADULT SOCIAL CARE,OLDER PEOPLE,OP - OLDER PEOPLE'S SERVICES,DOMICILIARY CARE - THIRD PARTY,,06/04/2018,
OFH1819Q1.A000709,09/04/2018,Oasis Care & Training Agency,COMMERCIAL SUPPLIER,"1,134.00",D12532,OP - DOMICILIARY CARE,ADULTS & PUBLIC HEALTH,ADULT SOCIAL CARE,OLDER PEOPLE,OP - OLDER PEOPLE'S SERVICES,DOMICILIARY CARE - THIRD PARTY,,06/04/2018,
OFH1819Q1.A000710,09/04/2018,Oasis Care & Training Agency,COMMERCIAL SUPPLIER,613.95,D12532,OP - DOMICILIARY CARE,ADULTS & PUBLIC HEALTH,ADULT SOCIAL CARE,OLDER PEOPLE,OP - OLDER PEOPLE'S SERVICES,DOMICILIARY CARE - THIRD PARTY,,06/04/2018,
OFH1819Q1.A000711,09/04/2018,Oasis Care & Training Agency,COMMERCIAL SUPPLIER,850.5,D12332,PD - DOMICILIARY CARE,ADULTS & PUBLIC HEALTH,ADULT SOCIAL CARE,INTEGRATED DISABILITY,INTEGRATED DISABILITY - PD,DOMICILIARY CARE - THIRD PARTY,,06/04/2018,
OFH1819Q1.A000712,09/04/2018,Oasis Care & Training Agency,COMMERCIAL SUPPLIER,"2,255.85",D12532,OP - DOMICILIARY CARE,ADULTS & PUBLIC HEALTH,ADULT SOCIAL CARE,OLDER PEOPLE,OP - OLDER PEOPLE'S SERVICES,DOMICILIARY CARE - THIRD PARTY,,06/04/2018,
OFH1819Q1.A000713,09/04/2018,Oasis Care & Training Agency,COMMERCIAL SUPPLIER,680.4,D12532,OP - DOMICILIARY CARE,ADULTS & PUBLIC HEALTH,ADULT SOCIAL CARE,OLDER PEOPLE,OP - OLDER PEOPLE'S SERVICES,DOMICILIARY CARE - THIRD PARTY,,06/04/2018,
OFH1819Q1.A000714,09/04/2018,Oasis Care & Training Agency,COMMERCIAL SUPPLIER,542.7,D12532,OP - DOMICILIARY CARE,ADULTS & PUBLIC HEALTH,ADULT SOCIAL CARE,OLDER PEOPLE,OP - OLDER PEOPLE'S SERVICES,DOMICILIARY CARE - THIRD PARTY,,06/04/2018,
OFH1819Q1.A000715,09/04/2018,Oasis Care & Training Agency,COMMERCIAL SUPPLIER,"1,089.45",D12532,OP - DOMICILIARY CARE,ADULTS & PUBLIC HEALTH,ADULT SOCIAL CARE,OLDER PEOPLE,OP - OLDER PEOPLE'S SERVICES,DOMICILIARY CARE - THIRD PARTY,,06/04/2018,
OFH1819Q1.A000716,09/04/2018,Oasis Care & Training Agency,COMMERCIAL SUPPLIER,966.18,D12532,OP - DOMICILIARY CARE,ADULTS & PUBLIC HEALTH,ADULT SOCIAL CARE,OLDER PEOPLE,OP - OLDER PEOPLE'S SERVICES,DOMICILIARY CARE - THIRD PARTY,,06/04/2018,
OFH1819Q1.A000717,09/04/2018,Oasis Care & Training Agency,COMMERCIAL SUPPLIER,"1,522.80",D12532,OP - DOMICILIARY CARE,ADULTS & PUBLIC HEALTH,ADULT SOCIAL CARE,OLDER PEOPLE,OP - OLDER PEOPLE'S SERVICES,DOMICILIARY CARE - THIRD PARTY,,06/04/2018,
OFH1819Q1.A000718,09/04/2018,Oasis Care & Training Agency,COMMERCIAL SUPPLIER,680.4,D12532,OP - DOMICILIARY CARE,ADULTS & PUBLIC HEALTH,ADULT SOCIAL CARE,OLDER PEOPLE,OP - OLDER PEOPLE'S SERVICES,DOMICILIARY CARE - THIRD PARTY,,06/04/2018,
OFH1819Q1.A000719,09/04/2018,Oasis Care & Training Agency,COMMERCIAL SUPPLIER,"1,320.30",D12332,PD - DOMICILIARY CARE,ADULTS & PUBLIC HEALTH,ADULT SOCIAL CARE,INTEGRATED DISABILITY,INTEGRATED DISABILITY - PD,DOMICILIARY CARE - THIRD PARTY,,06/04/2018,
OFH1819Q1.A000720,09/04/2018,Oasis Care & Training Agency,COMMERCIAL SUPPLIER,842.4,D12532,OP - DOMICILIARY CARE,ADULTS & PUBLIC HEALTH,ADULT SOCIAL CARE,OLDER PEOPLE,OP - OLDER PEOPLE'S SERVICES,DOMICILIARY CARE - THIRD PARTY,,06/04/2018,
OFH1819Q1.A000721,09/04/2018,Oasis Care & Training Agency,COMMERCIAL SUPPLIER,510.3,D12332,PD - DOMICILIARY CARE,ADULTS & PUBLIC HEALTH,ADULT SOCIAL CARE,INTEGRATED DISABILITY,INTEGRATED DISABILITY - PD,DOMICILIARY CARE - THIRD PARTY,,06/04/2018,
OFH1819Q1.A000722,09/04/2018,Oasis Care & Training Agency,COMMERCIAL SUPPLIER,"1,247.40",D12532,OP - DOMICILIARY CARE,ADULTS & PUBLIC HEALTH,ADULT SOCIAL CARE,OLDER PEOPLE,OP - OLDER PEOPLE'S SERVICES,DOMICILIARY CARE - THIRD PARTY,,06/04/2018,
OFH1819Q1.A000723,09/04/2018,Oasis Care & Training Agency,COMMERCIAL SUPPLIER,882.9,D12532,OP - DOMICILIARY CARE,ADULTS & PUBLIC HEALTH,ADULT SOCIAL CARE,OLDER PEOPLE,OP - OLDER PEOPLE'S SERVICES,DOMICILIARY CARE - THIRD PARTY,,06/04/2018,
OFH1819Q1.A000724,09/04/2018,Oasis Care & Training Agency,COMMERCIAL SUPPLIER,700.65,D12532,OP - DOMICILIARY CARE,ADULTS & PUBLIC HEALTH,ADULT SOCIAL CARE,OLDER PEOPLE,OP - OLDER PEOPLE'S SERVICES,DOMICILIARY CARE - THIRD PARTY,,06/04/2018,
OFH1819Q1.A000725,09/04/2018,Oasis Care & Training Agency,COMMERCIAL SUPPLIER,907.2,D12532,OP - DOMICILIARY CARE,ADULTS & PUBLIC HEALTH,ADULT SOCIAL CARE,OLDER PEOPLE,OP - OLDER PEOPLE'S SERVICES,DOMICILIARY CARE - THIRD PARTY,,06/04/2018,
OFH1819Q1.A000726,09/04/2018,Oasis Care & Training Agency,COMMERCIAL SUPPLIER,"1,101.60",D12532,OP - DOMICILIARY CARE,ADULTS & PUBLIC HEALTH,ADULT SOCIAL CARE,OLDER PEOPLE,OP - OLDER PEOPLE'S SERVICES,DOMICILIARY CARE - THIRD PARTY,,06/04/2018,
OFH1819Q1.A000727,09/04/2018,Oasis Care & Training Agency,COMMERCIAL SUPPLIER,793.8,D12332,PD - DOMICILIARY CARE,ADULTS & PUBLIC HEALTH,ADULT SOCIAL CARE,INTEGRATED DISABILITY,INTEGRATED DISABILITY - PD,DOMICILIARY CARE - THIRD PARTY,,06/04/2018,
OFH1819Q1.A000728,09/04/2018,Oasis Care & Training Agency,COMMERCIAL SUPPLIER,"1,061.10",D12332,PD - DOMICILIARY CARE,ADULTS & PUBLIC HEALTH,ADULT SOCIAL CARE,INTEGRATED DISABILITY,INTEGRATED DISABILITY - PD,DOMICILIARY CARE - THIRD PARTY,,06/04/2018,
OFH1819Q1.A000729,09/04/2018,Oasis Care & Training Agency,COMMERCIAL SUPPLIER,"1,802.25",D12532,OP - DOMICILIARY CARE,ADULTS & PUBLIC HEALTH,ADULT SOCIAL CARE,OLDER PEOPLE,OP - OLDER PEOPLE'S SERVICES,DOMICILIARY CARE - THIRD PARTY,,06/04/2018,
OFH1819Q1.A000730,09/04/2018,Oasis Care & Training Agency,COMMERCIAL SUPPLIER,"2,284.20",D12532,OP - DOMICILIARY CARE,ADULTS & PUBLIC HEALTH,ADULT SOCIAL CARE,OLDER PEOPLE,OP - OLDER PEOPLE'S SERVICES,DOMICILIARY CARE - THIRD PARTY,,06/04/2018,
OFH1819Q1.A000731,09/04/2018,Oasis Care & Training Agency,COMMERCIAL SUPPLIER,939.6,D12532,OP - DOMICILIARY CARE,ADULTS & PUBLIC HEALTH,ADULT SOCIAL CARE,OLDER PEOPLE,OP - OLDER PEOPLE'S SERVICES,DOMICILIARY CARE - THIRD PARTY,,06/04/2018,
OFH1819Q1.A000732,09/04/2018,Oasis Care & Training Agency,COMMERCIAL SUPPLIER,907.2,D12229,DOMICILIARY CARE LD,ADULTS & PUBLIC HEALTH,ADULT SOCIAL CARE,INTEGRATED DISABILITY,INTEGRATED DISABILITY - ALD,DOMICILIARY CARE - THIRD PARTY,,06/04/2018,
OFH1819Q1.A000733,09/04/2018,Oasis Care & Training Agency,COMMERCIAL SUPPLIER,"4,082.40",D12229,DOMICILIARY CARE LD,ADULTS & PUBLIC HEALTH,ADULT SOCIAL CARE,INTEGRATED DISABILITY,INTEGRATED DISABILITY - ALD,DOMICILIARY CARE - THIRD PARTY,,06/04/2018,
OFH1819Q1.A000734,09/04/2018,Oasis Care & Training Agency,COMMERCIAL SUPPLIER,907.2,D12532,OP - DOMICILIARY CARE,ADULTS & PUBLIC HEALTH,ADULT SOCIAL CARE,OLDER PEOPLE,OP - OLDER PEOPLE'S SERVICES,DOMICILIARY CARE - THIRD PARTY,,06/04/2018,
OFH1819Q1.A000735,09/04/2018,Oasis Care & Training Agency,COMMERCIAL SUPPLIER,"1,539.00",D12332,PD - DOMICILIARY CARE,ADULTS & PUBLIC HEALTH,ADULT SOCIAL CARE,INTEGRATED DISABILITY,INTEGRATED DISABILITY - PD,DOMICILIARY CARE - THIRD PARTY,,06/04/2018,
OFH1819Q1.A000736,09/04/2018,Oasis Care & Training Agency,COMMERCIAL SUPPLIER,567,D12532,OP - DOMICILIARY CARE,ADULTS & PUBLIC HEALTH,ADULT SOCIAL CARE,OLDER PEOPLE,OP - OLDER PEOPLE'S SERVICES,DOMICILIARY CARE - THIRD PARTY,,06/04/2018,
OFH1819Q1.A000737,09/04/2018,Oasis Care & Training Agency,COMMERCIAL SUPPLIER,"2,527.20",D12332,PD - DOMICILIARY CARE,ADULTS & PUBLIC HEALTH,ADULT SOCIAL CARE,INTEGRATED DISABILITY,INTEGRATED DISABILITY - PD,DOMICILIARY CARE - THIRD PARTY,,06/04/2018,
OFH1819Q1.A000738,09/04/2018,Oasis Care & Training Agency,COMMERCIAL SUPPLIER,810,D12332,PD - DOMICILIARY CARE,ADULTS & PUBLIC HEALTH,ADULT SOCIAL CARE,INTEGRATED DISABILITY,INTEGRATED DISABILITY - PD,DOMICILIARY CARE - THIRD PARTY,,06/04/2018,
OFH1819Q1.A000739,09/04/2018,Oasis Care & Training Agency,COMMERCIAL SUPPLIER,"1,401.30",D12532,OP - DOMICILIARY CARE,ADULTS & PUBLIC HEALTH,ADULT SOCIAL CARE,OLDER PEOPLE,OP - OLDER PEOPLE'S SERVICES,DOMICILIARY CARE - THIRD PARTY,,06/04/2018,
OFH1819Q1.A000740,09/04/2018,Oasis Care & Training Agency,COMMERCIAL SUPPLIER,942.85,D12532,OP - DOMICILIARY CARE,ADULTS & PUBLIC HEALTH,ADULT SOCIAL CARE,OLDER PEOPLE,OP - OLDER PEOPLE'S SERVICES,DOMICILIARY CARE - THIRD PARTY,,06/04/2018,
OFH1819Q1.A000741,09/04/2018,Oasis Care & Training Agency,COMMERCIAL SUPPLIER,891,D12532,OP - DOMICILIARY CARE,ADULTS & PUBLIC HEALTH,ADULT SOCIAL CARE,OLDER PEOPLE,OP - OLDER PEOPLE'S SERVICES,DOMICILIARY CARE - THIRD PARTY,,06/04/2018,
OFH1819Q1.A000742,09/04/2018,Oasis Care & Training Agency,COMMERCIAL SUPPLIER,"2,956.50",D12332,PD - DOMICILIARY CARE,ADULTS & PUBLIC HEALTH,ADULT SOCIAL CARE,INTEGRATED DISABILITY,INTEGRATED DISABILITY - PD,DOMICILIARY CARE - THIRD PARTY,,06/04/2018,
OFH1819Q1.A000743,09/04/2018,Oasis Care & Training Agency,COMMERCIAL SUPPLIER,"2,316.60",D12332,PD - DOMICILIARY CARE,ADULTS & PUBLIC HEALTH,ADULT SOCIAL CARE,INTEGRATED DISABILITY,INTEGRATED DISABILITY - PD,DOMICILIARY CARE - THIRD PARTY,,06/04/2018,
OFH1819Q1.A000744,09/04/2018,Oasis Care & Training Agency,COMMERCIAL SUPPLIER,"2,494.80",D12332,PD - DOMICILIARY CARE,ADULTS & PUBLIC HEALTH,ADULT SOCIAL CARE,INTEGRATED DISABILITY,INTEGRATED DISABILITY - PD,DOMICILIARY CARE - THIRD PARTY,,06/04/2018,
OFH1819Q1.A000745,09/04/2018,Oasis Care & Training Agency,COMMERCIAL SUPPLIER,"1,704.20",D12532,OP - DOMICILIARY CARE,ADULTS & PUBLIC HEALTH,ADULT SOCIAL CARE,OLDER PEOPLE,OP - OLDER PEOPLE'S SERVICES,DOMICILIARY CARE - THIRD PARTY,,06/04/2018,
OFH1819Q1.A000746,09/04/2018,Oasis Care & Training Agency,COMMERCIAL SUPPLIER,913.37,D12532,OP - DOMICILIARY CARE,ADULTS & PUBLIC HEALTH,ADULT SOCIAL CARE,OLDER PEOPLE,OP - OLDER PEOPLE'S SERVICES,DOMICILIARY CARE - THIRD PARTY,,06/04/2018,
OFH1819Q1.A000747,09/04/2018,Oasis Care & Training Agency,COMMERCIAL SUPPLIER,790.32,D12532,OP - DOMICILIARY CARE,ADULTS & PUBLIC HEALTH,ADULT SOCIAL CARE,OLDER PEOPLE,OP - OLDER PEOPLE'S SERVICES,DOMICILIARY CARE - THIRD PARTY,,06/04/2018,
OFH1819Q1.A000748,09/04/2018,Oco Ltd��,Commercial Supplier,"16,685.29",D19998,CAPITAL COST CENTRE,,,,0,BUILDING ALTERATIONS AND MATERIALS,12/03/2018,,
OFH1819Q1.A000749,09/04/2018,Oco Ltd��,Commercial Supplier,"394,852.09",D19998,CAPITAL COST CENTRE,,,,0,BUILDING ALTERATIONS AND MATERIALS,13/03/2018,,
OFH1819Q1.A000750,09/04/2018,Pell Frischmann Consultants Ltd��,Commercial Supplier,"4,967.00",D14532,YOUR NEW TOWN HALL,NEIGHBOURHOODS & GROWTH,STRATEGIC PROGRAMMES,YOUR NEW TOWN HALL,YOUR NEW TOWN HALL,CONSULTANCY FEES,14/03/2018,,
OFH1819Q1.A000751,09/04/2018,Pell Frischmann Consultants Ltd��,Commercial Supplier,"5,585.00",D14532,YOUR NEW TOWN HALL,NEIGHBOURHOODS & GROWTH,STRATEGIC PROGRAMMES,YOUR NEW TOWN HALL,YOUR NEW TOWN HALL,CONSULTANCY FEES,14/03/2018,,
OFH1819Q1.A000752,09/04/2018,Pell Frischmann Consultants Ltd��,Commercial Supplier,"8,024.00",D14532,YOUR NEW TOWN HALL,NEIGHBOURHOODS & GROWTH,STRATEGIC PROGRAMMES,YOUR NEW TOWN HALL,YOUR NEW TOWN HALL,CONSULTANCY FEES,14/03/2018,,
OFH1819Q1.A000753,09/04/2018,Post Office Ltd,COMMERCIAL SUPPLIER,"4,499.92",D10000,BALANCE SHEET COST CENTRE,BALANCE SHEET,BALANCE SHEET,BALANCE SHEET,BALANCE SHEET,OTHER DEBTOR,,03/04/2018,
OFH1819Q1.A000754,09/04/2018,Premier Sheds & Fencing��,Commercial Supplier,"2,885.00",D14752,PARKS,NEIGHBOURHOODS & GROWTH,ENVIRONMENT,NEIGHBOURHOODS,PARKS,BUILDING ALTERATIONS AND MATERIALS,19/03/2018,,
OFH1819Q1.A000755,09/04/2018,PW Educational Consulting Ltd��,Commercial Supplier,"1,000.00",D13727,SCHOOL ADVOSRY SERVICE,CHILDREN'S SERVICES,EDUCATION & LEARNING,SCHOOL & EDUCATION IMPROVEMENT SERVICE,SCHOOL & EDUCATIONAL IMPROVEMENT SERVICE,STAFF DEVELOPMENT AND TRAINING,16/03/2018,,
OFH1819Q1.A000756,09/04/2018,Restore Plc��,Commercial Supplier,"12,893.23",D10207,TRADING SERVICES,CORPORATE RESOURCES,BUSINESS TRANSFORMATION,BUSINESS TRANSFORMATION,CLIENT,STORAGE AND ARCHIVING,13/03/2018,,
OFH1819Q1.A000757,09/04/2018,Restore Plc��,Commercial Supplier,"10,181.33",D10207,TRADING SERVICES,CORPORATE RESOURCES,BUSINESS TRANSFORMATION,BUSINESS TRANSFORMATION,CLIENT,STORAGE AND ARCHIVING,13/03/2018,,
OFH1819Q1.A000758,09/04/2018,Restore Plc��,Commercial Supplier,"7,257.85",D10207,TRADING SERVICES,CORPORATE RESOURCES,BUSINESS TRANSFORMATION,BUSINESS TRANSFORMATION,CLIENT,STORAGE AND ARCHIVING,13/03/2018,,
OFH1819Q1.A000759,09/04/2018,Restore Plc��,Commercial Supplier,"7,468.07",D10207,TRADING SERVICES,CORPORATE RESOURCES,BUSINESS TRANSFORMATION,BUSINESS TRANSFORMATION,CLIENT,STORAGE AND ARCHIVING,13/03/2018,,
OFH1819Q1.A000760,09/04/2018,Restore Plc��,Commercial Supplier,"-18,886.33",D10207,TRADING SERVICES,CORPORATE RESOURCES,BUSINESS TRANSFORMATION,BUSINESS TRANSFORMATION,CLIENT,STORAGE AND ARCHIVING,15/03/2018,,
OFH1819Q1.A000761,09/04/2018,Restore Plc��,Commercial Supplier,"-18,712.38",D10207,TRADING SERVICES,CORPORATE RESOURCES,BUSINESS TRANSFORMATION,BUSINESS TRANSFORMATION,CLIENT,STORAGE AND ARCHIVING,15/03/2018,,
OFH1819Q1.A000762,09/04/2018,Roots & Shoots,COMMERCIAL SUPPLIER,"3,580.85",D13157,STATEMENTING COSTS/EHCP,CHILDREN'S SERVICES,EDUCATION & LEARNING,SPECIAL EDUCATIONAL NEEDS,"SPECIAL EDUCATION NEEDS [IBS, TRANSPORT",PRIVATE CONTRACTORS PAYMENT -,,06/04/2018,
OFH1819Q1.A000763,09/04/2018,Roots & Shoots,COMMERCIAL SUPPLIER,"3,580.85",D13157,STATEMENTING COSTS/EHCP,CHILDREN'S SERVICES,EDUCATION & LEARNING,SPECIAL EDUCATIONAL NEEDS,"SPECIAL EDUCATION NEEDS [IBS, TRANSPORT",PRIVATE CONTRACTORS PAYMENT -,,06/04/2018,
OFH1819Q1.A000764,09/04/2018,Safeplay Playgrounds� Ltd��,Commercial Supplier,"1,470.00",D18111,AREA HOUSING MANAGER (SOUTH),NEIGHBOURHOODS & GROWTH (HRA),HOUSING SERVICES (HRA),HOUSING MANAGEMENT - REPAIRS & MAINTENAN,HOUSING MANAGEMENT - REPAIRS AND MAINTEN,"MAINTENANCE - EQUIPMENT, FURNITURE AND MATERIALS",14/03/2018,,
OFH1819Q1.A000765,09/04/2018,Sheila Hentall��,Commercial Supplier,"5,750.00",D13727,SCHOOL ADVOSRY SERVICE,CHILDREN'S SERVICES,EDUCATION & LEARNING,SCHOOL & EDUCATION IMPROVEMENT SERVICE,SCHOOL & EDUCATIONAL IMPROVEMENT SERVICE,STAFF DEVELOPMENT AND TRAINING,02/03/2018,,
OFH1819Q1.A000766,09/04/2018,Sports Active Coaching��,Commercial Supplier,"10,370.00",D14781,LEISURE ESTATE,NEIGHBOURHOODS & GROWTH,ENVIRONMENT,ENVIRONMENT,CULTURE AND COMMUNITIES,ARTS AND LEISURE COSTS,14/03/2018,,
OFH1819Q1.A000767,09/04/2018,Stockwellcare Support Services Ltd��,Commercial Supplier,"2,209.08",D12532,OP - DOMICILIARY CARE,ADULTS & PUBLIC HEALTH,ADULT SOCIAL CARE,OLDER PEOPLE,OP - OLDER PEOPLE'S SERVICES,DOMICILIARY CARE - THIRD PARTY,22/03/2018,,
OFH1819Q1.A000768,09/04/2018,Transform Wellness & Training Centre��,Commercial Supplier,"4,640.73",D14782,COMMUNITY SPORTS,NEIGHBOURHOODS & GROWTH,ENVIRONMENT,ENVIRONMENT,CULTURE AND COMMUNITIES,ARTS AND LEISURE COSTS,16/03/2018,,
OFH1819Q1.A000769,09/04/2018,Urban Growth Learning Gardens CIC��,Commercial Supplier,"2,500.00",D18061,ESTATE PRIDE,NEIGHBOURHOODS & GROWTH (HRA),HOUSING SERVICES (HRA),HOUSING MANAGEMENT - REPAIRS & MAINTENAN,HOUSING MANAGEMENT - REPAIRS AND MAINTEN,CONSULTANCY FEES,12/03/2018,,
OFH1819Q1.A000770,09/04/2018,Veolia ES (UK) Ltd��,Commercial Supplier,"538,915.68",D14217,ENVIRONMENTAL QUALITY,NEIGHBOURHOODS & GROWTH,ENVIRONMENT,ENVIRONMENT,ENVIRONMENTAL SERVICES,REFUSE COLLECTION,15/03/2018,,
OFH1819Q1.A000771,09/04/2018,Veolia ES (UK) Ltd��,Commercial Supplier,"26,369.11",D14217,ENVIRONMENTAL QUALITY,NEIGHBOURHOODS & GROWTH,ENVIRONMENT,ENVIRONMENT,ENVIRONMENTAL SERVICES,WASTE DISPOSAL COSTS,15/03/2018,,
OFH1819Q1.A000772,09/04/2018,Veolia ES (UK) Ltd��,Commercial Supplier,"6,094.42",D14214,TOILETS,NEIGHBOURHOODS & GROWTH,ENVIRONMENT,ENVIRONMENT,ENVIRONMENTAL SERVICES,WASTE DISPOSAL COSTS,15/03/2018,,
OFH1819Q1.A000773,09/04/2018,Veolia ES (UK) Ltd��,Commercial Supplier,"157,457.46",D14217,ENVIRONMENTAL QUALITY,NEIGHBOURHOODS & GROWTH,ENVIRONMENT,ENVIRONMENT,ENVIRONMENTAL SERVICES,REFUSE COLLECTION,15/03/2018,,
OFH1819Q1.A000774,09/04/2018,Veolia ES (UK) Ltd��,Commercial Supplier,"8,033.57",D14217,ENVIRONMENTAL QUALITY,NEIGHBOURHOODS & GROWTH,ENVIRONMENT,ENVIRONMENT,ENVIRONMENTAL SERVICES,REFUSE COLLECTION,15/03/2018,,
OFH1819Q1.A000775,09/04/2018,Veolia ES (UK) Ltd��,Commercial Supplier,"71,890.56",D14217,ENVIRONMENTAL QUALITY,NEIGHBOURHOODS & GROWTH,ENVIRONMENT,ENVIRONMENT,ENVIRONMENTAL SERVICES,WASTE DISPOSAL COSTS,15/03/2018,,
OFH1819Q1.A000776,09/04/2018,Veolia ES (UK) Ltd��,Commercial Supplier,"38,525.81",D14220,DEPOT OPERATIONS,NEIGHBOURHOODS & GROWTH,ENVIRONMENT,ENVIRONMENT,ENVIRONMENTAL SERVICES,WASTE DISPOSAL COSTS,15/03/2018,,
OFH1819Q1.A000777,09/04/2018,Veolia ES (UK) Ltd��,Commercial Supplier,"22,081.71",D14220,DEPOT OPERATIONS,NEIGHBOURHOODS & GROWTH,ENVIRONMENT,ENVIRONMENT,ENVIRONMENTAL SERVICES,WASTE DISPOSAL COSTS,15/03/2018,,
OFH1819Q1.A000778,09/04/2018,Veolia ES (UK) Ltd��,Commercial Supplier,"22,245.44",D14220,DEPOT OPERATIONS,NEIGHBOURHOODS & GROWTH,ENVIRONMENT,ENVIRONMENT,ENVIRONMENTAL SERVICES,WASTE DISPOSAL COSTS,15/03/2018,,
OFH1819Q1.A000779,09/04/2018,Veolia ES (UK) Ltd��,Commercial Supplier,"10,572.00",D14217,ENVIRONMENTAL QUALITY,NEIGHBOURHOODS & GROWTH,ENVIRONMENT,ENVIRONMENT,ENVIRONMENTAL SERVICES,WASTE DISPOSAL COSTS,15/03/2018,,
OFH1819Q1.A000780,09/04/2018,Veolia ES (UK) Ltd��,Commercial Supplier,"1,000.00",D14538,TRANSPORT,NEIGHBOURHOODS & GROWTH,"GROWTH, PLANNING & EMPLOYMENT","PLANNING, TRANSPORT & DEVELOPMENT",TRANSPORTATION,STREET SWEEPING,15/03/2018,,
OFH1819Q1.A000781,09/04/2018,Veolia ES (UK) Ltd��,Commercial Supplier,"585,000.00",D14217,ENVIRONMENTAL QUALITY,NEIGHBOURHOODS & GROWTH,ENVIRONMENT,ENVIRONMENT,ENVIRONMENTAL SERVICES,STREET SWEEPING,20/03/2018,,
OFH1819Q1.A000782,09/04/2018,Veolia ES (UK) Ltd��,Commercial Supplier,"7,587.47",D14220,DEPOT OPERATIONS,NEIGHBOURHOODS & GROWTH,ENVIRONMENT,ENVIRONMENT,ENVIRONMENTAL SERVICES,WASTE DISPOSAL COSTS,15/03/2018,,
OFH1819Q1.A000783,09/04/2018,W Sherry and Sons��,Commercial Supplier,854,D14841,CEMS & CREMS,NEIGHBOURHOODS & GROWTH,ENVIRONMENT,NEIGHBOURHOODS,"CEMETERIES, CREMATORIA & CORONERS SERVIC",BEREAVEMENT SERVICES EQUIPMENT,13/03/2018,,
OFH1819Q1.A000784,09/04/2018,Teachers Pensions��,Direct Payments,"1,487,859.10",D10000,BALANCE SHEET COST CENTRE,BALANCE SHEET,BALANCE SHEET,BALANCE SHEET,BALANCE SHEET,PAYROLL VOLUNTARY DEDUCTIONS,07/03/2018,,
OFH1819Q1.A000785,09/04/2018,*******,Foster Carers,"2,141.96",D13130,ADOPTION- SGO ALLOWANCES,CHILDREN'S SERVICES,CHILDREN'S SERVICES,CHILDREN LOOKED AFTER,ADOPTIONS,SPECIAL GUARDIANSHIP,09/03/2018,,
OFH1819Q1.A000786,09/04/2018,*******,LEGAL SERVICES,"1,200.00",D14512,DEVELOPMENT MANAGEMENT,NEIGHBOURHOODS & GROWTH,"GROWTH, PLANNING & EMPLOYMENT","PLANNING, TRANSPORT & DEVELOPMENT",PLANNING,LEGAL FEES,,05/04/2018,
OFH1819Q1.A000787,09/04/2018,John Rowan & Partners LLP��,Legal Services,"5,500.00",D19998,CAPITAL COST CENTRE,,,,0,LEGAL FEES,16/03/2018,,
OFH1819Q1.A000788,09/04/2018,*******,LEGAL SERVICES,540,D10356,REDRESS SCHEME,CORPORATE RESOURCES,FINANCE,IMPROVEMENT RISK AND INSURANCE,IMPROVEMENT RISK AND INSURANCE,COMPENSATION,,05/04/2018,
OFH1819Q1.A000789,09/04/2018,*******,LEGAL SERVICES,540,D10356,REDRESS SCHEME,CORPORATE RESOURCES,FINANCE,IMPROVEMENT RISK AND INSURANCE,IMPROVEMENT RISK AND INSURANCE,COMPENSATION,,05/04/2018,
OFH1819Q1.A000790,09/04/2018,*******,LEGAL SERVICES,540,D10356,REDRESS SCHEME,CORPORATE RESOURCES,FINANCE,IMPROVEMENT RISK AND INSURANCE,IMPROVEMENT RISK AND INSURANCE,COMPENSATION,,05/04/2018,
OFH1819Q1.A000791,09/04/2018,Rosendale Primary School,LOCAL AUTHORITY SERVICES,"13,221.57",D72899,ROSENDALE,CHILDREN'S SERVICES (SCH),EDUCATION & LEARNING (SCH),EDUCATION & LEARNING (SCH),SCHOOLS DEVOLVED FUNDING,MISCELLANEOUS EXPENSES,,02/04/2018,
OFH1819Q1.A000792,09/04/2018,Allen Edwards Primary School,LOCAL AUTHORITY SERVICES,"27,042.84",D72808,ALLEN EDWARDS,CHILDREN'S SERVICES (SCH),EDUCATION & LEARNING (SCH),EDUCATION & LEARNING (SCH),SCHOOLS DEVOLVED FUNDING,MISCELLANEOUS EXPENSES,,02/04/2018,
OFH1819Q1.A000793,09/04/2018,Archbishop Sumner Primary School,LOCAL AUTHORITY SERVICES,"19,457.59",D73307,ARCHBISHOP SUMNERS,CHILDREN'S SERVICES (SCH),EDUCATION & LEARNING (SCH),EDUCATION & LEARNING (SCH),SCHOOLS DEVOLVED FUNDING,MISCELLANEOUS EXPENSES,,02/04/2018,
OFH1819Q1.A000794,09/04/2018,Archbishop Tenison's School,LOCAL AUTHORITY SERVICES,"297,147.24",D74171,ARCHBISHOP TENISON CE,CHILDREN'S SERVICES (SCH),EDUCATION & LEARNING (SCH),EDUCATION & LEARNING (SCH),SCHOOLS DEVOLVED FUNDING,MISCELLANEOUS EXPENSES,,02/04/2018,
OFH1819Q1.A000795,09/04/2018,Ashmole Primary School,LOCAL AUTHORITY SERVICES,"88,313.58",D72022,ASHMOLE,CHILDREN'S SERVICES (SCH),EDUCATION & LEARNING (SCH),EDUCATION & LEARNING (SCH),SCHOOLS DEVOLVED FUNDING,MISCELLANEOUS EXPENSES,,02/04/2018,
OFH1819Q1.A000796,09/04/2018,Bishop Thomas Grant School,LOCAL AUTHORITY SERVICES,"668,486.13",D75403,BISHOP THOMAS RC,CHILDREN'S SERVICES (SCH),EDUCATION & LEARNING (SCH),EDUCATION & LEARNING (SCH),SCHOOLS DEVOLVED FUNDING,MISCELLANEOUS EXPENSES,,04/04/2018,
OFH1819Q1.A000797,09/04/2018,Bonneville Primary School,LOCAL AUTHORITY SERVICES,"173,111.18",D72897,BONNEVILLE,CHILDREN'S SERVICES (SCH),EDUCATION & LEARNING (SCH),EDUCATION & LEARNING (SCH),SCHOOLS DEVOLVED FUNDING,MISCELLANEOUS EXPENSES,,04/04/2018,
OFH1819Q1.A000798,09/04/2018,Christchurch (Streatham) CE Primary School,LOCAL AUTHORITY SERVICES,"7,516.78",D73329,CHRISTCHURCH STREATHAM,CHILDREN'S SERVICES (SCH),EDUCATION & LEARNING (SCH),EDUCATION & LEARNING (SCH),SCHOOLS DEVOLVED FUNDING,MISCELLANEOUS EXPENSES,,02/04/2018,
OFH1819Q1.A000799,09/04/2018,Clapham Manor Primary School,LOCAL AUTHORITY SERVICES,"2,490.61",D72115,CLAPHAM MANOR,CHILDREN'S SERVICES (SCH),EDUCATION & LEARNING (SCH),EDUCATION & LEARNING (SCH),SCHOOLS DEVOLVED FUNDING,MISCELLANEOUS EXPENSES,,02/04/2018,
OFH1819Q1.A000800,09/04/2018,Corpus Christi RC Primary School,LOCAL AUTHORITY SERVICES,"14,329.19",D75202,CORPUS CHRISTI RC,CHILDREN'S SERVICES (SCH),EDUCATION & LEARNING (SCH),EDUCATION & LEARNING (SCH),SCHOOLS DEVOLVED FUNDING,MISCELLANEOUS EXPENSES,,04/04/2018,
OFH1819Q1.A000801,09/04/2018,Crown Lane Primary School,LOCAL AUTHORITY SERVICES,"4,604.00",D72783,CROWN LANE,CHILDREN'S SERVICES (SCH),EDUCATION & LEARNING (SCH),EDUCATION & LEARNING (SCH),SCHOOLS DEVOLVED FUNDING,MISCELLANEOUS EXPENSES,,03/04/2018,
OFH1819Q1.A000802,09/04/2018,Durand Academy,LOCAL AUTHORITY SERVICES,"19,884.72",D75207,DURAND,CHILDREN'S SERVICES (SCH),EDUCATION & LEARNING (SCH),EDUCATION & LEARNING (SCH),SCHOOLS DEVOLVED FUNDING,MISCELLANEOUS EXPENSES,,02/04/2018,
OFH1819Q1.A000803,09/04/2018,Effra Early Years Centre,LOCAL AUTHORITY SERVICES,"1,587.80",D71043,EFFRA NURSERY SCHOOL,CHILDREN'S SERVICES (SCH),EDUCATION & LEARNING (SCH),EDUCATION & LEARNING (SCH),SCHOOLS DEVOLVED FUNDING,MISCELLANEOUS EXPENSES,,02/04/2018,
OFH1819Q1.A000804,09/04/2018,Elm Court School,LOCAL AUTHORITY SERVICES,"5,886.17",D77115,ELM COURT,CHILDREN'S SERVICES (SCH),EDUCATION & LEARNING (SCH),EDUCATION & LEARNING (SCH),SCHOOLS DEVOLVED FUNDING,MISCELLANEOUS EXPENSES,,02/04/2018,
OFH1819Q1.A000805,09/04/2018,Elm Wood Primary School,LOCAL AUTHORITY SERVICES,"115,560.36",D72794,ELM WOOD,CHILDREN'S SERVICES (SCH),EDUCATION & LEARNING (SCH),EDUCATION & LEARNING (SCH),SCHOOLS DEVOLVED FUNDING,MISCELLANEOUS EXPENSES,,02/04/2018,
OFH1819Q1.A000806,09/04/2018,Ethelred Nursery School and Children's Centre,LOCAL AUTHORITY SERVICES,"3,159.22",D71049,ETHELRED NURSERY SCHOOL,CHILDREN'S SERVICES (SCH),EDUCATION & LEARNING (SCH),EDUCATION & LEARNING (SCH),SCHOOLS DEVOLVED FUNDING,MISCELLANEOUS EXPENSES,,02/04/2018,
OFH1819Q1.A000807,09/04/2018,Fenstanton Primary School,LOCAL AUTHORITY SERVICES,"48,417.21",D72785,FENSTANTON JMI,CHILDREN'S SERVICES (SCH),EDUCATION & LEARNING (SCH),EDUCATION & LEARNING (SCH),SCHOOLS DEVOLVED FUNDING,MISCELLANEOUS EXPENSES,,02/04/2018,
OFH1819Q1.A000808,09/04/2018,Glenbrook Junior School,LOCAL AUTHORITY SERVICES,"9,152.12",D72836,GLENBROOK JMI,CHILDREN'S SERVICES (SCH),EDUCATION & LEARNING (SCH),EDUCATION & LEARNING (SCH),SCHOOLS DEVOLVED FUNDING,MISCELLANEOUS EXPENSES,,02/04/2018,
OFH1819Q1.A000809,09/04/2018,Granton Primary School,LOCAL AUTHORITY SERVICES,"20,839.58",D72265,GRANTON,CHILDREN'S SERVICES (SCH),EDUCATION & LEARNING (SCH),EDUCATION & LEARNING (SCH),SCHOOLS DEVOLVED FUNDING,MISCELLANEOUS EXPENSES,,02/04/2018,
OFH1819Q1.A000810,09/04/2018,Heathbrook Primary School,LOCAL AUTHORITY SERVICES,"46,977.63",D72292,HEATHBROOK,CHILDREN'S SERVICES (SCH),EDUCATION & LEARNING (SCH),EDUCATION & LEARNING (SCH),SCHOOLS DEVOLVED FUNDING,MISCELLANEOUS EXPENSES,,02/04/2018,
OFH1819Q1.A000811,09/04/2018,Henry Cavendish Primary School,LOCAL AUTHORITY SERVICES,"39,971.29",D72295,HENRY CAVENDISH,CHILDREN'S SERVICES (SCH),EDUCATION & LEARNING (SCH),EDUCATION & LEARNING (SCH),SCHOOLS DEVOLVED FUNDING,MISCELLANEOUS EXPENSES,,02/04/2018,
OFH1819Q1.A000812,09/04/2018,Henry Fawcett Primary School,LOCAL AUTHORITY SERVICES,"22,566.68",D72901,HENRY FAWCETT - PRIMARY,CHILDREN'S SERVICES (SCH),EDUCATION & LEARNING (SCH),EDUCATION & LEARNING (SCH),SCHOOLS DEVOLVED FUNDING,MISCELLANEOUS EXPENSES,,02/04/2018,
OFH1819Q1.A000813,09/04/2018,Herbert Morrison Primary School,LOCAL AUTHORITY SERVICES,"10,076.58",D72868,HERBERT MORRISON,CHILDREN'S SERVICES (SCH),EDUCATION & LEARNING (SCH),EDUCATION & LEARNING (SCH),SCHOOLS DEVOLVED FUNDING,MISCELLANEOUS EXPENSES,,02/04/2018,
OFH1819Q1.A000814,09/04/2018,Hillmead Primary School,LOCAL AUTHORITY SERVICES,"62,226.27",D72898,HILLMEAD PRIMARY,CHILDREN'S SERVICES (SCH),EDUCATION & LEARNING (SCH),EDUCATION & LEARNING (SCH),SCHOOLS DEVOLVED FUNDING,MISCELLANEOUS EXPENSES,,02/04/2018,
OFH1819Q1.A000815,09/04/2018,Hitherfield Primary School,LOCAL AUTHORITY SERVICES,"6,015.89",D72900,HITHERFIELD - PRIMARY,CHILDREN'S SERVICES (SCH),EDUCATION & LEARNING (SCH),EDUCATION & LEARNING (SCH),SCHOOLS DEVOLVED FUNDING,MISCELLANEOUS EXPENSES,,02/04/2018,
OFH1819Q1.A000816,09/04/2018,Holmewood Nursery School & Tree House Children's Centre,LOCAL AUTHORITY SERVICES,"83,558.79",D71058,HOLMEWOOD NURSERY SCHOOL,CHILDREN'S SERVICES (SCH),EDUCATION & LEARNING (SCH),EDUCATION & LEARNING (SCH),SCHOOLS DEVOLVED FUNDING,MISCELLANEOUS EXPENSES,,02/04/2018,
OFH1819Q1.A000817,09/04/2018,Holy Trinity Primary School,LOCAL AUTHORITY SERVICES,"20,722.36",D73621,HOLY TRINITY,CHILDREN'S SERVICES (SCH),EDUCATION & LEARNING (SCH),EDUCATION & LEARNING (SCH),SCHOOLS DEVOLVED FUNDING,MISCELLANEOUS EXPENSES,,02/04/2018,
OFH1819Q1.A000818,09/04/2018,Immanuel & St Andrews CE Primary School,LOCAL AUTHORITY SERVICES,"42,317.59",D75205,IMMANUEL CE,CHILDREN'S SERVICES (SCH),EDUCATION & LEARNING (SCH),EDUCATION & LEARNING (SCH),SCHOOLS DEVOLVED FUNDING,MISCELLANEOUS EXPENSES,,02/04/2018,
OFH1819Q1.A000819,09/04/2018,IQRA Independent School,LOCAL AUTHORITY SERVICES,"40,396.74",D73643,IQRA PRIMARY SCHOOL,CHILDREN'S SERVICES (SCH),EDUCATION & LEARNING (SCH),EDUCATION & LEARNING (SCH),SCHOOLS DEVOLVED FUNDING,MISCELLANEOUS EXPENSES,,02/04/2018,
OFH1819Q1.A000820,09/04/2018,Jessop Primary School,LOCAL AUTHORITY SERVICES,"16,840.18",D72331,JESSOP,CHILDREN'S SERVICES (SCH),EDUCATION & LEARNING (SCH),EDUCATION & LEARNING (SCH),SCHOOLS DEVOLVED FUNDING,MISCELLANEOUS EXPENSES,,02/04/2018,
OFH1819Q1.A000821,09/04/2018,Johanna Primary Oasis Academy Waterloo,LOCAL AUTHORITY SERVICES,"4,389.95",D72332,JOHANNA,CHILDREN'S SERVICES (SCH),EDUCATION & LEARNING (SCH),EDUCATION & LEARNING (SCH),SCHOOLS DEVOLVED FUNDING,MISCELLANEOUS EXPENSES,,02/04/2018,
OFH1819Q1.A000822,09/04/2018,Jubilee Primary School,LOCAL AUTHORITY SERVICES,"26,931.13",D73000,JUBILEE PRIMARY SCHOOL,CHILDREN'S SERVICES (SCH),EDUCATION & LEARNING (SCH),EDUCATION & LEARNING (SCH),SCHOOLS DEVOLVED FUNDING,MISCELLANEOUS EXPENSES,,02/04/2018,
OFH1819Q1.A000823,09/04/2018,Julians Primary School,LOCAL AUTHORITY SERVICES,"112,397.28",D75209,JULIANS,CHILDREN'S SERVICES (SCH),EDUCATION & LEARNING (SCH),EDUCATION & LEARNING (SCH),SCHOOLS DEVOLVED FUNDING,MISCELLANEOUS EXPENSES,,02/04/2018,
OFH1819Q1.A000824,09/04/2018,Kings Avenue School,LOCAL AUTHORITY SERVICES,"17,404.14",D72903,KINGS AVENUE,CHILDREN'S SERVICES (SCH),EDUCATION & LEARNING (SCH),EDUCATION & LEARNING (SCH),SCHOOLS DEVOLVED FUNDING,MISCELLANEOUS EXPENSES,,02/04/2018,
OFH1819Q1.A000825,09/04/2018,La Retraite RC Girls School,LOCAL AUTHORITY SERVICES,"584,454.75",D74731,LA RETRAITE RC,CHILDREN'S SERVICES (SCH),EDUCATION & LEARNING (SCH),EDUCATION & LEARNING (SCH),SCHOOLS DEVOLVED FUNDING,MISCELLANEOUS EXPENSES,,02/04/2018,
OFH1819Q1.A000826,09/04/2018,Lansdowne School,LOCAL AUTHORITY SERVICES,"16,933.01",D77001,LANSDOWNE,CHILDREN'S SERVICES (SCH),EDUCATION & LEARNING (SCH),EDUCATION & LEARNING (SCH),SCHOOLS DEVOLVED FUNDING,MISCELLANEOUS EXPENSES,,02/04/2018,
OFH1819Q1.A000827,09/04/2018,Larkhall Junior School,LOCAL AUTHORITY SERVICES,"2,361.30",D72371,LARKHALL JUNIORS,CHILDREN'S SERVICES (SCH),EDUCATION & LEARNING (SCH),EDUCATION & LEARNING (SCH),SCHOOLS DEVOLVED FUNDING,MISCELLANEOUS EXPENSES,,02/04/2018,
OFH1819Q1.A000828,09/04/2018,Lilian Baylis Technology School,LOCAL AUTHORITY SERVICES,"128,694.13",D75400,LILIAN BAYLIS,CHILDREN'S SERVICES (SCH),EDUCATION & LEARNING (SCH),EDUCATION & LEARNING (SCH),SCHOOLS DEVOLVED FUNDING,MISCELLANEOUS EXPENSES,,02/04/2018,
OFH1819Q1.A000829,09/04/2018,Loughborough Primary School,LOCAL AUTHORITY SERVICES,"197,901.28",D72905,LOUGHBOROUGH JMI (FRESH),CHILDREN'S SERVICES (SCH),EDUCATION & LEARNING (SCH),EDUCATION & LEARNING (SCH),SCHOOLS DEVOLVED FUNDING,MISCELLANEOUS EXPENSES,,02/04/2018,
OFH1819Q1.A000830,09/04/2018,Macauley CE School,LOCAL AUTHORITY SERVICES,"14,282.59",D73375,MACAULAY,CHILDREN'S SERVICES (SCH),EDUCATION & LEARNING (SCH),EDUCATION & LEARNING (SCH),SCHOOLS DEVOLVED FUNDING,MISCELLANEOUS EXPENSES,,02/04/2018,
OFH1819Q1.A000831,09/04/2018,Maytree Nursery School,LOCAL AUTHORITY SERVICES,"4,945.28",D71055,MAYTREE NURSERY SCHOOL,CHILDREN'S SERVICES (SCH),EDUCATION & LEARNING (SCH),EDUCATION & LEARNING (SCH),SCHOOLS DEVOLVED FUNDING,MISCELLANEOUS EXPENSES,,02/04/2018,
OFH1819Q1.A000832,09/04/2018,Michael Tippett School,LOCAL AUTHORITY SERVICES,"29,999.61",D77195,MICHAEL TIPPETT,CHILDREN'S SERVICES (SCH),EDUCATION & LEARNING (SCH),EDUCATION & LEARNING (SCH),SCHOOLS DEVOLVED FUNDING,MISCELLANEOUS EXPENSES,,02/04/2018,
OFH1819Q1.A000833,09/04/2018,Norwood Secondary School,LOCAL AUTHORITY SERVICES,"553,415.67",D75405,NORWOOD,CHILDREN'S SERVICES (SCH),EDUCATION & LEARNING (SCH),EDUCATION & LEARNING (SCH),SCHOOLS DEVOLVED FUNDING,MISCELLANEOUS EXPENSES,,02/04/2018,
OFH1819Q1.A000834,09/04/2018,Orchard Primary School,LOCAL AUTHORITY SERVICES,"30,488.74",D73642,ORCHARD PRIMARY SCHOOL,CHILDREN'S SERVICES (SCH),EDUCATION & LEARNING (SCH),EDUCATION & LEARNING (SCH),SCHOOLS DEVOLVED FUNDING,MISCELLANEOUS EXPENSES,,02/04/2018,
OFH1819Q1.A000835,09/04/2018,Parallel Learning Trust,LOCAL AUTHORITY SERVICES,"92,148.33",D71102,KENNINGTON PARK ACADEMY,CHILDREN'S SERVICES (SCH),EDUCATION & LEARNING (SCH),EDUCATION & LEARNING (SCH),SCHOOLS DEVOLVED FUNDING,MISCELLANEOUS EXPENSES,,04/04/2018,
OFH1819Q1.A000836,09/04/2018,Paxton Primary School,LOCAL AUTHORITY SERVICES,"50,066.97",D72459,PAXTON,CHILDREN'S SERVICES (SCH),EDUCATION & LEARNING (SCH),EDUCATION & LEARNING (SCH),SCHOOLS DEVOLVED FUNDING,MISCELLANEOUS EXPENSES,,02/04/2018,
OFH1819Q1.A000837,09/04/2018,Reay Primary School,LOCAL AUTHORITY SERVICES,"6,304.41",D75206,REAY,CHILDREN'S SERVICES (SCH),EDUCATION & LEARNING (SCH),EDUCATION & LEARNING (SCH),SCHOOLS DEVOLVED FUNDING,MISCELLANEOUS EXPENSES,,02/04/2018,
OFH1819Q1.A000838,09/04/2018,Richard Atkins Primary School,LOCAL AUTHORITY SERVICES,"48,737.35",D72504,RICHARD ATKINS,CHILDREN'S SERVICES (SCH),EDUCATION & LEARNING (SCH),EDUCATION & LEARNING (SCH),SCHOOLS DEVOLVED FUNDING,MISCELLANEOUS EXPENSES,,02/04/2018,
OFH1819Q1.A000839,09/04/2018,Saint Andrews Church of England Primary School,LOCAL AUTHORITY SERVICES,"13,964.17",D73403,ST ANDREWS CE,CHILDREN'S SERVICES (SCH),EDUCATION & LEARNING (SCH),EDUCATION & LEARNING (SCH),SCHOOLS DEVOLVED FUNDING,MISCELLANEOUS EXPENSES,,02/04/2018,
OFH1819Q1.A000840,09/04/2018,Saint Andrews Roman Catholic School,LOCAL AUTHORITY SERVICES,"193,254.78",D75204,ST ANDREWS RC,CHILDREN'S SERVICES (SCH),EDUCATION & LEARNING (SCH),EDUCATION & LEARNING (SCH),SCHOOLS DEVOLVED FUNDING,MISCELLANEOUS EXPENSES,,02/04/2018,
OFH1819Q1.A000841,09/04/2018,Saint Anne's Primary School,LOCAL AUTHORITY SERVICES,"55,838.58",D75201,ST ANNES,CHILDREN'S SERVICES (SCH),EDUCATION & LEARNING (SCH),EDUCATION & LEARNING (SCH),SCHOOLS DEVOLVED FUNDING,MISCELLANEOUS EXPENSES,,02/04/2018,
OFH1819Q1.A000842,09/04/2018,Saint Bedes Roman Catholic Infant School,LOCAL AUTHORITY SERVICES,"18,206.91",D75203,ST BEDES RC,CHILDREN'S SERVICES (SCH),EDUCATION & LEARNING (SCH),EDUCATION & LEARNING (SCH),SCHOOLS DEVOLVED FUNDING,MISCELLANEOUS EXPENSES,,02/04/2018,
OFH1819Q1.A000843,09/04/2018,Saint Bernadette's Roman Catholic Junior School,LOCAL AUTHORITY SERVICES,"9,031.46",D75200,ST BERNADETTES RC,CHILDREN'S SERVICES (SCH),EDUCATION & LEARNING (SCH),EDUCATION & LEARNING (SCH),SCHOOLS DEVOLVED FUNDING,MISCELLANEOUS EXPENSES,,02/04/2018,
OFH1819Q1.A000844,09/04/2018,Saint Gabriel's College,LOCAL AUTHORITY SERVICES,"75,755.85",D75401,SAINT GABRIEL'S COLLEGE,CHILDREN'S SERVICES (SCH),EDUCATION & LEARNING (SCH),EDUCATION & LEARNING (SCH),SCHOOLS DEVOLVED FUNDING,MISCELLANEOUS EXPENSES,,02/04/2018,
OFH1819Q1.A000845,09/04/2018,Saint Helen's Roman Catholic Primary School,LOCAL AUTHORITY SERVICES,"37,237.19",D73641,ST HELENS,CHILDREN'S SERVICES (SCH),EDUCATION & LEARNING (SCH),EDUCATION & LEARNING (SCH),SCHOOLS DEVOLVED FUNDING,MISCELLANEOUS EXPENSES,,02/04/2018,
OFH1819Q1.A000846,09/04/2018,Saint John The Divine Church of England Primary School,LOCAL AUTHORITY SERVICES,"22,861.32",D73457,ST JOHN THE DIVINE,CHILDREN'S SERVICES (SCH),EDUCATION & LEARNING (SCH),EDUCATION & LEARNING (SCH),SCHOOLS DEVOLVED FUNDING,MISCELLANEOUS EXPENSES,,02/04/2018,
OFH1819Q1.A000847,09/04/2018,Saint John's Angell Town Church of England Primary School,LOCAL AUTHORITY SERVICES,"17,025.67",D73466,ST JOHNS ANGELL TOWN,CHILDREN'S SERVICES (SCH),EDUCATION & LEARNING (SCH),EDUCATION & LEARNING (SCH),SCHOOLS DEVOLVED FUNDING,MISCELLANEOUS EXPENSES,,02/04/2018,
OFH1819Q1.A000848,09/04/2018,Saint Jude's Church of England Primary School,LOCAL AUTHORITY SERVICES,"88,504.50",D73491,ST JUDES,CHILDREN'S SERVICES (SCH),EDUCATION & LEARNING (SCH),EDUCATION & LEARNING (SCH),SCHOOLS DEVOLVED FUNDING,MISCELLANEOUS EXPENSES,,02/04/2018,
OFH1819Q1.A000849,09/04/2018,Saint Luke's Church of England Primary School,LOCAL AUTHORITY SERVICES,"16,905.58",D73499,ST LUKES,CHILDREN'S SERVICES (SCH),EDUCATION & LEARNING (SCH),EDUCATION & LEARNING (SCH),SCHOOLS DEVOLVED FUNDING,MISCELLANEOUS EXPENSES,,02/04/2018,
OFH1819Q1.A000850,09/04/2018,Saint Mark's Church of England Primary School,LOCAL AUTHORITY SERVICES,"21,327.58",D73502,ST MARKS,CHILDREN'S SERVICES (SCH),EDUCATION & LEARNING (SCH),EDUCATION & LEARNING (SCH),SCHOOLS DEVOLVED FUNDING,MISCELLANEOUS EXPENSES,,02/04/2018,
OFH1819Q1.A000851,09/04/2018,Saint Mary's Roman Catholic Primary School,LOCAL AUTHORITY SERVICES,"145,350.81",D75208,ST MARYS RC,CHILDREN'S SERVICES (SCH),EDUCATION & LEARNING (SCH),EDUCATION & LEARNING (SCH),SCHOOLS DEVOLVED FUNDING,MISCELLANEOUS EXPENSES,,02/04/2018,
OFH1819Q1.A000852,09/04/2018,St Leonards C Of E Primary School,LOCAL AUTHORITY SERVICES,"29,918.34",D73493,ST LEONARDS,CHILDREN'S SERVICES (SCH),EDUCATION & LEARNING (SCH),EDUCATION & LEARNING (SCH),SCHOOLS DEVOLVED FUNDING,MISCELLANEOUS EXPENSES,,02/04/2018,
OFH1819Q1.A000853,09/04/2018,St Saviours C of E Primary School,LOCAL AUTHORITY SERVICES,"4,481.59",D73589,ST SAVIOURS,CHILDREN'S SERVICES (SCH),EDUCATION & LEARNING (SCH),EDUCATION & LEARNING (SCH),SCHOOLS DEVOLVED FUNDING,MISCELLANEOUS EXPENSES,,02/04/2018,
OFH1819Q1.A000854,09/04/2018,St Stephens C of E Primary School,LOCAL AUTHORITY SERVICES,"9,584.74",D73596,ST STEPHENS,CHILDREN'S SERVICES (SCH),EDUCATION & LEARNING (SCH),EDUCATION & LEARNING (SCH),SCHOOLS DEVOLVED FUNDING,MISCELLANEOUS EXPENSES,,02/04/2018,
OFH1819Q1.A000855,09/04/2018,Stockwell Primary School,LOCAL AUTHORITY SERVICES,"54,900.24",D72902,STOCKWELL - JUNIOR,CHILDREN'S SERVICES (SCH),EDUCATION & LEARNING (SCH),EDUCATION & LEARNING (SCH),SCHOOLS DEVOLVED FUNDING,MISCELLANEOUS EXPENSES,,02/04/2018,
OFH1819Q1.A000856,09/04/2018,Streatham Wells Primary School,LOCAL AUTHORITY SERVICES,"9,659.86",D72895,STREATHAM WELLS,CHILDREN'S SERVICES (SCH),EDUCATION & LEARNING (SCH),EDUCATION & LEARNING (SCH),SCHOOLS DEVOLVED FUNDING,MISCELLANEOUS EXPENSES,,02/04/2018,
OFH1819Q1.A000857,09/04/2018,Sudbourne Primary School,LOCAL AUTHORITY SERVICES,"12,193.70",D72575,SUDBOURNE,CHILDREN'S SERVICES (SCH),EDUCATION & LEARNING (SCH),EDUCATION & LEARNING (SCH),SCHOOLS DEVOLVED FUNDING,MISCELLANEOUS EXPENSES,,02/04/2018,
OFH1819Q1.A000858,09/04/2018,Sunnyhill Primary School,LOCAL AUTHORITY SERVICES,"56,847.71",D72578,SUNNYHILL,CHILDREN'S SERVICES (SCH),EDUCATION & LEARNING (SCH),EDUCATION & LEARNING (SCH),SCHOOLS DEVOLVED FUNDING,MISCELLANEOUS EXPENSES,,02/04/2018,
OFH1819Q1.A000859,09/04/2018,Telferscot Primary School,LOCAL AUTHORITY SERVICES,"15,776.06",D72591,TELFERSCOT,CHILDREN'S SERVICES (SCH),EDUCATION & LEARNING (SCH),EDUCATION & LEARNING (SCH),SCHOOLS DEVOLVED FUNDING,MISCELLANEOUS EXPENSES,,02/04/2018,
OFH1819Q1.A000860,09/04/2018,The Link Secondary School,LOCAL AUTHORITY SERVICES,"7,217.33",D13157,STATEMENTING COSTS/EHCP,CHILDREN'S SERVICES,EDUCATION & LEARNING,SPECIAL EDUCATIONAL NEEDS,"SPECIAL EDUCATION NEEDS [IBS, TRANSPORT",PAYMENT TO OTHER LOCAL AUTHORI,,06/04/2018,
OFH1819Q1.A000861,09/04/2018,The Link Secondary School,LOCAL AUTHORITY SERVICES,"7,217.33",D13157,STATEMENTING COSTS/EHCP,CHILDREN'S SERVICES,EDUCATION & LEARNING,SPECIAL EDUCATIONAL NEEDS,"SPECIAL EDUCATION NEEDS [IBS, TRANSPORT",PAYMENT TO OTHER LOCAL AUTHORI,,06/04/2018,
OFH1819Q1.A000862,09/04/2018,The Link Secondary School,LOCAL AUTHORITY SERVICES,"7,217.33",D13157,STATEMENTING COSTS/EHCP,CHILDREN'S SERVICES,EDUCATION & LEARNING,SPECIAL EDUCATIONAL NEEDS,"SPECIAL EDUCATION NEEDS [IBS, TRANSPORT",PAYMENT TO OTHER LOCAL AUTHORI,,06/04/2018,
OFH1819Q1.A000863,09/04/2018,The Livity School,LOCAL AUTHORITY SERVICES,"10,770.73",D77194,LIVITY SCHOOL,CHILDREN'S SERVICES (SCH),EDUCATION & LEARNING (SCH),EDUCATION & LEARNING (SCH),SCHOOLS DEVOLVED FUNDING,MISCELLANEOUS EXPENSES,,02/04/2018,
OFH1819Q1.A000864,09/04/2018,The London Nautical School,LOCAL AUTHORITY SERVICES,"373,329.66",D74321,LONDON NAUTICAL,CHILDREN'S SERVICES (SCH),EDUCATION & LEARNING (SCH),EDUCATION & LEARNING (SCH),SCHOOLS DEVOLVED FUNDING,MISCELLANEOUS EXPENSES,,02/04/2018,
